Workbook

Sheet Users Guide
C10: MSU 2014 Farm Bill Analyzer USERS GUIDE
C11: FIRM Fact Sheet 14-09
C12: USER’S GUIDE
C13: Version 1.9 Feb 24, 2015
C14: Roger Betz, Senior Farm Management
C15: Michigan State University Extension
C17: The MSU 2014 FARM BILL ANALYZER provides an analysis of three important decisions that are included in the Agricultural Act of 2014 (the 2014 Farm Bill). First, owners will be permitted to update the program yields on their farms. Second, owners will be permitted to reallocate the base acres on their farms. Finally, owners and/or tenants will be required to elect either the new Agricultural Risk Coverage (ARC-CO or ARC-IC) or Price Loss Coverage (PLC) programs for each covered commodity on their farms.
C18: This FARM BILL ANALYZER provides farm management information on the yield update, base reallocation, and ARC versus PLC decisions based on assumptions about farm yields, county yields, and national market prices.Given the inputted variables listed below, the MSU 2014 FARM BILL ANALYZER will calculate the consequences for the farm manager’s alternative decisions regarding yield updates, base reallocation, and the election of ARC-CO, ARC-IC, or PLC programs.
C19: Calculation Methods: All calculations are consistent with the best available information on the provisions of the 2014 Farm Bill. The sheet “Background Calculations” provides details on all of the calculations included in the MSU 2014 FARM BILL ANALYZER. For detailed descriptions of the calculations provided in the 2014 Farm Bill, see the 2014 Farm Bill Fact Sheets available at the webpage http://firm.msue.msu.edu/
C20: age: http://firm.msue.msu.edu/
C21: Disclaimer: This MSU 2014 FARM BILL ANALYZER is designed with the most recent information available about the provisions of the 2014 Farm Bill. It is not endorsed by the Farm Service Agency or the USDA.
C23: I. To operate the MSU 2014 FARM BILL ANALYZER, the user will need the following information:
C24: A. The Farm Service Agency (FSA) history for base acres and counter-cyclical (CC) yields, and planted and considered planted (P&CP) acres on a farm that has been assigned a farm number by FSA.
C25: B. Historical yields for the farm from 2008 - 2013
C26: C. Assumed yields for the farm from 2014 -2018
C27: D. Assumed county average yields for the county in which the farm is administered by FSA for 2014-2018.
C28: E. Assumed national market prices for 2014-2018
C29: F. Assumed planned planted acres on the farm from 2015-2018
C30: II. On sheet 3, the ”FSA Crop History” of the MSU 2014 FARM BILL ANALYZER, enter the information from the farm’s FSA report “Reported Commodity Crop History Summary.” Enter all information regarding:
C31: A. The farm’s base acres for all “covered commodities” on the farm.
C32: Note: In the 2014 Farm Bill, “covered commodities” with base acres in Michigan are barley, corn, oats, wheat, or other). For simplicity, base acres for barley, oats, and other crops are added to wheat base. If you have a significant base in these crops and/or plan to plant these crops, the analyzer may mislead the decisions. In this situation, please contact Roger Betz or use one of the other national analyzer programs to verify results.
C33: B. Choose the county for which the farm is administered from the “drop down” menu button at cell E3.
C34: C. The farm’s CC yield for all covered commodities on the farm.
C35: D. The farm’s Planted & Considered Planted (P&CP) acres during the 2008-2012 crop years.
C36: E. Enter base acres and CC yield data into cells E6 to I8. Enter P&PC acres data in cells E11 to I22
C37: III. On sheet4, ”2014 Farm Bill Calculator” of the MSU 2014 FARM BILL ANALYZER, enter the information on the farm’s actual and projected farm yields, the projected county average yields, the farm’s planned planted acres, and national market prices (MYA) for the 2014-2018 crop years:
C38: A. Enter the farm’s historical actual yield data (2008–2013) by crop by year in cells D12 to H13.
C39: 1. The “Default Values” are the same as the county average yields.
C40: B. Enter the farm’s projected yield data (2014 -2018) by crop by year in cells D18 to H22.
C41: 1. The “Default Values” are the same as the projected county average yields.
C42: 2. An assumed annual increase for the farm’s projected yield increase can be entered in cells B14 to B16 but is overwritten if user enters values for years 2014-2018. (Cells D18 to H22).
C43: 3. The calculation used is the most recent 5 years average plus the percent change.
C44: 4. The user is encouraged to enter their own desired values by each crop and by each year to further test calculator results for various yield scenarios.
C45: 5. The calculations for future years (2014 to 2018) can be restored to the default by using the “Restore Default Yield Projections” button
C46: C. The projected future “County Yield Annual Increase” can be modified by changing the assumed annual yield increase at cells B20 to B22.
C47: 1. The default is the same value percent increase as the farm yields increase but can be independent of the farm’s yield. Positive or negative numbers may be used. The default calculation used for projected county yields is the most recent 5 years average plus the user defined percent change.
C48: 2. The calculations for future years can be restored to the default by using the “Restore Default Yield Projections” button.
C49: IV. On Sheet 2 “2014 Farm Bill Calculator” Enter the projected national market year average (MYA) prices for all covered commodities on the farm.
C50: A. Projected prices from four alternative sources can be chosen by using the “drop-down” menu button at cell D25.
C51: B. The user can also increase or decrease these base price projections by entering the desired percent change in cells on line 26.
C52: C. The user is encouraged to enter each of their own desired values by each crop and by each year to further test various price scenarios.
C53: D. The default values can be restored to default by using the “Restore Default Price Projections” button.
C54: V. Interpretation of Results: The results calculated by the MSU 2014 FARM BILL ANALYZER appear at cell A45 and below and in the accompanying charts. Results include:
C55: A. Yield update: What is the consequence of electing to update the farm’s FSA program yield? The MSU 2014 FARM BILL ANALYZER compares the farm’s updated yield under the 2014 Farm Bill to the farm’s existing CC yield (sheet 1). The user can select the highest payment yield by crop. The “Checked YES box” for each crop is where the user can choose whether to update yields or not. This choice can be made on a covered commodity-by-covered commodity basis.
C56: B. Base reallocation: What is the consequence of electing to reallocate the farm’s FSA base acres? The MSU 2014 FARM BILL ANALYZER compares the farm’s total (years 2014 to 2018) expected program payments of the farm’s existing base acres (sheet 1) to the “reallocation” of base acres choice. The user clicks on the “Checked YES box” to see the differences in program payments, based upon inputted variables, if the user decided to reallocate base acres.
C57: C. ARC-CO versus ARC-IC versus PLC: What is the consequence of electing to enroll the farm in ARC-CO or ARC-IC or PLC? The MSU 2014 FARM BILL ANALYZER compares the farm’s expected total program payment (2014 to 2018) for each covered commodity under each of these three program choices. PLC and ARC-CO are independent of each other while ARC-IC must be used on all covered commodities on the farm as program benefits are determined from all crops revenues combined.
C58: VI. Conclusion: Given the many factors that could affect the three major decisions contained in the 2014 Farm Bill, users are encouraged to consider:
C59: A. Running a wide range of scenarios for prices, yields and various future plantings that could include best case scenarios, worst case scenarios, etc. This is highly recommended and the calculator is designed to accommodate this testing of the USDA program.
C60: B. Factors such as the correlation of the farm’s yield with the county yield.
C61: C. Coverage of price and yield risk by the ARC-CO, ARC-IC or PLC programs.
C62: D. Planting strategies and rotations by FSA Farm number.
C63: E. Other factors in the farm’s overall risk management strategy.
C66: MSU 2014 Farm Bill ARC-PLC Decision Making Tool © 2015 Michigan State University Board of Trustees. 4-H and other Cooperative Extension System groups and other nonprofit educational groups may print hard copies of this material for noncommercial, educational use, provided that attribution is given to Michigan State University Extension. All other rights reserved. For information, contact MSU Extension, 108 Agriculture Hall, 446 West Circle Drive, East Lansing, MI 48824.
C67: MSU is an affirmative-action, equal-opportunity employer, committed to achieving excellence through a diverse workforce and inclusive culture that encourages all people to reach their full potential. Michigan State University Extension programs and materials are open to all without regard to race, color, national origin, gender, gender identity, religion, age, height, weight, disability, political beliefs, sexual orientation, marital status, family status or veteran status. Issued in furtherance of MSU Extension work, acts of May 8 and June 30, 1914, in cooperation with the U.S. Department of Agriculture. Ray Hammerschmidt, Director, MSU Extension, East Lansing, MI 48824. This information is for educational purposes only. Reference to commercial products or trade names does not imply endorsement by MSU Extension or bias against those not mentioned.
C69: VII. Version Updates
C70: Version 1.3 Correct PLC yield calculation when no crop was planted in a year.
C71: Version 1.4 New rules on how ARC-IC plug yields are used. Planted versus not planted.
C72: Version 1.5 Updates crop price projections and adds a new "composite" which is an average of the 4 sources.
C73: Version 1.6 Corrects how ARC-IC plug yields are calculated when planted or not planted.
C74: Version 1.7 Uses FSA county yields versus NASS county yields. Price percentage increase or decrease does not now change for the 2014 year. Uses 0.1 yield for crops in counties that are not listed in either FSA or NASS yield data sets. This allows calculations versus error messages.
C75: Version 1.8 Updated Price Projections. Added larger view of YES/NO questions so can see choices better.
C76: Version 1.9 Uses NASS 2014 county yield estimates versus average of last 5 years and updates projected crop prices.

Sheet FSA CROP HISTORY
F2: Reported Commodity Crop History Summary
D3: Administrative County: | E3: HILLSDALE | F3: Farm Number: | G3: 9999 | H3: Farm Name: | I3: Base Example Farm
D5: 2014 Commodity | E5: 2014 Base Acres | F5: 2014 CC Yield | G5: 2014 Commodity | H5: 2014 Base Acres | I5: 2014 CC Yield
D6: Soybeans | E6: 50 | F6: 38 | G6: Wheat | H6: 40 | I6: 50
D7: Corn | E7: 50 | F7: 96 | G7: Oats | H7: 10 | I7: 69
D8: Barley | E8: 0 | F8: 0 | G8: Other | H8: 0 | I8: 0
D10: Planted & Prevented | E10: 2008 | F10: 2009 | G10: 2010 | H10: 2011 | I10: 2012
D11: Soybeans Planted | E11: 100 | F11: 0 | G11: 150 | H11: 40 | I11: 160
D12: Soybeans Prevented
D13: Corn Planted | E13: 50 | F13: 150 | G13: 50 | H13: 160 | I13: 40
D14: Corn Prevented
D15: Wheat Planted | E15: 50 | F15: 50 | G15: 0 | H15: 0 | I15: 0
D16: Wheat Prevented
D17: Oats Planted
D18: Oats prevented
D19: Barley Planted
D20: Barley Prevented
D21: Other Planted
D22: Other Prevented
D23: Total Acres Planted | E23: =SUM(E11:E22) -> 200 | F23: =SUM(F11:F22) -> 200 | G23: 200 | H23: 200 | I23: 200

Sheet 2014 Farm Bill Calculator
D1: MSU 2014 -2018 FARM BILL ANALYZER | I1: Version 1.9
D2: FSA Farm # | E2: ='FSA CROP HISTORY'!G3 -> 9999 | F2: Farm Name: | G2: ='FSA CROP HISTORY'!I3 -> Base Example Farm
C3: ='FSA CROP HISTORY'!E3 -> HILLSDALE | D3: CORN | F3: SOYBEANS | H3: WHEAT
C4: National Loan Rate | D4: 1.95 | F4: 5 | H4: 2.94 | I4: Note: All Base acres other than corn and Soys are added together here
J5: Total FSA Base Acres
C6: FSA 2014 BASE Acres (FSA CROP HISTORY) | E6: ='FSA CROP HISTORY'!E7 -> 50 | G6: ='FSA CROP HISTORY'!E6 -> 50 | I6: ='FSA CROP HISTORY'!H6+'FSA CROP HISTORY'!H7+'FSA CROP HISTORY'!H8+'FSA CROP HISTORY'!E8 -> 50 | J6: =E6+G6+I6 -> 150
C7: 2014 CC Yield (FSA CROP HISTORY) | D7: ='FSA CROP HISTORY'!F7 -> 96 | F7: ='FSA CROP HISTORY'!F6 -> 38 | H7: ='FSA CROP HISTORY'!I6 -> 50
N8: Farm
A9: Please check the FIRM website for possible updates: | F9: Historical and Projected Farm Yields and Acreages | N9: 0.02
A10: http://firm.msue.msu.edu/ | D10: Corn | E10: Corn | F10: Soybeans | G10: Soybean | H10: Wheat | I10: Wheat | N10: 0.01
A11: This is | B11: =I1 -> Version 1.9 | C11: Crop Year | D11: Farm Yield | E11: Acres | F11: Farm Yield | G11: Acres | H11: Farm Yield | I11: Acres | J11: Total Commodity Acres | N11: 0.01
A12: Farm Yield | C12: 2008 | D12: ='Background Calculations'!R3 -> 124 | E12: ='FSA CROP HISTORY'!E13+'FSA CROP HISTORY'!E14 -> 50 | F12: ='Background Calculations'!R4 -> 32.5 | G12: ='FSA CROP HISTORY'!E11+'FSA CROP HISTORY'!E12 -> 100 | H12: 80 | I12: =SUM('FSA CROP HISTORY'!E15:E22) -> 50 | J12: =I12+G12+E12 -> 200 | N12: County
A13: Annual Increase | C13: 2009 | D13: ='Background Calculations'!S3 -> 133 | E13: ='FSA CROP HISTORY'!F13+'FSA CROP HISTORY'!F14 -> 150 | F13: ='Background Calculations'!S4 -> 36 | G13: ='FSA CROP HISTORY'!F11+'FSA CROP HISTORY'!F12 -> 0 | H13: 80 | I13: =SUM('FSA CROP HISTORY'!F15:F22) -> 50 | J13: 200 | N13: =$B$14 -> 0.02
A14: Corn % | B14: 0.02 | C14: 2010 | D14: ='Background Calculations'!T3 -> 140 | E14: ='FSA CROP HISTORY'!G13+'FSA CROP HISTORY'!G14 -> 50 | F14: ='Background Calculations'!T4 -> 45 | G14: ='FSA CROP HISTORY'!G11+'FSA CROP HISTORY'!G12 -> 150 | H14: 80 | I14: =SUM('FSA CROP HISTORY'!G15:G22) -> 0 | J14: 200 | N14: =$B$15 -> 0.01
A15: Soys % | B15: 0.01 | C15: 2011 | D15: ='Background Calculations'!U3 -> 139 | E15: ='FSA CROP HISTORY'!H13+'FSA CROP HISTORY'!H14 -> 160 | F15: ='Background Calculations'!U4 -> 44 | G15: ='FSA CROP HISTORY'!H11+'FSA CROP HISTORY'!H12 -> 40 | H15: 90 | I15: =SUM('FSA CROP HISTORY'!H15:H22) -> 0 | J15: 200 | N15: =$B$16 -> 0.01
A16: Wheat % | B16: 0.01 | C16: 2012 | D16: ='Background Calculations'!V3 -> 109 | E16: ='FSA CROP HISTORY'!I13+'FSA CROP HISTORY'!I14 -> 40 | F16: ='Background Calculations'!V4 -> 40 | G16: ='FSA CROP HISTORY'!I11+'FSA CROP HISTORY'!I12 -> 160 | H16: ='Background Calculations'!V$5 -> 69 | I16: =SUM('FSA CROP HISTORY'!I15:I22) -> 0 | J16: 200
C17: 2013 | D17: ='Background Calculations'!W3 -> 169 | E17: =G16 -> 160 | F17: ='Background Calculations'!W4 -> 47 | G17: =E16 -> 40 | H17: 90 | I17: 0 | J17: 200 | N17: Default Future Yield Calculations
A18: County Yield | C18: 2014 | D18: ='Background Calculations'!X3 -> 155 | E18: 40 | F18: ='Background Calculations'!X4 -> 39.3 | G18: 160 | H18: ='Background Calculations'!X5 -> 71.80000305 | I18: =I17 -> 0 | J18: 200
A19: Annual Increase | C19: 2015 | D19: =AVERAGE($D14:$D18)*(1+$B$14) -> 145.248 | E19: 160 | F19: =AVERAGE($F14:$F18)*(1+$B$15) -> 43.4906 | G19: 40 | H19: =AVERAGE($H14:$H18)*(1+$B$16) -> 80.96160062 | I19: =I18 -> 0 | J19: 200 | N19: =AVERAGE($D14:$D18)*(1+$B$14) -> 145.248 | O19: =AVERAGE($F14:$F18)*(1+$B$15) -> 43.4906 | P19: =AVERAGE($H14:$H18)*(1+$B$16) -> 80.96160062
A20: Corn % | B20: =$B$14 -> 0.02 | C20: 2016 | D20: =AVERAGE($D15:$D19)*(1+$B$14) -> 146.318592 | E20: 40 | F20: =AVERAGE($F15:$F19)*(1+$B$15) -> 43.1857012 | G20: 160 | H20: =AVERAGE($H15:$H19)*(1+$B$16) -> 81.15584394 | I20: =I19 -> 0 | J20: 200 | N20: =AVERAGE($D15:$D19)*(1+$B$14) -> 146.318592 | O20: =AVERAGE($F15:$F19)*(1+$B$15) -> 43.1857012 | P20: =AVERAGE($H15:$H19)*(1+$B$16) -> 81.15584394
A21: Soys % | B21: =$B$15 -> 0.01 | C21: 2017 | D21: 147.8115848 | E21: 160 | F21: 43.02121284 | G21: 40 | H21: 79.36932442 | I21: =I20 -> 0 | J21: 200 | N21: 147.8115848 | O21: 43.02121284 | P21: 79.36932442
A22: Wheat % | B22: =$B$16 -> 0.01 | C22: 2018 | D22: 155.7291481 | E22: 40 | F22: 43.63149784 | G22: 160 | H22: 81.46392795 | I22: 0 | J22: 200 | N22: 155.7291481 | O22: 43.63149784 | P22: 81.46392795
F24: Projected National Market Year Average Prices
C25: Base assumptions for MYA Prices to Use: | D25: Composite
C26: Price Change from Base assumptions | D26: 0 | F26: =$D26 -> 0 | H26: =$D26 -> 0 | N26: 0 | O26: =$D26 -> 0 | P26: =$D26 -> 0
C27: Crop Year | D27: CORN | F27: SOYBEANS | H27: =H3 -> WHEAT
C28: 2013 | D28: 4.46 | F28: 13 | H28: 6.87
C29: 2014 | D29: 3.65 | F29: =$O41 -> 10.04551446 | H29: 5.99 | N29: =$N41 -> 3.610502898 | O29: =$O41 -> 10.04551446 | P29: =$P41 -> 6.027418282
C30: 2015 | D30: =$N42 -> 3.718672019 | F30: =$O42 -> 9.223024498 | H30: =$P42 -> 5.15623261 | N30: =$N42 -> 3.718672019 | O30: =$O42 -> 9.223024498 | P30: =$P42 -> 5.15623261
C31: 2016 | D31: =$N43 -> 3.802917324 | F31: =$O43 -> 9.276256482 | H31: =$P43 -> 5.148742042 | N31: =$N43 -> 3.802917324 | O31: =$O43 -> 9.276256482 | P31: =$P43 -> 5.148742042
C32: 2017 | D32: =$N44 -> 3.864734485 | F32: =$O44 -> 9.532783715 | H32: =$P44 -> 5.213061487 | N32: =$N44 -> 3.864734485 | O32: =$O44 -> 9.532783715 | P32: =$P44 -> 5.213061487
C33: 2018 | D33: =$N45 -> 3.910727389 | F33: =$O45 -> 9.688214703 | H33: =$P45 -> 5.319861925 | N33: =$N45 -> 3.910727389 | O33: =$O45 -> 9.688214703 | P33: =$P45 -> 5.319861925
C34: Average 5 yr Price | D34: =AVERAGE(D29:D33) -> 3.789410243 | F34: =AVERAGE(F29:F33) -> 9.553158772 | H34: 5.365579613
N35: Market Year Prices
N36: =VLOOKUP($D$25,'MYA Prices'!$B$32:$Q$36,2,FALSE) -> 3.610502898 | O36: =VLOOKUP($D$25,'MYA Prices'!$B$32:$Q$36,7,FALSE) -> 10.04551446 | P36: =VLOOKUP($D$25,'MYA Prices'!$B$32:$Q$36,12,FALSE) -> 6.027418282
B37: FSA Decision 1 : | C37: Update Yields? | D37: CORN ? | F37: SOYBEANS? | H37: WHEAT ? | N37: =VLOOKUP($D$25,'MYA Prices'!$B$32:$Q$36,3,FALSE) -> 3.718672019 | O37: =VLOOKUP($D$25,'MYA Prices'!$B$32:$Q$36,8,FALSE) -> 9.223024498 | P37: =VLOOKUP($D$25,'MYA Prices'!$B$32:$Q$36,13,FALSE) -> 5.15623261
C38: Choose Highest Yield for Each Crop--> | D38: =IF($R38,'Background Calculations'!D3,D7) -> 116.1 | E38: =IF(R38=FALSE,"NO","YES") -> YES | F38: =IF($S38,'Background Calculations'!F3,F7) -> 38 | G38: =IF(S38=FALSE,"NO","YES") -> NO | H38: =IF($T38,'Background Calculations'!H3,H7) -> 72 | I38: =IF(T38=FALSE,"NO","YES") -> YES | N38: =VLOOKUP($D$25,'MYA Prices'!$B$32:$Q$36,4,FALSE) -> 3.802917324 | O38: =VLOOKUP($D$25,'MYA Prices'!$B$32:$Q$36,9,FALSE) -> 9.276256482 | P38: =VLOOKUP($D$25,'MYA Prices'!$B$32:$Q$36,14,FALSE) -> 5.148742042 | R38: TRUE | S38: FALSE | T38: TRUE
B39: FSA Decision 2 : | C39: Reallocate Base Acres? | D39: =IF(R39=FALSE,"NO","YES") -> YES | E39: =IF($R39,'Background Calculations'!E2*$J6,E6) -> 75 | G39: =IF($R39,'Background Calculations'!G2*$J6,G6) -> 65.625 | I39: =IF($R39,'Background Calculations'!I2*$J6,I6) -> 9.375 | N39: =VLOOKUP($D$25,'MYA Prices'!$B$32:$Q$36,5,FALSE) -> 3.864734485 | O39: =VLOOKUP($D$25,'MYA Prices'!$B$32:$Q$36,10,FALSE) -> 9.532783715 | P39: =VLOOKUP($D$25,'MYA Prices'!$B$32:$Q$36,15,FALSE) -> 5.213061487 | R39: TRUE
B40: FSA Decision 3 : | C40: Program Choices? | N40: =VLOOKUP($D$25,'MYA Prices'!$B$32:$Q$36,6,FALSE) -> 3.910727389 | O40: =VLOOKUP($D$25,'MYA Prices'!$B$32:$Q$36,11,FALSE) -> 9.688214703 | P40: =VLOOKUP($D$25,'MYA Prices'!$B$32:$Q$36,16,FALSE) -> 5.319861925
B41: Choose Resulting Highest 5yr Total Program Payments below: | N41: =N36 -> 3.610502898 | O41: =O36 -> 10.04551446 | P41: =P36 -> 6.027418282
A42: 5yr Total Program Payments | D42: CORN 5yrs | F42: SOYBEANS 5yrs | H42: WHEAT 5yrs | N42: =N37*(1+$D$26) -> 3.718672019 | O42: =O37*(1+$F$26) -> 9.223024498 | P42: =P37*(1+$H$26) -> 5.15623261
A43: =SUM(D43:H43) -> 1036.824736 | C43: <-All PLC | D43: =SUM('Background Calculations'!D5:D9)*E39*0.85 -> 370.06875 | F43: =SUM('Background Calculations'!F5:F9)*G39*0.85 -> 0 | H43: =SUM('Background Calculations'!H5:H9)*I39*0.85 -> 666.7559858 | N43: =N38*(1+$D$26) -> 3.802917324 | O43: =O38*(1+$F$26) -> 9.276256482 | P43: =P38*(1+$H$26) -> 5.148742042
A44: =SUM(D44:I44) -> 19981.92493 | C44: <-All ARC-CO | D44: =SUM('Background Calculations'!D12:D16)*E39*0.85 -> 11668.35522 | F44: =SUM('Background Calculations'!F12:F16)*G39*0.85 -> 7680.097129 | H44: =SUM('Background Calculations'!H12:H16)*I39*0.85 -> 633.4725816 | N44: =N39*(1+$D$26) -> 3.864734485 | O44: =O39*(1+$F$26) -> 9.532783715 | P44: =P39*(1+$H$26) -> 5.213061487
A45: =SUM('Background Calculations'!J96:J100) -> 16225.70909 | C45: <-ARC-IC | D45: NA | F45: NA | H45: NA | N45: =N40*(1+$D$26) -> 3.910727389 | O45: =O40*(1+$F$26) -> 9.688214703 | P45: =P40*(1+$H$26) -> 5.319861925
A46: =SUM(D46+F46+H46) -> 20015.20833 | C46: <-Best PLC,ARC-CO | D46: =MAX(D43:D44) -> 11668.35522 | F46: =MAX(F43:F44) -> 7680.097129 | H46: =MAX(H43:H44) -> 666.7559858
A47: =MAX(A43:B46)-MIN(A43:B46) -> 18978.3836 | C47: Difference Max vs Min
A48: =A44-A45 -> 3756.21584 | C48: Difference ARC-CO vs ARC-IC
A49: =MAX(A43:B46)/J6 -> 133.4347222 | C49: Total Payments per Base Acre (5 yrs combined)
A50: =A49/5 -> 26.68694444 | C50: Average Payment per Base Acre per year

Sheet Background Calculations
C2: 2009 - '12 Each Crop Percent | E2: =SUM('2014 Farm Bill Calculator'!E13:E16)/SUM('2014 Farm Bill Calculator'!$J13:$J16) -> 0.5 | G2: =SUM('2014 Farm Bill Calculator'!G13:G16)/SUM('2014 Farm Bill Calculator'!$J13:$J16) -> 0.4375 | I2: =SUM('2014 Farm Bill Calculator'!I13:I16)/SUM('2014 Farm Bill Calculator'!$J13:$J16) -> 0.0625 | M2: County Yield | N2: 2004 | O2: 2005 | P2: 2006 | Q2: 2007 | R2: 2008 | S2: 2009 | T2: 2010 | U2: 2011 | V2: 2012 | W2: 2013 | X2: 2014 | Y2: 2015 | Z2: 2016 | AA2: 2017 | AB2: 2018
C3: 90% PLC Yield | D3: =AVERAGE('Background Calculations'!R33:V33)*0.9 -> 116.1 | F3: =AVERAGE('Background Calculations'!R34:V34)*0.9 -> 36.3375 | H3: =AVERAGE('Background Calculations'!R35:V35)*0.9 -> 72 | L3: Corn | M3: ='2014 Farm Bill Calculator'!C3 -> HILLSDALE | N3: =VLOOKUP('2014 Farm Bill Calculator'!$C$3,'County Yields'!$A$3:$CA$85,2) -> 135 | O3: =VLOOKUP('2014 Farm Bill Calculator'!$C$3,'County Yields'!$A$3:$CA$85,3) -> 151 | P3: =VLOOKUP('2014 Farm Bill Calculator'!$C$3,'County Yields'!$A$3:$CA$85,4) -> 149 | Q3: =VLOOKUP('2014 Farm Bill Calculator'!$C$3,'County Yields'!$A$3:$CA$85,5) -> 113 | R3: =VLOOKUP('2014 Farm Bill Calculator'!$C$3,'County Yields'!$A$3:$CA$85,6) -> 124 | S3: =VLOOKUP('2014 Farm Bill Calculator'!$C$3,'County Yields'!$A$3:$CA$85,7) -> 133 | T3: =VLOOKUP('2014 Farm Bill Calculator'!$C$3,'County Yields'!$A$3:$CA$85,8) -> 140 | U3: =VLOOKUP('2014 Farm Bill Calculator'!$C$3,'County Yields'!$A$3:$CA$85,9) -> 139 | V3: =VLOOKUP('2014 Farm Bill Calculator'!$C$3,'County Yields'!$A$3:$CA$85,10) -> 109 | W3: =VLOOKUP('2014 Farm Bill Calculator'!$C$3,'County Yields'!$A$3:$CA$85,11) -> 169 | X3: =VLOOKUP('2014 Farm Bill Calculator'!$C$3,'County Yields'!$A$3:$CA$85,12) -> 155 | Y3: =VLOOKUP('2014 Farm Bill Calculator'!$C$3,'County Yields'!$A$3:$CA$85,13) -> 145.248 | Z3: =VLOOKUP('2014 Farm Bill Calculator'!$C$3,'County Yields'!$A$3:$CA$85,14) -> 146.318592 | AA3: =VLOOKUP('2014 Farm Bill Calculator'!$C$3,'County Yields'!$A$3:$CA$85,15) -> 147.8115848 | AB3: =VLOOKUP('2014 Farm Bill Calculator'!$C$3,'County Yields'!$A$3:$CA$85,16) -> 155.7291481
C4: PLC / Acre/Before 85% | D4: CORN | F4: SOYBEANS | H4: WHEAT | L4: Soys | M4: ='2014 Farm Bill Calculator'!C3 -> HILLSDALE | N4: =VLOOKUP('2014 Farm Bill Calculator'!$C$3,'County Yields'!$A$3:$CA$85,22) -> 40 | O4: =VLOOKUP('2014 Farm Bill Calculator'!$C$3,'County Yields'!$A$3:$CA$85,23) -> 42 | P4: =VLOOKUP('2014 Farm Bill Calculator'!$C$3,'County Yields'!$A$3:$CA$85,24) -> 48 | Q4: =VLOOKUP('2014 Farm Bill Calculator'!$C$3,'County Yields'!$A$3:$CA$85,25) -> 39 | R4: =VLOOKUP('2014 Farm Bill Calculator'!$C$3,'County Yields'!$A$3:$CA$85,26) -> 32.5 | S4: =VLOOKUP('2014 Farm Bill Calculator'!$C$3,'County Yields'!$A$3:$CA$85,27) -> 36 | T4: =VLOOKUP('2014 Farm Bill Calculator'!$C$3,'County Yields'!$A$3:$CA$85,28) -> 45 | U4: =VLOOKUP('2014 Farm Bill Calculator'!$C$3,'County Yields'!$A$3:$CA$85,29) -> 44 | V4: =VLOOKUP('2014 Farm Bill Calculator'!$C$3,'County Yields'!$A$3:$CA$85,30) -> 40 | W4: =VLOOKUP('2014 Farm Bill Calculator'!$C$3,'County Yields'!$A$3:$CA$85,31) -> 47 | X4: =VLOOKUP('2014 Farm Bill Calculator'!$C$3,'County Yields'!$A$3:$CA$85,32) -> 39.3 | Y4: =VLOOKUP('2014 Farm Bill Calculator'!$C$3,'County Yields'!$A$3:$CA$85,33) -> 43.4906 | Z4: =VLOOKUP('2014 Farm Bill Calculator'!$C$3,'County Yields'!$A$3:$CA$85,34) -> 43.1857012 | AA4: =VLOOKUP('2014 Farm Bill Calculator'!$C$3,'County Yields'!$A$3:$CA$85,35) -> 43.02121284 | AB4: =VLOOKUP('2014 Farm Bill Calculator'!$C$3,'County Yields'!$A$3:$CA$85,36) -> 43.63149784
C5: 2014 | D5: =IF('2014 Farm Bill Calculator'!D29>'2014 Farm Bill Calculator'!D$4,IF('2014 Farm Bill Calculator'!D29<D$19,D$19-'2014 Farm Bill Calculator'!D29,0)*'2014 Farm Bill Calculator'!D$38,(D$19-'2014 Farm Bill Calculator'!D$4)*'2014 Farm Bill Calculator'!D$38) -> 5.805 | E5: =D5*'2014 Farm Bill Calculator'!E$39*0.85 -> 370.06875 | F5: =IF('2014 Farm Bill Calculator'!F29>'2014 Farm Bill Calculator'!F$4,IF('2014 Farm Bill Calculator'!F29<F$19,F$19-'2014 Farm Bill Calculator'!F29,0)*'2014 Farm Bill Calculator'!F$38,(F$19-'2014 Farm Bill Calculator'!F$4)*'2014 Farm Bill Calculator'!F$38) -> 0 | G5: =F5*'2014 Farm Bill Calculator'!G$39*0.85 -> 0 | H5: =IF('2014 Farm Bill Calculator'!H29>'2014 Farm Bill Calculator'!H$4,IF('2014 Farm Bill Calculator'!H29<H$19,H$19-'2014 Farm Bill Calculator'!H29,0)*'2014 Farm Bill Calculator'!H$38,(H$19-'2014 Farm Bill Calculator'!H$4)*'2014 Farm Bill Calculator'!H$38) -> 0 | I5: =H5*'2014 Farm Bill Calculator'!I$39*0.85 -> 0 | J5: =E5+G5+'2014 Farm Bill Calculator'!I559 -> 370.06875 | L5: Wheat | M5: ='2014 Farm Bill Calculator'!C3 -> HILLSDALE | N5: =VLOOKUP('2014 Farm Bill Calculator'!$C$3,'County Yields'!$A$3:$CA$85,42) -> 50 | O5: =VLOOKUP('2014 Farm Bill Calculator'!$C$3,'County Yields'!$A$3:$CA$85,43) -> 64 | P5: =VLOOKUP('2014 Farm Bill Calculator'!$C$3,'County Yields'!$A$3:$CA$85,44) -> 63 | Q5: =VLOOKUP('2014 Farm Bill Calculator'!$C$3,'County Yields'!$A$3:$CA$85,45) -> 54 | R5: =VLOOKUP('2014 Farm Bill Calculator'!$C$3,'County Yields'!$A$3:$CA$85,46) -> 64 | S5: =VLOOKUP('2014 Farm Bill Calculator'!$C$3,'County Yields'!$A$3:$CA$85,47) -> 66 | T5: =VLOOKUP('2014 Farm Bill Calculator'!$C$3,'County Yields'!$A$3:$CA$85,48) -> 62 | U5: =VLOOKUP('2014 Farm Bill Calculator'!$C$3,'County Yields'!$A$3:$CA$85,49) -> 65 | V5: =VLOOKUP('2014 Farm Bill Calculator'!$C$3,'County Yields'!$A$3:$CA$85,50) -> 69 | W5: =VLOOKUP('2014 Farm Bill Calculator'!$C$3,'County Yields'!$A$3:$CA$85,51) -> 74 | X5: =VLOOKUP('2014 Farm Bill Calculator'!$C$3,'County Yields'!$A$3:$CA$85,52) -> 71.80000305 | Y5: =VLOOKUP('2014 Farm Bill Calculator'!$C$3,'County Yields'!$A$3:$CA$85,53) -> 69.04360062 | Z5: =VLOOKUP('2014 Farm Bill Calculator'!$C$3,'County Yields'!$A$3:$CA$85,54) -> 70.46640794 | AA5: =VLOOKUP('2014 Farm Bill Calculator'!$C$3,'County Yields'!$A$3:$CA$85,55) -> 71.57062235 | AB5: =VLOOKUP('2014 Farm Bill Calculator'!$C$3,'County Yields'!$A$3:$CA$85,56) -> 72.08988806
C6: 2015 | D6: =IF('2014 Farm Bill Calculator'!D30>'2014 Farm Bill Calculator'!D$4,IF('2014 Farm Bill Calculator'!D30<D$19,D$19-'2014 Farm Bill Calculator'!D30,0)*'2014 Farm Bill Calculator'!D$38,(D$19-'2014 Farm Bill Calculator'!D$4)*'2014 Farm Bill Calculator'!D$38) -> 0 | E6: =D6*'2014 Farm Bill Calculator'!E$39*0.85 -> 0 | F6: =IF('2014 Farm Bill Calculator'!F30>'2014 Farm Bill Calculator'!F$4,IF('2014 Farm Bill Calculator'!F30<F$19,F$19-'2014 Farm Bill Calculator'!F30,0)*'2014 Farm Bill Calculator'!F$38,(F$19-'2014 Farm Bill Calculator'!F$4)*'2014 Farm Bill Calculator'!F$38) -> 0 | G6: =F6*'2014 Farm Bill Calculator'!G$39*0.85 -> 0 | H6: =IF('2014 Farm Bill Calculator'!H30>'2014 Farm Bill Calculator'!H$4,IF('2014 Farm Bill Calculator'!H30<H$19,H$19-'2014 Farm Bill Calculator'!H30,0)*'2014 Farm Bill Calculator'!H$38,(H$19-'2014 Farm Bill Calculator'!H$4)*'2014 Farm Bill Calculator'!H$38) -> 24.75125206 | I6: =H6*'2014 Farm Bill Calculator'!I$39*0.85 -> 197.2365399 | J6: =E6+G6+I6 -> 197.2365399
C7: 2016 | D7: =IF('2014 Farm Bill Calculator'!D31>'2014 Farm Bill Calculator'!D$4,IF('2014 Farm Bill Calculator'!D31<D$19,D$19-'2014 Farm Bill Calculator'!D31,0)*'2014 Farm Bill Calculator'!D$38,(D$19-'2014 Farm Bill Calculator'!D$4)*'2014 Farm Bill Calculator'!D$38) -> 0 | E7: =D7*'2014 Farm Bill Calculator'!E$39*0.85 -> 0 | F7: =IF('2014 Farm Bill Calculator'!F31>'2014 Farm Bill Calculator'!F$4,IF('2014 Farm Bill Calculator'!F31<F$19,F$19-'2014 Farm Bill Calculator'!F31,0)*'2014 Farm Bill Calculator'!F$38,(F$19-'2014 Farm Bill Calculator'!F$4)*'2014 Farm Bill Calculator'!F$38) -> 0 | G7: =F7*'2014 Farm Bill Calculator'!G$39*0.85 -> 0 | H7: =IF('2014 Farm Bill Calculator'!H31>'2014 Farm Bill Calculator'!H$4,IF('2014 Farm Bill Calculator'!H31<H$19,H$19-'2014 Farm Bill Calculator'!H31,0)*'2014 Farm Bill Calculator'!H$38,(H$19-'2014 Farm Bill Calculator'!H$4)*'2014 Farm Bill Calculator'!H$38) -> 25.29057295 | I7: =H7*'2014 Farm Bill Calculator'!I$39*0.85 -> 201.5342532 | J7: =E7+G7+I7 -> 201.5342532 | Q7: County Olympic Average Yield | S7: 2009 | T7: 2010 | U7: 2011 | V7: 2012 | W7: 2013 | X7: 2014 | Y7: 2015 | Z7: 2016 | AA7: 2017 | AB7: 2018
C8: 2017 | D8: =IF('2014 Farm Bill Calculator'!D32>'2014 Farm Bill Calculator'!D$4,IF('2014 Farm Bill Calculator'!D32<D$19,D$19-'2014 Farm Bill Calculator'!D32,0)*'2014 Farm Bill Calculator'!D$38,(D$19-'2014 Farm Bill Calculator'!D$4)*'2014 Farm Bill Calculator'!D$38) -> 0 | E8: =D8*'2014 Farm Bill Calculator'!E$39*0.85 -> 0 | F8: =IF('2014 Farm Bill Calculator'!F32>'2014 Farm Bill Calculator'!F$4,IF('2014 Farm Bill Calculator'!F32<F$19,F$19-'2014 Farm Bill Calculator'!F32,0)*'2014 Farm Bill Calculator'!F$38,(F$19-'2014 Farm Bill Calculator'!F$4)*'2014 Farm Bill Calculator'!F$38) -> 0 | G8: =F8*'2014 Farm Bill Calculator'!G$39*0.85 -> 0 | H8: =IF('2014 Farm Bill Calculator'!H32>'2014 Farm Bill Calculator'!H$4,IF('2014 Farm Bill Calculator'!H32<H$19,H$19-'2014 Farm Bill Calculator'!H32,0)*'2014 Farm Bill Calculator'!H$38,(H$19-'2014 Farm Bill Calculator'!H$4)*'2014 Farm Bill Calculator'!H$38) -> 20.65957294 | I8: =H8*'2014 Farm Bill Calculator'!I$39*0.85 -> 164.6309719 | J8: =E8+G8+I8 -> 164.6309719 | Q8: Corn | R8: ='2014 Farm Bill Calculator'!C3 -> HILLSDALE | S8: NA | T8: NA | U8: NA | V8: NA | W8: NA | X8: =VLOOKUP('2014 Farm Bill Calculator'!$C$3,'County Yields'!$A$3:$CA$85,63) -> 137.3333333 | Y8: =VLOOKUP('2014 Farm Bill Calculator'!$C$3,'County Yields'!$A$3:$CA$85,64) -> 144.6666667 | Z8: =VLOOKUP('2014 Farm Bill Calculator'!$C$3,'County Yields'!$A$3:$CA$85,65) -> 146.416 | AA8: =VLOOKUP('2014 Farm Bill Calculator'!$C$3,'County Yields'!$A$3:$CA$85,66) -> 148.8555307 | AB8: =VLOOKUP('2014 Farm Bill Calculator'!$C$3,'County Yields'!$A$3:$CA$85,67) -> 149.7100589
C9: 2018 | D9: =IF('2014 Farm Bill Calculator'!D33>'2014 Farm Bill Calculator'!D$4,IF('2014 Farm Bill Calculator'!D33<D$19,D$19-'2014 Farm Bill Calculator'!D33,0)*'2014 Farm Bill Calculator'!D$38,(D$19-'2014 Farm Bill Calculator'!D$4)*'2014 Farm Bill Calculator'!D$38) -> 0 | E9: =D9*'2014 Farm Bill Calculator'!E$39*0.85 -> 0 | F9: =IF('2014 Farm Bill Calculator'!F33>'2014 Farm Bill Calculator'!F$4,IF('2014 Farm Bill Calculator'!F33<F$19,F$19-'2014 Farm Bill Calculator'!F33,0)*'2014 Farm Bill Calculator'!F$38,(F$19-'2014 Farm Bill Calculator'!F$4)*'2014 Farm Bill Calculator'!F$38) -> 0 | G9: =F9*'2014 Farm Bill Calculator'!G$39*0.85 -> 0 | H9: =IF('2014 Farm Bill Calculator'!H33>'2014 Farm Bill Calculator'!H$4,IF('2014 Farm Bill Calculator'!H33<H$19,H$19-'2014 Farm Bill Calculator'!H33,0)*'2014 Farm Bill Calculator'!H$38,(H$19-'2014 Farm Bill Calculator'!H$4)*'2014 Farm Bill Calculator'!H$38) -> 12.96994143 | I9: =H9*'2014 Farm Bill Calculator'!I$39*0.85 -> 103.3542208 | J9: =E9+G9+I9 -> 103.3542208 | Q9: Soys | R9: ='2014 Farm Bill Calculator'!C3 -> HILLSDALE | S9: NA | T9: NA | U9: NA | V9: NA | W9: NA | X9: =VLOOKUP('2014 Farm Bill Calculator'!$C$3,'County Yields'!$A$3:$CA$85,69) -> 43 | Y9: =VLOOKUP('2014 Farm Bill Calculator'!$C$3,'County Yields'!$A$3:$CA$85,70) -> 43 | Z9: =VLOOKUP('2014 Farm Bill Calculator'!$C$3,'County Yields'!$A$3:$CA$85,71) -> 42.49686667 | AA9: =VLOOKUP('2014 Farm Bill Calculator'!$C$3,'County Yields'!$A$3:$CA$85,72) -> 42.22543373 | AB9: =VLOOKUP('2014 Farm Bill Calculator'!$C$3,'County Yields'!$A$3:$CA$85,73) -> 43.23250468
C10: Totals | D10: =SUM(D5:D9) -> 5.805 | F10: =SUM(F5:F9) -> 0 | G10: =F10*'2014 Farm Bill Calculator'!G$39*0.85 -> 0 | H10: =SUM(H5:H9) -> 83.67133939 | Q10: Wheat | R10: ='2014 Farm Bill Calculator'!C3 -> HILLSDALE | S10: NA | T10: NA | U10: NA | V10: NA | W10: NA | X10: =VLOOKUP('2014 Farm Bill Calculator'!$C$3,'County Yields'!$A$3:$CA$85,75) -> 66.66666667 | Y10: =VLOOKUP('2014 Farm Bill Calculator'!$C$3,'County Yields'!$A$3:$CA$85,76) -> 68.60000102 | Z10: =VLOOKUP('2014 Farm Bill Calculator'!$C$3,'County Yields'!$A$3:$CA$85,77) -> 69.94786789 | AA10: =VLOOKUP('2014 Farm Bill Calculator'!$C$3,'County Yields'!$A$3:$CA$85,78) -> 70.43667054 | AB10: =VLOOKUP('2014 Farm Bill Calculator'!$C$3,'County Yields'!$A$3:$CA$85,79) -> 71.27901111
C11: ARC-CO / Acre before the 85% | Q11: Estimated T-Yield / 10yr Average Yield | R11: 2008 | S11: =S2 -> 2009 | T11: 2010 | U11: 2011 | V11: 2012 | W11: 2013 | X11: 2014 | Y11: 2015 | Z11: 2016 | AA11: 2017 | AB11: 2018
C12: 2014 | D12: =MIN(IF('Background Calculations'!X$47*'Background Calculations'!X$3<E28,E28-('Background Calculations'!X$47*'Background Calculations'!X$3),0),E40) -> 58.64057778 | E12: =D12*'2014 Farm Bill Calculator'!E$39*0.85 -> 3738.336833 | F12: =MIN(IF('Background Calculations'!X$48*'Background Calculations'!X$4<G28,G28-('Background Calculations'!X$48*'Background Calculations'!X$4),0),G40) -> 52.74666667 | G12: =F12*'2014 Farm Bill Calculator'!G$39*0.85 -> 2942.275 | H12: =MIN(IF('Background Calculations'!X$49*'Background Calculations'!X$5<I28,I28-('Background Calculations'!X$49*'Background Calculations'!X$5),0),I40) -> 0 | I12: =H12*'2014 Farm Bill Calculator'!I$39*0.85 -> 0 | J12: =E12+G12+'2014 Farm Bill Calculator'!I566 -> 6680.611833 | Q12: Corn | R12: =AVERAGE(M3:Q3) -> 137 | S12: =AVERAGE(L3:R3) -> 134.4 | T12: =AVERAGE(L3:S3) -> 134.1666667 | U12: =AVERAGE(L3:T3) -> 135 | V12: =AVERAGE(L3:U3) -> 135.5 | W12: 132.5555556 | X12: 136.2 | Y12: 138.2 | Z12: 137.6248 | AA12: 137.3566592 | AB12: 140.8378177
C13: 2015 | D13: =MIN(IF('Background Calculations'!Y$47*'Background Calculations'!Y$3<E29,E29-('Background Calculations'!Y$47*'Background Calculations'!Y$3),0),E41) -> 76.48044444 | E13: =D13*'2014 Farm Bill Calculator'!E$39*0.85 -> 4875.628333 | F13: =MIN(IF('Background Calculations'!Y$48*'Background Calculations'!Y$4<G29,G29-('Background Calculations'!Y$48*'Background Calculations'!Y$4),0),G41) -> 52.50646412 | G13: =F13*'2014 Farm Bill Calculator'!G$39*0.85 -> 2928.876202 | H13: =MIN(IF('Background Calculations'!Y$49*'Background Calculations'!Y$5<I29,I29-('Background Calculations'!Y$49*'Background Calculations'!Y$5),0),I41) -> 39.26834084 | I13: =H13*'2014 Farm Bill Calculator'!I$39*0.85 -> 312.919591 | J13: =E13+G13+'2014 Farm Bill Calculator'!I567 -> 7804.504535 | Q13: Soybeans | R13: =AVERAGE(M4:Q4) -> 42.25 | S13: =AVERAGE(L4:R4) -> 40.3 | T13: =AVERAGE(L4:S4) -> 39.58333333 | U13: =AVERAGE(L4:T4) -> 40.35714286 | V13: 40.8125 | W13: 40.72222222 | X13: 41.35 | Y13: 41.28 | Z13: 41.42906 | AA13: 40.94763012 | AB13: 41.3497514
C14: 2016 | D14: =MIN(IF('Background Calculations'!Z$47*'Background Calculations'!Z$3<E30,E30-('Background Calculations'!Z$47*'Background Calculations'!Z$3),0),E42) -> 47.91200081 | E14: =D14*'2014 Farm Bill Calculator'!E$39*0.85 -> 3054.390051 | F14: =MIN(IF('Background Calculations'!Z$48*'Background Calculations'!Z$4<G30,G30-('Background Calculations'!Z$48*'Background Calculations'!Z$4),0),G42) -> 32.42928273 | G14: =F14*'2014 Farm Bill Calculator'!G$39*0.85 -> 1808.945927 | H14: =MIN(IF('Background Calculations'!Z$49*'Background Calculations'!Z$5<I30,I30-('Background Calculations'!Z$49*'Background Calculations'!Z$5),0),I42) -> 40.22625764 | I14: =H14*'2014 Farm Bill Calculator'!I$39*0.85 -> 320.5529906 | J14: =E14+G14+'2014 Farm Bill Calculator'!I568 -> 4863.335979 | Q14: Wheat | R14: =AVERAGE(M5:Q5) -> 57.75 | S14: =AVERAGE(L5:R5) -> 59 | T14: =AVERAGE(L5:S5) -> 60.16666667 | U14: =AVERAGE(L5:T5) -> 60.42857143 | V14: 61 | W14: 61.88888889 | X14: 63.1 | Y14: 65.28000031 | Z14: 65.78436037 | AA14: 66.53100116 | AB14: 68.2880634
C15: 2017 | D15: =MIN(IF('Background Calculations'!AA$47*'Background Calculations'!AA$3<E31,E31-('Background Calculations'!AA$47*'Background Calculations'!AA$3),0),E43) -> 0 | E15: =D15*'2014 Farm Bill Calculator'!E$39*0.85 -> 0 | F15: =MIN(IF('Background Calculations'!AA$48*'Background Calculations'!AA$4<G31,G31-('Background Calculations'!AA$48*'Background Calculations'!AA$4),0),G43) -> 0 | G15: =F15*'2014 Farm Bill Calculator'!G$39*0.85 -> 0 | H15: =MIN(IF('Background Calculations'!AA$49*'Background Calculations'!AA$5<I31,I31-('Background Calculations'!AA$49*'Background Calculations'!AA$5),0),I43) -> 0 | I15: =H15*'2014 Farm Bill Calculator'!I$39*0.85 -> 0 | J15: =E15+G15+'2014 Farm Bill Calculator'!I569 -> 0 | Q15: 5 YR Average Yield
C16: 2018 | D16: =MIN(IF('Background Calculations'!AB$47*'Background Calculations'!AB$3<E32,E32-('Background Calculations'!AB$47*'Background Calculations'!AB$3),0),E44) -> 0 | E16: =D16*'2014 Farm Bill Calculator'!E$39*0.85 -> 0 | F16: =MIN(IF('Background Calculations'!AB$48*'Background Calculations'!AB$4<G32,G32-('Background Calculations'!AB$48*'Background Calculations'!AB$4),0),G44) -> 0 | G16: =F16*'2014 Farm Bill Calculator'!G$39*0.85 -> 0 | H16: =MIN(IF('Background Calculations'!AB$49*'Background Calculations'!AB$5<I32,I32-('Background Calculations'!AB$49*'Background Calculations'!AB$5),0),I44) -> 0 | I16: =H16*'2014 Farm Bill Calculator'!I$39*0.85 -> 0 | J16: =E16+G16+'2014 Farm Bill Calculator'!I570 -> 0 | Q16: Corn | R16: =AVERAGE(M3:Q3) -> 137 | S16: =AVERAGE(N3:R3) -> 134.4 | T16: =AVERAGE(O3:S3) -> 134 | U16: 131.8 | V16: 129.8 | W16: 129 | X16: 138 | Y16: 142.4 | Z16: 143.4496 | AA16: 144.9133184 | AB16: 152.6756354
C17: Totals | D17: =SUM(D12:D16) -> 183.033023 | F17: =SUM(F12:F16) -> 137.6824135 | H17: =SUM(H12:H16) -> 79.49459848 | Q17: Soybeans | R17: 42.25 | S17: 40.3 | T17: 39.5 | U17: 40.1 | V17: 39.3 | W17: 39.5 | X17: 42.4 | Y17: 43.06 | Z17: 42.75812 | AA17: 42.59526024 | AB17: 43.19950281
C18: PLC | Q18: Wheat | R18: 57.75 | S18: 59 | T18: 62.2 | U18: 61.8 | V18: 62.2 | W18: 65.2 | X18: 67.2 | Y18: 68.36000061 | Z18: 69.76872073 | AA18: 70.86200232 | AB18: 71.37612679
C19: 2014-18 PLC Price Guarantee | D19: 3.7 | F19: 8.4 | H19: 5.5
P20: 70% T-Yield
C21: ARC-CO Benchmark Revenue/ac | D21: =D4 -> CORN | F21: =F4 -> SOYBEANS | H21: =H4 -> WHEAT | Q21: Corn | R21: =0.7*R12 -> 95.9 | S21: 94.08 | T21: 93.91666667 | U21: 94.5 | V21: 94.85 | W21: 92.78888889 | X21: 95.34 | Y21: 96.74 | Z21: 96.33736 | AA21: 96.14966144 | AB21: 98.58647237
C22: 2014 | E22: ='Background Calculations'!X8*'Background Calculations'!X60 -> 726.0355556 | G22: ='Background Calculations'!X61*'Background Calculations'!X9 -> 527.4666667 | I22: ='Background Calculations'!X10*'Background Calculations'!X62 -> 440.2222222 | Q22: Soybeans | R22: =0.7*R13 -> 29.575 | S22: 28.21 | T22: 27.70833333 | U22: 28.25 | V22: 28.56875 | W22: 28.50555556 | X22: 28.945 | Y22: 28.896 | Z22: 29.000342 | AA22: 28.66334108 | AB22: 28.94482598
C23: 2015 | E23: ='Background Calculations'!Y8*'Background Calculations'!Y60 -> 764.8044444 | G23: ='Background Calculations'!Y61*'Background Calculations'!Y9 -> 527.4666667 | I23: ='Background Calculations'!Y10*'Background Calculations'!Y62 -> 459.6200068 | Q23: Wheat | R23: =0.7*R14 -> 40.425 | S23: 41.3 | T23: 42.11666667 | U23: 42.3 | V23: 42.7 | W23: 43.32222222 | X23: 44.17 | Y23: 45.69600021 | Z23: 46.04905226 | AA23: 46.57170081 | AB23: 47.80164438
C24: 2016 | E24: ='Background Calculations'!Z8*'Background Calculations'!Z60 -> 702.7319874 | G24: ='Background Calculations'!Z9*'Background Calculations'!Z61 -> 503.5243296 | I24: ='Background Calculations'!Z10*'Background Calculations'!Z62 -> 468.6507149
C25: 2017 | E25: ='Background Calculations'!AA8*'Background Calculations'!AA60 -> 594.5086133 | G25: ='Background Calculations'!AA9*'Background Calculations'!AA61 -> 454.933599 | I25: ='Background Calculations'!AA10*'Background Calculations'!AA62 -> 431.0724237
C26: 2018 | E26: ='Background Calculations'!AB8*'Background Calculations'!AB60 -> 568.2157371 | G26: ='Background Calculations'!AB9*'Background Calculations'!AB61 -> 415.8182231 | I26: ='Background Calculations'!AB10*'Background Calculations'!AB62 -> 403.6767996
C27: 86% ARC-CO Guarantee/Ac | P27: 75% of 5yr County Average Yield
C28: 2014 | E28: =E22*0.86 -> 624.3905778 | G28: =G22*0.86 -> 453.6213333 | I28: =I22*0.86 -> 378.5911111 | Q28: =Q16 -> Corn | R28: =0.75*R16 -> 102.75 | S28: 100.8 | T28: 100.5 | U28: 98.85 | V28: 97.35 | W28: 96.75 | X28: 103.5 | Y28: 106.8 | Z28: 107.5872 | AA28: 108.6849888 | AB28: 114.5067265
C29: 2015 | E29: =E23*0.86 -> 657.7318222 | G29: =G23*0.86 -> 453.6213333 | I29: =I23*0.86 -> 395.2732059 | Q29: =Q17 -> Soybeans | R29: =0.75*R17 -> 31.6875 | S29: 30.225 | T29: 29.625 | U29: 30.075 | V29: 29.475 | W29: 29.625 | X29: 31.8 | Y29: 32.295 | Z29: 32.06859 | AA29: 31.94644518 | AB29: 32.39962711
C30: 2016 | E30: =E24*0.86 -> 604.3495092 | G30: =G24*0.86 -> 433.0309234 | I30: =I24*0.86 -> 403.0396148 | Q30: =Q18 -> Wheat | R30: =0.75*R18 -> 43.3125 | S30: 44.25 | T30: 46.65 | U30: 46.35 | V30: 46.65 | W30: 48.9 | X30: 50.4 | Y30: 51.27000046 | Z30: 52.32654055 | AA30: 53.14650174 | AB30: 53.53209509
C31: 2017 | E31: =E25*0.86 -> 511.2774074 | G31: =G25*0.86 -> 391.2428952 | I31: =I25*0.86 -> 370.7222844 | R31: =R11 -> 2008 | S31: 2009 | T31: 2010 | U31: 2011 | V31: 2012 | W31: 2013 | X31: 2014 | Y31: 2015 | Z31: 2016 | AA31: 2017 | AB31: 2018
C32: 2018 | E32: =E26*0.86 -> 488.6655339 | G32: =G26*0.86 -> 357.6036719 | I32: =I26*0.86 -> 347.1620477 | P32: Min "75% Yield" for Farm (PLC Yield)
C33: ARC-CO Payment Rate/Ac (before 85%) | Q33: =Q28 -> Corn | R33: =IF('2014 Farm Bill Calculator'!$E12>0.00001,(MAX(R28,'2014 Farm Bill Calculator'!$D12)),"No Crop") -> 124 | S33: =IF('2014 Farm Bill Calculator'!$E13>0.00001,(MAX(S28,'2014 Farm Bill Calculator'!$D13)),"No Crop") -> 133 | T33: =IF('2014 Farm Bill Calculator'!$E14>0.00001,(MAX(T28,'2014 Farm Bill Calculator'!$D14)),"No Crop") -> 140 | U33: =IF('2014 Farm Bill Calculator'!$E15>0.00001,(MAX(U28,'2014 Farm Bill Calculator'!$D15)),"No Crop") -> 139 | V33: =IF('2014 Farm Bill Calculator'!$E16>0.00001,(MAX(V28,'2014 Farm Bill Calculator'!$D16)),"No Crop") -> 109 | W33: =IF('2014 Farm Bill Calculator'!$E17>0.00001,(MAX(W28,'2014 Farm Bill Calculator'!$D17)),"No Crop") -> 169 | X33: =IF('2014 Farm Bill Calculator'!$E18>0.00001,(MAX(X28,'2014 Farm Bill Calculator'!$D18)),"No Crop") -> 155 | Y33: =IF('2014 Farm Bill Calculator'!$E19>0.00001,(MAX(Y28,'2014 Farm Bill Calculator'!$D19)),"No Crop") -> 145.248 | Z33: =IF('2014 Farm Bill Calculator'!$E20>0.00001,(MAX(Z28,'2014 Farm Bill Calculator'!$D20)),"No Crop") -> 146.318592 | AA33: =IF('2014 Farm Bill Calculator'!$E21>0.00001,(MAX(AA28,'2014 Farm Bill Calculator'!$D21)),"No Crop") -> 147.8115848 | AB33: =IF('2014 Farm Bill Calculator'!$E22>0.00001,(MAX(AB28,'2014 Farm Bill Calculator'!$D22)),"No Crop") -> 155.7291481
C34: 2014 | E34: =E28-('2014 Farm Bill Calculator'!D29*'Background Calculations'!X$3) -> 58.64057778 | G34: =G28-('2014 Farm Bill Calculator'!F29*'Background Calculations'!X$4) -> 58.83261499 | I34: =I28-('2014 Farm Bill Calculator'!H29*'Background Calculations'!X$5) -> -51.49090717 | Q34: =Q29 -> Soybeans | R34: =IF('2014 Farm Bill Calculator'!$G12>0.00001,(MAX(R29,'2014 Farm Bill Calculator'!$F12)),"No Crop") -> 32.5 | S34: =IF('2014 Farm Bill Calculator'!$G13>0.00001,(MAX(S29,'2014 Farm Bill Calculator'!$F13)),"No Crop") -> No Crop | T34: =IF('2014 Farm Bill Calculator'!$G14>0.00001,(MAX(T29,'2014 Farm Bill Calculator'!$F14)),"No Crop") -> 45 | U34: =IF('2014 Farm Bill Calculator'!$G15>0.00001,(MAX(U29,'2014 Farm Bill Calculator'!$F15)),"No Crop") -> 44 | V34: =IF('2014 Farm Bill Calculator'!$G16>0.00001,(MAX(V29,'2014 Farm Bill Calculator'!$F16)),"No Crop") -> 40 | W34: =IF('2014 Farm Bill Calculator'!$G17>0.00001,(MAX(W29,'2014 Farm Bill Calculator'!$F17)),"No Crop") -> 47 | X34: =IF('2014 Farm Bill Calculator'!$G18>0.00001,(MAX(X29,'2014 Farm Bill Calculator'!$F18)),"No Crop") -> 39.3 | Y34: =IF('2014 Farm Bill Calculator'!$G19>0.00001,(MAX(Y29,'2014 Farm Bill Calculator'!$F19)),"No Crop") -> 43.4906 | Z34: =IF('2014 Farm Bill Calculator'!$G20>0.00001,(MAX(Z29,'2014 Farm Bill Calculator'!$F20)),"No Crop") -> 43.1857012 | AA34: =IF('2014 Farm Bill Calculator'!$G21>0.00001,(MAX(AA29,'2014 Farm Bill Calculator'!$F21)),"No Crop") -> 43.02121284 | AB34: =IF('2014 Farm Bill Calculator'!$G22>0.00001,(MAX(AB29,'2014 Farm Bill Calculator'!$F22)),"No Crop") -> 43.63149784
C35: 2015 | E35: =E29-('2014 Farm Bill Calculator'!D30*'Background Calculations'!Y$3) -> 117.6021488 | G35: =G29-('2014 Farm Bill Calculator'!F30*'Background Calculations'!Y$4) -> 52.50646412 | I35: =I29-('2014 Farm Bill Calculator'!H30*'Background Calculations'!Y$5) -> 39.26834084 | Q35: =Q30 -> Wheat | R35: =IF('2014 Farm Bill Calculator'!$I12>0.00001,(MAX(R30,'2014 Farm Bill Calculator'!$H12)),"No Crop") -> 80 | S35: =IF('2014 Farm Bill Calculator'!$I13>0.00001,(MAX(S30,'2014 Farm Bill Calculator'!$H13)),"No Crop") -> 80 | T35: =IF('2014 Farm Bill Calculator'!$I14>0.00001,(MAX(T30,'2014 Farm Bill Calculator'!$H14)),"No Crop") -> No Crop | U35: =IF('2014 Farm Bill Calculator'!$I15>0.00001,(MAX(U30,'2014 Farm Bill Calculator'!$H15)),"No Crop") -> No Crop | V35: =IF('2014 Farm Bill Calculator'!$I16>0.00001,(MAX(V30,'2014 Farm Bill Calculator'!$H16)),"No Crop") -> No Crop | W35: =IF('2014 Farm Bill Calculator'!$I17>0.00001,(MAX(W30,'2014 Farm Bill Calculator'!$H17)),"No Crop") -> No Crop | X35: =IF('2014 Farm Bill Calculator'!$I18>0.00001,(MAX(X30,'2014 Farm Bill Calculator'!$H18)),"No Crop") -> No Crop | Y35: =IF('2014 Farm Bill Calculator'!$I19>0.00001,(MAX(Y30,'2014 Farm Bill Calculator'!$H19)),"No Crop") -> No Crop | Z35: =IF('2014 Farm Bill Calculator'!$I20>0.00001,(MAX(Z30,'2014 Farm Bill Calculator'!$H20)),"No Crop") -> No Crop | AA35: =IF('2014 Farm Bill Calculator'!$I21>0.00001,(MAX(AA30,'2014 Farm Bill Calculator'!$H21)),"No Crop") -> No Crop | AB35: =IF('2014 Farm Bill Calculator'!$I22>0.00001,(MAX(AB30,'2014 Farm Bill Calculator'!$H22)),"No Crop") -> No Crop
C36: 2016 | E36: =E30-('2014 Farm Bill Calculator'!D31*'Background Calculations'!Z$3) -> 47.91200081 | G36: =G30-('2014 Farm Bill Calculator'!F31*'Background Calculations'!Z$4) -> 32.42928273 | I36: =I30-('2014 Farm Bill Calculator'!H31*'Background Calculations'!Z$5) -> 40.22625764
C37: 2017 | E37: =E31-('2014 Farm Bill Calculator'!D32*'Background Calculations'!AA$3) -> -59.97512147 | G37: =G31-('2014 Farm Bill Calculator'!F32*'Background Calculations'!AA$4) -> -18.86902201 | I37: =I31-('2014 Farm Bill Calculator'!H32*'Background Calculations'!AA$5) -> -2.379770574
C38: 2018 | E38: =E32-('2014 Farm Bill Calculator'!D33*'Background Calculations'!AB$3) -> -120.3487107 | G38: =G32-('2014 Farm Bill Calculator'!F33*'Background Calculations'!AB$4) -> -65.10764699 | I38: =I32-('2014 Farm Bill Calculator'!H33*'Background Calculations'!AB$5) -> -36.34620297
C39: 10% Maximum Payment ARC-CO/Ac (before 85%) | P39: FOR ARC-IC if not planted = MAX of (County Yield or "70% T Yield") -OR- if planted MAX of (farm actual or 70% T-Yield)
C40: 2014 | E40: =E22*0.1 -> 72.60355556 | G40: =G22*0.1 -> 52.74666667 | I40: =I22*0.1 -> 44.02222222 | Q40: =Q33 -> Corn | R40: =IF('2014 Farm Bill Calculator'!$E12>0.9,MAX(R21,'2014 Farm Bill Calculator'!$D12),MAX(R21,R3)) -> 124 | S40: =IF('2014 Farm Bill Calculator'!$E13>0.9,MAX(S21,'2014 Farm Bill Calculator'!$D13),MAX(S21,S3)) -> 133 | T40: =IF('2014 Farm Bill Calculator'!$E14>0.9,MAX(T21,'2014 Farm Bill Calculator'!$D14),MAX(T21,T3)) -> 140 | U40: =IF('2014 Farm Bill Calculator'!$E15>0.9,MAX(U21,'2014 Farm Bill Calculator'!$D15),MAX(U21,U3)) -> 139 | V40: =IF('2014 Farm Bill Calculator'!$E16>0.9,MAX(V21,'2014 Farm Bill Calculator'!$D16),MAX(V21,V3)) -> 109 | W40: =IF('2014 Farm Bill Calculator'!$E17>0.9,MAX(W21,'2014 Farm Bill Calculator'!$D17),MAX(W21,W3)) -> 169 | X40: =IF('2014 Farm Bill Calculator'!$E18>0.9,MAX(X21,'2014 Farm Bill Calculator'!$D18),MAX(X21,X3)) -> 155 | Y40: =IF('2014 Farm Bill Calculator'!$E19>0.9,MAX(Y21,'2014 Farm Bill Calculator'!$D19),MAX(Y21,Y3)) -> 145.248 | Z40: =IF('2014 Farm Bill Calculator'!$E20>0.9,MAX(Z21,'2014 Farm Bill Calculator'!$D20),MAX(Z21,Z3)) -> 146.318592 | AA40: =IF('2014 Farm Bill Calculator'!$E21>0.9,MAX(AA21,'2014 Farm Bill Calculator'!$D17),MAX(AA21,AA3)) -> 169 | AB40: =IF('2014 Farm Bill Calculator'!$E22>0.9,MAX(AB21,'2014 Farm Bill Calculator'!$D22),MAX(AB21,AB3)) -> 155.7291481
C41: 2015 | E41: =E23*0.1 -> 76.48044444 | G41: =G23*0.1 -> 52.74666667 | I41: =I23*0.1 -> 45.96200068 | Q41: =Q34 -> Soybeans | R41: =IF('2014 Farm Bill Calculator'!$G12>0.9,MAX(R22,'2014 Farm Bill Calculator'!$F12),MAX(R22,R4)) -> 32.5 | S41: =IF('2014 Farm Bill Calculator'!$G13>0.9,MAX(S22,'2014 Farm Bill Calculator'!$F13),MAX(S22,S4)) -> 36 | T41: =IF('2014 Farm Bill Calculator'!$G14>0.9,MAX(T22,'2014 Farm Bill Calculator'!$F14),MAX(T22,T4)) -> 45 | U41: =IF('2014 Farm Bill Calculator'!$G15>0.9,MAX(U22,'2014 Farm Bill Calculator'!$F15),MAX(U22,U4)) -> 44 | V41: =IF('2014 Farm Bill Calculator'!$G16>0.9,MAX(V22,'2014 Farm Bill Calculator'!$F16),MAX(V22,V4)) -> 40 | W41: =IF('2014 Farm Bill Calculator'!$G17>0.9,MAX(W22,'2014 Farm Bill Calculator'!$F17),MAX(W22,W4)) -> 47 | X41: =IF('2014 Farm Bill Calculator'!$G18>0.9,MAX(X22,'2014 Farm Bill Calculator'!$F18),MAX(X22,X4)) -> 39.3 | Y41: =IF('2014 Farm Bill Calculator'!$G19>0.9,MAX(Y22,'2014 Farm Bill Calculator'!$F19),MAX(Y22,Y4)) -> 43.4906 | Z41: =IF('2014 Farm Bill Calculator'!$G20>0.9,MAX(Z22,'2014 Farm Bill Calculator'!$F20),MAX(Z22,Z4)) -> 43.1857012 | AA41: =IF('2014 Farm Bill Calculator'!$G21>0.9,MAX(AA22,'2014 Farm Bill Calculator'!$F21),MAX(AA22,AA4)) -> 43.02121284 | AB41: =IF('2014 Farm Bill Calculator'!$G22>0.9,MAX(AB22,'2014 Farm Bill Calculator'!$F22),MAX(AB22,AB4)) -> 43.63149784
C42: 2016 | E42: =E24*0.1 -> 70.27319874 | G42: =G24*0.1 -> 50.35243296 | I42: =I24*0.1 -> 46.86507149 | Q42: =Q35 -> Wheat | R42: =IF('2014 Farm Bill Calculator'!$I12>0.9,MAX(R23,'2014 Farm Bill Calculator'!$H12),MAX(R23,R5)) -> 80 | S42: =IF('2014 Farm Bill Calculator'!$I13>0.9,MAX(S23,'2014 Farm Bill Calculator'!$H13),MAX(S23,S5)) -> 80 | T42: =IF('2014 Farm Bill Calculator'!$I14>0.9,MAX(T23,'2014 Farm Bill Calculator'!$H14),MAX(T23,T5)) -> 62 | U42: =IF('2014 Farm Bill Calculator'!$I15>0.9,MAX(U23,'2014 Farm Bill Calculator'!$H15),MAX(U23,U5)) -> 65 | V42: =IF('2014 Farm Bill Calculator'!$I16>0.9,MAX(V23,'2014 Farm Bill Calculator'!$H16),MAX(V23,V5)) -> 69 | W42: =IF('2014 Farm Bill Calculator'!$I17>0.9,MAX(W23,'2014 Farm Bill Calculator'!$H17),MAX(W23,W5)) -> 74 | X42: =IF('2014 Farm Bill Calculator'!$I18>0.9,MAX(X23,'2014 Farm Bill Calculator'!$H18),MAX(X23,X5)) -> 71.80000305 | Y42: =IF('2014 Farm Bill Calculator'!$I19>0.9,MAX(Y23,'2014 Farm Bill Calculator'!$H19),MAX(Y23,Y5)) -> 69.04360062 | Z42: =IF('2014 Farm Bill Calculator'!$I20>0.9,MAX(Z23,'2014 Farm Bill Calculator'!$H20),MAX(Z23,Z5)) -> 70.46640794 | AA42: =IF('2014 Farm Bill Calculator'!$I21>0.9,MAX(AA23,'2014 Farm Bill Calculator'!$H21),MAX(AA23,AA5)) -> 71.57062235 | AB42: =IF('2014 Farm Bill Calculator'!$I22>0.9,MAX(AB23,'2014 Farm Bill Calculator'!$H22),MAX(AB23,AB5)) -> 72.08988806
C43: 2017 | E43: =E25*0.1 -> 59.45086133 | G43: =G25*0.1 -> 45.4933599 | I43: =I25*0.1 -> 43.10724237
C44: 2018 | E44: =E26*0.1 -> 56.82157371 | G44: =G26*0.1 -> 41.58182231 | I44: =I26*0.1 -> 40.36767996
C45: ARC-CO PAYMENT /ac (before 85%) | Q45: Actual National Market Year Average Price (MYA)
C46: 2014 | E46: =IF(E34>0,MIN(E34,E40),0) -> 58.64057778 | G46: =IF(G34>0,MIN(G34,G40),0) -> 52.74666667 | I46: =IF(I34>0,MIN(I34,I40),0) -> 0 | S46: 2009 | T46: 2010 | U46: 2011 | V46: 2012 | W46: 2013 | X46: 2014 | Y46: 2015 | Z46: 2016 | AA46: 2017 | AB46: 2018
C47: 2015 | E47: =IF(E35>0,MIN(E35,E41),0) -> 76.48044444 | G47: =IF(G35>0,MIN(G35,G41),0) -> 52.50646412 | I47: =IF(I35>0,MIN(I35,I41),0) -> 39.26834084 | R47: Corn MYA Producer Price 3.70 | S47: 3.55 | T47: 5.18 | U47: 6.22 | V47: 6.89 | W47: ='2014 Farm Bill Calculator'!D28 -> 4.46 | X47: ='2014 Farm Bill Calculator'!D29 -> 3.65 | Y47: ='2014 Farm Bill Calculator'!D30 -> 3.718672019 | Z47: ='2014 Farm Bill Calculator'!D31 -> 3.802917324 | AA47: ='2014 Farm Bill Calculator'!D32 -> 3.864734485 | AB47: ='2014 Farm Bill Calculator'!D33 -> 3.910727389
C48: 2016 | E48: =IF(E36>0,MIN(E36,E42),0) -> 47.91200081 | G48: =IF(G36>0,MIN(G36,G42),0) -> 32.42928273 | I48: =IF(I36>0,MIN(I36,I42),0) -> 40.22625764 | R48: Soy MYA Producer Price 8.40 | S48: 9.59 | T48: 11.3 | U48: 12.5 | V48: 14.4 | W48: ='2014 Farm Bill Calculator'!F28 -> 13 | X48: ='2014 Farm Bill Calculator'!F29 -> 10.04551446 | Y48: ='2014 Farm Bill Calculator'!F30 -> 9.223024498 | Z48: ='2014 Farm Bill Calculator'!F31 -> 9.276256482 | AA48: ='2014 Farm Bill Calculator'!F32 -> 9.532783715 | AB48: ='2014 Farm Bill Calculator'!F33 -> 9.688214703
C49: 2017 | E49: =IF(E37>0,MIN(E37,E43),0) -> 0 | G49: =IF(G37>0,MIN(G37,G43),0) -> 0 | I49: =IF(I37>0,MIN(I37,I43),0) -> 0 | R49: Wheat MYA Producer Price 5.50 | S49: 4.87 | T49: 5.7 | U49: 7.24 | V49: 7.77 | W49: ='2014 Farm Bill Calculator'!H28 -> 6.87 | X49: ='2014 Farm Bill Calculator'!H29 -> 5.99 | Y49: ='2014 Farm Bill Calculator'!H30 -> 5.15623261 | Z49: ='2014 Farm Bill Calculator'!H31 -> 5.148742042 | AA49: ='2014 Farm Bill Calculator'!H32 -> 5.213061487 | AB49: ='2014 Farm Bill Calculator'!H33 -> 5.319861925
C50: 2018 | E50: =IF(E38>0,MIN(E38,E44),0) -> 0 | G50: =IF(G38>0,MIN(G38,G44),0) -> 0 | I50: =IF(I38>0,MIN(I38,I44),0) -> 0
C51: ARC-IC
C52: Individual Farm Actual Revenues
D53: ='2014 Farm Bill Calculator'!D3 -> CORN | F53: ='2014 Farm Bill Calculator'!F3 -> SOYBEANS | H53: ='2014 Farm Bill Calculator'!H3 -> WHEAT | J53: Farm Actual Revenue/ac
C54: 2009 | D54: ='Background Calculations'!S$47*'2014 Farm Bill Calculator'!D13 -> 472.15 | F54: ='2014 Farm Bill Calculator'!F13*'Background Calculations'!S$48 -> 345.24 | H54: ='2014 Farm Bill Calculator'!H13*'Background Calculations'!S$49 -> 389.6 | J54: =D54*D77+F54*F77+H54*H77 -> 451.5125 | Q54: Minimum Prices for Revenue Guarantees
C55: 2010 | D55: ='Background Calculations'!T$47*'2014 Farm Bill Calculator'!D14 -> 725.2 | F55: ='2014 Farm Bill Calculator'!F14*'Background Calculations'!T$48 -> 508.5 | H55: ='2014 Farm Bill Calculator'!H14*'Background Calculations'!T$49 -> 456 | J55: 562.675 | R55: Corn MYA Producer Price 3.70 | S55: =IF(S47<3.7,3.7,S47) -> 3.7 | T55: 5.18 | U55: 6.22 | V55: 6.89 | W55: 4.46 | X55: 3.7 | Y55: 3.718672019 | Z55: 3.802917324 | AA55: 3.864734485 | AB55: 3.910727389
C56: 2011 | D56: ='Background Calculations'!U$47*'2014 Farm Bill Calculator'!D15 -> 864.58 | F56: ='2014 Farm Bill Calculator'!F15*'Background Calculations'!U$48 -> 550 | H56: ='2014 Farm Bill Calculator'!H15*'Background Calculations'!U$49 -> 651.6 | J56: 801.664 | R56: Soy MYA Producer Price 8.40 | S56: =IF(S48<8.4,8.4,S48) -> 9.59 | T56: 11.3 | U56: 12.5 | V56: 14.4 | W56: 13 | X56: 10.04551446 | Y56: 9.223024498 | Z56: 9.276256482 | AA56: 9.532783715 | AB56: 9.688214703
C57: 2012 | D57: ='Background Calculations'!V$47*'2014 Farm Bill Calculator'!D16 -> 751.01 | F57: ='2014 Farm Bill Calculator'!F16*'Background Calculations'!V$48 -> 576 | H57: ='2014 Farm Bill Calculator'!H16*'Background Calculations'!V$49 -> 536.13 | J57: 611.002 | R57: Wheat MYA Producer Price 5.50 | S57: =IF(S49<5.5,5.5,S49) -> 5.5 | T57: 5.7 | U57: 7.24 | V57: 7.77 | W57: 6.87 | X57: 5.99 | Y57: 5.5 | Z57: 5.5 | AA57: 5.5 | AB57: 5.5
C58: 2013 | D58: ='Background Calculations'!W$47*'2014 Farm Bill Calculator'!D17 -> 753.74 | F58: ='2014 Farm Bill Calculator'!F17*'Background Calculations'!W$48 -> 611 | H58: ='2014 Farm Bill Calculator'!H17*'Background Calculations'!W$49 -> 618.3 | J58: 725.192
C59: 2014 | D59: ='Background Calculations'!X$47*'2014 Farm Bill Calculator'!D18 -> 565.75 | F59: ='2014 Farm Bill Calculator'!F18*'Background Calculations'!X$48 -> 394.7887183 | H59: ='2014 Farm Bill Calculator'!H18*'Background Calculations'!X$49 -> 430.0820183 | J59: 428.9809747 | X59: Olympic Price | Y59: Olympic Price | Z59: Olympic Price | AA59: Olympic Price | AB59: Olympic Price
C60: 2015 | D60: ='Background Calculations'!Y$47*'2014 Farm Bill Calculator'!D19 -> 540.1296734 | F60: ='2014 Farm Bill Calculator'!F19*'Background Calculations'!Y$48 -> 401.1148692 | H60: ='2014 Farm Bill Calculator'!H19*'Background Calculations'!Y$49 -> 417.4568453 | J60: 512.3267126 | W60: Corn | X60: =(SUM(S55:W55)-MAX(S55:W55)-MIN(S55:W55))/3 -> 5.286666667 | Y60: 5.286666667 | Z60: 4.79955734 | AA60: 3.993863114 | AB60: 3.795441276
C61: 2016 | D61: ='Background Calculations'!Z$47*'2014 Farm Bill Calculator'!D20 -> 556.4375084 | F61: ='2014 Farm Bill Calculator'!F20*'Background Calculations'!Z$48 -> 400.6016407 | H61: ='2014 Farm Bill Calculator'!H20*'Background Calculations'!Z$49 -> 417.8505057 | J61: 431.7688142 | W61: Soys | X61: 12.26666667 | Y61: 12.26666667 | Z61: 11.84850482 | AA61: 10.77392365 | AB61: 9.618184886
C62: 2017 | D62: ='Background Calculations'!AA$47*'2014 Farm Bill Calculator'!D21 -> 571.2525289 | F62: ='2014 Farm Bill Calculator'!F21*'Background Calculations'!AA$48 -> 410.1119172 | H62: ='2014 Farm Bill Calculator'!H21*'Background Calculations'!AA$49 -> 413.7571684 | J62: 539.0244066 | W62: Wheat | X62: 6.603333333 | Y62: 6.7 | Z62: 6.7 | AA62: 6.12 | AB62: 5.663333333
C63: 2018 | D63: ='Background Calculations'!AB$47*'2014 Farm Bill Calculator'!D22 -> 609.0142446 | F63: ='2014 Farm Bill Calculator'!F22*'Background Calculations'!AB$48 -> 422.7113189 | H63: ='2014 Farm Bill Calculator'!H22*'Background Calculations'!AB$49 -> 433.3768485 | J63: 459.971904
C65: Individual Farm Benchmark Revenues
C66: 2009 | D66: ='Background Calculations'!S$55*'Background Calculations'!S$40 -> 492.1 | F66: ='Background Calculations'!$S$56*'Background Calculations'!$S$41 -> 345.24 | H66: ='Background Calculations'!$S$57*'Background Calculations'!$S$42 -> 440
C67: 2010 | D67: ='Background Calculations'!T$55*'Background Calculations'!T$40 -> 725.2 | F67: ='Background Calculations'!T$56*'Background Calculations'!T$41 -> 508.5 | H67: ='Background Calculations'!$T$57*'Background Calculations'!$T$42 -> 353.4
C68: 2011 | D68: ='Background Calculations'!U$55*'Background Calculations'!U$40 -> 864.58 | F68: ='Background Calculations'!U$56*'Background Calculations'!U$41 -> 550 | H68: ='Background Calculations'!$U$57*'Background Calculations'!$U$42 -> 470.6
C69: 2012 | D69: ='Background Calculations'!V$55*'Background Calculations'!V$40 -> 751.01 | F69: ='Background Calculations'!V$56*'Background Calculations'!V$41 -> 576 | H69: ='Background Calculations'!$V$57*'Background Calculations'!$V$42 -> 536.13
C70: 2013 | D70: ='Background Calculations'!W$55*'Background Calculations'!W$40 -> 753.74 | F70: ='Background Calculations'!W$56*'Background Calculations'!W$41 -> 611 | H70: ='Background Calculations'!$W$57*'Background Calculations'!$W$42 -> 508.38
C71: 2014 | D71: ='Background Calculations'!X$55*'Background Calculations'!X$40 -> 573.5 | F71: ='Background Calculations'!X$56*'Background Calculations'!X$41 -> 394.7887183 | H71: ='Background Calculations'!$X$57*'Background Calculations'!$X$42 -> 430.0820183
C72: 2015 | D72: ='Background Calculations'!Y$55*'Background Calculations'!Y$40 -> 540.1296734 | F72: ='Background Calculations'!Y$56*'Background Calculations'!Y$41 -> 401.1148692 | H72: ='Background Calculations'!$Y$57*'Background Calculations'!$Y$42 -> 379.7398034
C73: 2016 | D73: ='Background Calculations'!Z$55*'Background Calculations'!Z$40 -> 556.4375084 | F73: ='Background Calculations'!Z$56*'Background Calculations'!Z$41 -> 400.6016407 | H73: ='Background Calculations'!$Z$57*'Background Calculations'!$Z$42 -> 387.5652437
C74: 2017 | D74: ='Background Calculations'!AA$55*'Background Calculations'!AA$40 -> 653.1401279 | F74: ='Background Calculations'!AA$56*'Background Calculations'!AA$41 -> 410.1119172 | H74: ='Background Calculations'!$AA$57*'Background Calculations'!$AA$42 -> 393.6384229
C75: 2018 | D75: ='Background Calculations'!AB$55*'Background Calculations'!AB$40 -> 609.0142446 | F75: ='Background Calculations'!AB$56*'Background Calculations'!AB$41 -> 422.7113189 | H75: ='Background Calculations'!$AB$57*'Background Calculations'!$AB$42 -> 396.4943843
C76: Percent Planted by Year
C77: 2009 | D77: ='2014 Farm Bill Calculator'!E13/'2014 Farm Bill Calculator'!$J13 -> 0.75 | F77: ='2014 Farm Bill Calculator'!G13/'2014 Farm Bill Calculator'!$J13 -> 0 | H77: ='2014 Farm Bill Calculator'!I13/'2014 Farm Bill Calculator'!$J13 -> 0.25
C78: 2010 | D78: ='2014 Farm Bill Calculator'!E14/'2014 Farm Bill Calculator'!$J14 -> 0.25 | F78: ='2014 Farm Bill Calculator'!G14/'2014 Farm Bill Calculator'!$J14 -> 0.75 | H78: ='2014 Farm Bill Calculator'!I14/'2014 Farm Bill Calculator'!$J14 -> 0
C79: 2011 | D79: ='2014 Farm Bill Calculator'!E15/'2014 Farm Bill Calculator'!$J15 -> 0.8 | F79: ='2014 Farm Bill Calculator'!G15/'2014 Farm Bill Calculator'!$J15 -> 0.2 | H79: ='2014 Farm Bill Calculator'!I15/'2014 Farm Bill Calculator'!$J15 -> 0
C80: 2012 | D80: ='2014 Farm Bill Calculator'!E16/'2014 Farm Bill Calculator'!$J16 -> 0.2 | F80: ='2014 Farm Bill Calculator'!G16/'2014 Farm Bill Calculator'!$J16 -> 0.8 | H80: ='2014 Farm Bill Calculator'!I16/'2014 Farm Bill Calculator'!$J16 -> 0
C81: 2013 | D81: ='2014 Farm Bill Calculator'!E17/'2014 Farm Bill Calculator'!$J17 -> 0.8 | F81: ='2014 Farm Bill Calculator'!G17/'2014 Farm Bill Calculator'!$J17 -> 0.2 | H81: ='2014 Farm Bill Calculator'!I17/'2014 Farm Bill Calculator'!$J17 -> 0
C82: 2014 | D82: ='2014 Farm Bill Calculator'!E18/'2014 Farm Bill Calculator'!$J18 -> 0.2 | F82: ='2014 Farm Bill Calculator'!G18/'2014 Farm Bill Calculator'!$J18 -> 0.8 | H82: ='2014 Farm Bill Calculator'!I18/'2014 Farm Bill Calculator'!$J18 -> 0
C83: 2015 | D83: ='2014 Farm Bill Calculator'!E19/'2014 Farm Bill Calculator'!$J19 -> 0.8 | F83: ='2014 Farm Bill Calculator'!G19/'2014 Farm Bill Calculator'!$J19 -> 0.2 | H83: ='2014 Farm Bill Calculator'!I19/'2014 Farm Bill Calculator'!$J19 -> 0
C84: 2016 | D84: ='2014 Farm Bill Calculator'!E20/'2014 Farm Bill Calculator'!$J20 -> 0.2 | F84: ='2014 Farm Bill Calculator'!G20/'2014 Farm Bill Calculator'!$J20 -> 0.8 | H84: ='2014 Farm Bill Calculator'!I20/'2014 Farm Bill Calculator'!$J20 -> 0
C85: 2017 | D85: ='2014 Farm Bill Calculator'!E21/'2014 Farm Bill Calculator'!$J21 -> 0.8 | F85: ='2014 Farm Bill Calculator'!G21/'2014 Farm Bill Calculator'!$J21 -> 0.2 | H85: ='2014 Farm Bill Calculator'!I21/'2014 Farm Bill Calculator'!$J21 -> 0
C86: 2018 | D86: ='2014 Farm Bill Calculator'!E22/'2014 Farm Bill Calculator'!$J22 -> 0.2 | F86: ='2014 Farm Bill Calculator'!G22/'2014 Farm Bill Calculator'!$J22 -> 0.8 | H86: ='2014 Farm Bill Calculator'!I22/'2014 Farm Bill Calculator'!$J22 -> 0
C88: ARC-IC OLYMPIC AVERAGES | H88: ARC-IC | J88: ARC-IC
D89: Corn | E89: Soys | F89: Wheat | H89: Benchmark Rev | J89: Coverage Guarantee
C90: 2014 | D90: =(SUM(D66:D70)-MIN(D66:D70)-MAX(D66:D70))/3 -> 743.3166667 | E90: =(SUM(F66:F70)-MIN(F66:F70)-MAX(F66:F70))/3 -> 544.8333333 | F90: =(SUM(H66:H70)-MIN(H66:H70)-MAX(H66:H70))/3 -> 472.9933333 | H90: =D90*D82+E90*F82+F90*H82 -> 584.53 | J90: =0.86*H90 -> 502.6958
C91: 2015 | D91: =(SUM(D67:D71)-MIN(D67:D71)-MAX(D67:D71))/3 -> 743.3166667 | E91: =(SUM(F67:F71)-MIN(F67:F71)-MAX(F67:F71))/3 -> 544.8333333 | F91: =(SUM(H67:H71)-MIN(H67:H71)-MAX(H67:H71))/3 -> 469.6873394 | H91: =D91*D83+E91*F83+F91*H83 -> 703.62 | J91: =0.86*H91 -> 605.1132
C92: 2016 | D92: =(SUM(D68:D72)-MIN(D68:D72)-MAX(D68:D72))/3 -> 692.75 | E92: =(SUM(F68:F72)-MIN(F68:F72)-MAX(F68:F72))/3 -> 509.0382897 | F92: =(SUM(H68:H72)-MIN(H68:H72)-MAX(H68:H72))/3 -> 469.6873394 | H92: =D92*D84+E92*F84+F92*H84 -> 545.7806318 | J92: =0.86*H92 -> 469.3713433
C93: 2017 | D93: =(SUM(D69:D73)-MIN(D69:D73)-MAX(D69:D73))/3 -> 626.9825028 | E93: =(SUM(F69:F73)-MIN(F69:F73)-MAX(F69:F73))/3 -> 459.2388366 | F93: =(SUM(H69:H73)-MIN(H69:H73)-MAX(H69:H73))/3 -> 442.0090873 | H93: =D93*D85+E93*F85+F93*H85 -> 593.4337696 | J93: =0.86*H93 -> 510.3530418
C94: 2018 | D94: =(SUM(D70:D74)-MIN(D70:D74)-MAX(D70:D74))/3 -> 594.3592121 | E94: =(SUM(F70:F74)-MIN(F70:F74)-MAX(F70:F74))/3 -> 403.942809 | F94: =(SUM(H70:H74)-MIN(H70:H74)-MAX(H70:H74))/3 -> 403.761895 | H94: =D94*D86+E94*F86+F94*H86 -> 442.0260896 | J94: =0.86*H94 -> 380.1424371
C95: ARC-IC | D95: Payment Rate/Ac(before 65%) | F95: Max Rate/Ac(before65%) | H95: Payment/Ac(before 65%) | J95: Farm Payment @ 65% of Base Acres
C96: 2014 | D96: =J90-J59 -> 73.71482532 | F96: =H90*0.1 -> 58.453 | H96: =IF(D96>0.01,MIN(D96,F96),0) -> 58.453 | J96: =IF(H96>0,H96*'2014 Farm Bill Calculator'!$J$6*0.65,0) -> 5699.1675
C97: 2015 | D97: =J91-J60 -> 92.78648744 | F97: =H91*0.1 -> 70.362 | H97: =IF(D97>0.01,MIN(D97,F97),0) -> 70.362 | J97: =IF(H97>0,H97*'2014 Farm Bill Calculator'!$J$6*0.65,0) -> 6860.295
C98: 2016 | D98: =J92-J61 -> 37.60252911 | F98: =H92*0.1 -> 54.57806318 | H98: =IF(D98>0.01,MIN(D98,F98),0) -> 37.60252911 | J98: =IF(H98>0,H98*'2014 Farm Bill Calculator'!$J$6*0.65,0) -> 3666.246588
C99: 2017 | D99: =J93-J62 -> -28.67136474 | F99: =H93*0.1 -> 59.34337696 | H99: =IF(D99>0.01,MIN(D99,F99),0) -> 0 | J99: =IF(H99>0,H99*'2014 Farm Bill Calculator'!$J$6*0.65,0) -> 0
C100: 2018 | D100: =J94-J63 -> -79.82946691 | F100: =H94*0.1 -> 44.20260896 | H100: =IF(D100>0.01,MIN(D100,F100),0) -> 0 | J100: =IF(H100>0,H100*'2014 Farm Bill Calculator'!$J$6*0.65,0) -> 0

Sheet County Yields (hidden)
A1: 1 | B1: 2 | C1: 3 | D1: 4 | E1: 5 | F1: 6 | G1: 7 | H1: 8 | I1: 9 | J1: 10 | K1: 11 | L1: 12 | M1: 13 | N1: 14 | O1: 15 | P1: 16 | Q1: 17 | R1: 18 | S1: 19 | T1: 20 | U1: 21 | V1: 22 | W1: 23 | X1: 24 | Y1: 25 | Z1: 26 | AA1: 27 | AB1: 28 | AC1: 29 | AD1: 30 | AE1: 31 | AF1: 32 | AG1: 33 | AH1: 34 | AI1: 35 | AJ1: 36 | AK1: 37 | AL1: 38 | AM1: 39 | AN1: 40 | AO1: 41 | AP1: 42 | AQ1: 43 | AR1: 44 | AS1: 45 | AT1: 46 | AU1: 47 | AV1: 48 | AW1: 49 | AX1: 50 | AY1: 51 | AZ1: 52 | BA1: 53 | BB1: 54 | BC1: 55 | BD1: 56 | BE1: 57 | BF1: 58 | BG1: 59 | BH1: 60 | BI1: 61 | BJ1: 62 | BK1: 63 | BL1: 64 | BM1: 65 | BN1: 66 | BO1: 67 | BP1: 68 | BQ1: 69 | BR1: 70 | BS1: 71 | BT1: 72 | BU1: 73 | BV1: 74 | BW1: 75 | BX1: 76 | BY1: 77 | BZ1: 78 | CA1: 79 | CB1: 80
A2: county | B2: Yield2004 | C2: Yield2005 | D2: Yield2006 | E2: Yield2007 | F2: Yield2008 | G2: CY09 | H2: CY10 | I2: CY11 | J2: CY12 | K2: CY13 | L2: CY14 | M2: CY15 | N2: CY16 | O2: CY17 | P2: CY18 | Q2: 10yr 14 | R2: 10yr 15 | S2: 10yr 16 | T2: 10yr 17 | U2: 10yr 18 | V2: Yield2004 | W2: Yield2005 | X2: Yield2006 | Y2: Yield2007 | Z2: Yield2008 | AA2: SY09 | AB2: SY10 | AC2: SY11 | AD2: SY12 | AE2: SY13 | AF2: SY14 | AG2: SY15 | AH2: SY16 | AI2: SY17 | AJ2: SY18 | AK2: 10yr 14 | AL2: 10yr 15 | AM2: 10yr 16 | AN2: 10yr 17 | AO2: 10yr 18 | AP2: Yield2004 | AQ2: Yield2005 | AR2: Yield2006 | AS2: Yield2007 | AT2: Yield2008 | AU2: WY09 | AV2: WY10 | AW2: WY11 | AX2: WY12 | AY2: WY13 | AZ2: WY14 | BA2: WY15 | BB2: WY16 | BC2: WY17 | BD2: WY18 | BE2: 10yr 14 | BF2: 10yr 15 | BG2: 10yr 16 | BH2: 10yr 17 | BI2: 10yr 18 | BK2: COAY14 | BL2: COAY15 | BM2: COAY16 | BN2: COAY17 | BO2: COAY18 | BQ2: SOAY14 | BR2: SOAY15 | BS2: SOAY16 | BT2: SOAY17 | BU2: SOAY18 | BW2: WOAY14 | BX2: WOAY15 | BY2: WOAY16 | BZ2: WOAY17 | CA2: WOAY18
A3: ALCONA | C3: 147 | G3: 73 | H3: 131 | I3: 80 | J3: 69 | K3: 120 | L3: 109.3 | M3: =AVERAGE(H3:L3)*(1+'2014 Farm Bill Calculator'!$B$20) -> 103.8972 | N3: =AVERAGE(I3:M3)*(1+'2014 Farm Bill Calculator'!$B$20) -> 98.3682288 | O3: =AVERAGE(J3:N3)*(1+'2014 Farm Bill Calculator'!$B$20) -> 102.1153475 | P3: =AVERAGE(K3:O3)*(1+'2014 Farm Bill Calculator'!$B$20) -> 108.8708784 | Q3: =AVERAGE(B3:K3) -> 103.3333333 | R3: =AVERAGE(C3:L3) -> 104.1857143 | S3: 98.02817143 | T3: 98.0706786 | U3: 98.52008625 | AA3: 0.1 | AB3: =AA3 -> 0.1 | AC3: 0.1 | AD3: 0.1 | AE3: 0.1 | AF3: =AVERAGE(AA3:AE3)*(1+'2014 Farm Bill Calculator'!$B$21) -> 0.101 | AG3: =AVERAGE(AB3:AF3)*(1+'2014 Farm Bill Calculator'!$B$21) -> 0.101202 | AH3: =AVERAGE(AC3:AG3)*(1+'2014 Farm Bill Calculator'!$B$21) -> 0.101444804 | AI3: =AVERAGE(AD3:AH3)*(1+'2014 Farm Bill Calculator'!$B$21) -> 0.1017366544 | AJ3: =AVERAGE(AE3:AI3)*(1+'2014 Farm Bill Calculator'!$B$21) -> 0.1020874586 | AK3: =AVERAGE(V3:AE3) -> 0.1 | AL3: =AVERAGE(W3:AF3) -> 0.1001666667 | AM3: =AVERAGE(X3:AG3) -> 0.1003145714 | AN3: =AVERAGE(Y3:AH3) -> 0.1004558505 | AO3: =AVERAGE(Z3:AI3) -> 0.100598162 | AP3: 49 | AQ3: 68 | AS3: 64 | AT3: 60.5 | AU3: 49 | AV3: 66 | AW3: 70 | AX3: 68 | AY3: 40 | AZ3: =AVERAGE(AU3:AY3)*(1+'2014 Farm Bill Calculator'!$B$22) -> 59.186 | BA3: =AVERAGE(AV3:AZ3)*(1+'2014 Farm Bill Calculator'!$B$22) -> 61.243572 | BB3: =AVERAGE(AW3:BA3)*(1+'2014 Farm Bill Calculator'!$B$22) -> 60.28277354 | BC3: =AVERAGE(AX3:BB3)*(1+'2014 Farm Bill Calculator'!$B$22) -> 58.3198938 | BD3: =AVERAGE(AY3:BC3)*(1+'2014 Farm Bill Calculator'!$B$22) -> 56.36451235 | BE3: =AVERAGE(AP3:AY3) -> 59.38888889 | BF3: =AVERAGE(AQ3:AZ3) -> 60.52066667 | BG3: =AVERAGE(AR3:BA3) -> 59.76995244 | BH3: =AVERAGE(AS3:BB3) -> 59.82123455 | BI3: =AVERAGE(AT3:BC3) -> 59.25322393 | BK3: =IF(COUNT(G3:K3)=5,((SUM(G3:K3)-MIN(G3:K3)-MAX(G3:K3))/3),"Data Error") -> 91 | BL3: =IF(COUNT(H3:L3)=5,((SUM(H3:L3)-MIN(H3:L3)-MAX(H3:L3))/3),"Data Error") -> 103.1 | BM3: =IF(COUNT(I3:M3)=5,((SUM(I3:M3)-MIN(I3:M3)-MAX(I3:M3))/3),"Data Error") -> 97.7324 | BN3: =IF(COUNT(J3:N3)=5,((SUM(J3:N3)-MIN(J3:N3)-MAX(J3:N3))/3),"Data Error") -> 103.8551429 | BO3: =IF(COUNT(K3:O3)=5,((SUM(K3:O3)-MIN(K3:O3)-MAX(K3:O3))/3),"Data Error") -> 105.1041825 | BQ3: =IF(COUNT(AA3:AE3)=5,((SUM(AA3:AE3)-MIN(AA3:AE3)-MAX(AA3:AE3))/3),"Data Error") -> 0.1 | BR3: =IF(COUNT(AB3:AF3)=5,((SUM(AB3:AF3)-MIN(AB3:AF3)-MAX(AB3:AF3))/3),"Data Error") -> 0.1 | BS3: =IF(COUNT(AC3:AG3)=5,((SUM(AC3:AG3)-MIN(AC3:AG3)-MAX(AC3:AG3))/3),"Data Error") -> 0.1003333333 | BT3: =IF(COUNT(AD3:AH3)=5,((SUM(AD3:AH3)-MIN(AD3:AH3)-MAX(AD3:AH3))/3),"Data Error") -> 0.100734 | BU3: =IF(COUNT(AE3:AI3)=5,((SUM(AE3:AI3)-MIN(AE3:AI3)-MAX(AE3:AI3))/3),"Data Error") -> 0.1012156013 | BW3: =IF(COUNT(AU3:AY3)=5,((SUM(AU3:AY3)-MIN(AU3:AY3)-MAX(AU3:AY3))/3),"Data Error") -> 61 | BX3: =IF(COUNT(AV3:AZ3)=5,((SUM(AV3:AZ3)-MIN(AV3:AZ3)-MAX(AV3:AZ3))/3),"Data Error") -> 64.39533333 | BY3: 62.80985733 | BZ3: 60.23744851 | CA3: =IF(COUNT(AY3:BC3)=5,((SUM(AY3:BC3)-MIN(AY3:BC3)-MAX(AY3:BC3))/3),"Data Error") -> 59.26288911
A4: ALGER | G4: 0.1 | H4: =G4 -> 0.1 | I4: =H4 -> 0.1 | J4: =I4 -> 0.1 | K4: =J4 -> 0.1 | L4: =AVERAGE(G4:K4)*(1+'2014 Farm Bill Calculator'!$B$20) -> 0.102 | M4: =AVERAGE(H4:L4)*(1+'2014 Farm Bill Calculator'!$B$20) -> 0.102408 | N4: =AVERAGE(I4:M4)*(1+'2014 Farm Bill Calculator'!$B$20) -> 0.102899232 | O4: =AVERAGE(J4:N4)*(1+'2014 Farm Bill Calculator'!$B$20) -> 0.1034906753 | P4: =AVERAGE(K4:O4)*(1+'2014 Farm Bill Calculator'!$B$20) -> 0.1042027731 | Q4: =AVERAGE(B4:K4) -> 0.1 | R4: =AVERAGE(C4:L4) -> 0.1003333333 | S4: =AVERAGE(D4:M4) -> 0.1006297143 | T4: =AVERAGE(E4:N4) -> 0.100913404 | U4: =AVERAGE(F4:O4) -> 0.1011997675 | AA4: 0.1 | AB4: 0.1 | AC4: 0.1 | AD4: 0.1 | AE4: 0.1 | AF4: =AVERAGE(AA4:AE4)*(1+'2014 Farm Bill Calculator'!$B$21) -> 0.101 | AG4: =AVERAGE(AB4:AF4)*(1+'2014 Farm Bill Calculator'!$B$21) -> 0.101202 | AH4: =AVERAGE(AC4:AG4)*(1+'2014 Farm Bill Calculator'!$B$21) -> 0.101444804 | AI4: =AVERAGE(AD4:AH4)*(1+'2014 Farm Bill Calculator'!$B$21) -> 0.1017366544 | AJ4: =AVERAGE(AE4:AI4)*(1+'2014 Farm Bill Calculator'!$B$21) -> 0.1020874586 | AK4: 0.1 | AL4: 0.1001666667 | AM4: 0.1003145714 | AN4: 0.1004558505 | AO4: =AVERAGE(Z4:AI4) -> 0.100598162 | AU4: 0.1 | AV4: =AU4 -> 0.1 | AW4: =AV4 -> 0.1 | AX4: =AW4 -> 0.1 | AY4: =AX4 -> 0.1 | AZ4: =AVERAGE(AU4:AY4)*(1+'2014 Farm Bill Calculator'!$B$22) -> 0.101 | BA4: =AVERAGE(AV4:AZ4)*(1+'2014 Farm Bill Calculator'!$B$22) -> 0.101202 | BB4: =AVERAGE(AW4:BA4)*(1+'2014 Farm Bill Calculator'!$B$22) -> 0.101444804 | BC4: =AVERAGE(AX4:BB4)*(1+'2014 Farm Bill Calculator'!$B$22) -> 0.1017366544 | BD4: =AVERAGE(AY4:BC4)*(1+'2014 Farm Bill Calculator'!$B$22) -> 0.1020874586 | BE4: 0.1 | BF4: 0.1001666667 | BG4: 0.1003145714 | BH4: 0.1004558505 | BI4: 0.100598162 | BK4: 0.1 | BL4: 0.1 | BM4: 0.1006666667 | BN4: 0.1014693333 | BO4: 0.102435744 | BQ4: 0.1 | BR4: 0.1 | BS4: 0.1003333333 | BT4: 0.100734 | BU4: 0.1012156013 | BW4: =IF(COUNT(AU4:AY4)=5,((SUM(AU4:AY4)-MIN(AU4:AY4)-MAX(AU4:AY4))/3),"Data Error") -> 0.1 | BX4: =IF(COUNT(AV4:AZ4)=5,((SUM(AV4:AZ4)-MIN(AV4:AZ4)-MAX(AV4:AZ4))/3),"Data Error") -> 0.1 | BY4: =IF(COUNT(AW4:BA4)=5,((SUM(AW4:BA4)-MIN(AW4:BA4)-MAX(AW4:BA4))/3),"Data Error") -> 0.1003333333 | BZ4: =IF(COUNT(AX4:BB4)=5,((SUM(AX4:BB4)-MIN(AX4:BB4)-MAX(AX4:BB4))/3),"Data Error") -> 0.100734 | CA4: 0.1012156013
A5: ALLEGAN | B5: 150 | C5: 146 | D5: 145 | E5: 110 | F5: 147 | G5: 162 | H5: 151 | I5: 175 | J5: 111 | K5: 151 | L5: =AVERAGE(G5:K5)*(1+'2014 Farm Bill Calculator'!$B$20) -> 153 | M5: =AVERAGE(H5:L5)*(1+'2014 Farm Bill Calculator'!$B$20) -> 151.164 | N5: =AVERAGE(I5:M5)*(1+'2014 Farm Bill Calculator'!$B$20) -> 151.197456 | O5: =AVERAGE(J5:N5)*(1+'2014 Farm Bill Calculator'!$B$20) -> 146.341737 | P5: =AVERAGE(K5:O5)*(1+'2014 Farm Bill Calculator'!$B$20) -> 153.5514514 | Q5: 144.8 | R5: 145.1 | S5: 145.6164 | T5: 146.2361456 | U5: 149.8703193 | V5: 42 | W5: 41 | X5: 46 | Y5: 39 | Z5: 35.5 | AA5: 45 | AB5: 46 | AC5: 48 | AD5: 39 | AE5: 43 | AF5: 42.8 | AG5: =AVERAGE(AB5:AF5)*(1+'2014 Farm Bill Calculator'!$B$21) -> 44.1976 | AH5: =AVERAGE(AC5:AG5)*(1+'2014 Farm Bill Calculator'!$B$21) -> 43.8335152 | AI5: =AVERAGE(AD5:AH5)*(1+'2014 Farm Bill Calculator'!$B$21) -> 42.99188527 | AJ5: =AVERAGE(AE5:AI5)*(1+'2014 Farm Bill Calculator'!$B$21) -> 43.7982461 | AK5: 42.45 | AL5: 42.53 | AM5: 42.84976 | AN5: 42.63311152 | AO5: 43.03230005 | AP5: 59 | AQ5: 66 | AR5: 71 | AS5: 48 | AT5: 62.5 | AU5: 58 | AV5: 55 | AW5: 75 | AX5: 64 | AY5: 68 | AZ5: 69.09999847 | BA5: =AVERAGE(AV5:AZ5)*(1+'2014 Farm Bill Calculator'!$B$22) -> 66.88219969 | BB5: =AVERAGE(AW5:BA5)*(1+'2014 Farm Bill Calculator'!$B$22) -> 69.28240403 | BC5: =AVERAGE(AX5:BB5)*(1+'2014 Farm Bill Calculator'!$B$22) -> 68.12744964 | BD5: =AVERAGE(AY5:BC5)*(1+'2014 Farm Bill Calculator'!$B$22) -> 68.96119447 | BE5: 62.65 | BF5: 63.65999985 | BG5: 63.74821982 | BH5: 63.57646022 | BI5: 65.58920518 | BK5: 154.6666667 | BL5: 151.6666667 | BM5: 151.7213333 | BN5: 151.1204853 | BO5: 151.1204853 | BQ5: 44.66666667 | BR5: 43.93333333 | BS5: 43.33253333 | BT5: 43.21117173 | BU5: 43.27513349 | BW5: 63.33333333 | BX5: 67.03333282 | BY5: 67.99406606 | BZ5: 67.99406606 | CA5: 68.40914937
A6: ALPENA | B6: 92 | C6: 119 | D6: 130 | E6: 82 | F6: 109 | G6: 97 | H6: 126 | I6: 111 | J6: 108 | K6: 99 | L6: 114.1 | M6: =AVERAGE(H6:L6)*(1+'2014 Farm Bill Calculator'!$B$20) -> 113.8524 | N6: =AVERAGE(I6:M6)*(1+'2014 Farm Bill Calculator'!$B$20) -> 111.3742896 | O6: =AVERAGE(J6:N6)*(1+'2014 Farm Bill Calculator'!$B$20) -> 111.4506447 | P6: =AVERAGE(K6:O6)*(1+'2014 Farm Bill Calculator'!$B$20) -> 112.1545762 | Q6: 107.3 | R6: 109.51 | S6: 108.99524 | T6: 107.132669 | U6: 110.0777334 | V6: 20 | W6: 33 | X6: 37 | Y6: 25 | Z6: 31.5 | AA6: 30 | AB6: 38 | AC6: 31 | AD6: 34 | AE6: 23 | AF6: =AVERAGE(AA6:AE6)*(1+'2014 Farm Bill Calculator'!$B$21) -> 31.512 | AG6: =AVERAGE(AB6:AF6)*(1+'2014 Farm Bill Calculator'!$B$21) -> 31.817424 | AH6: =AVERAGE(AC6:AG6)*(1+'2014 Farm Bill Calculator'!$B$21) -> 30.56854365 | AI6: =AVERAGE(AD6:AH6)*(1+'2014 Farm Bill Calculator'!$B$21) -> 30.48138946 | AJ6: =AVERAGE(AE6:AI6)*(1+'2014 Farm Bill Calculator'!$B$21) -> 29.77063014 | AK6: 30.25 | AL6: 31.4012 | AM6: 31.2829424 | AN6: 30.63979676 | AO6: 31.18793571 | AP6: 57 | AQ6: 52 | AR6: 63 | AS6: 45 | AT6: 43 | AU6: 51 | AV6: 54 | AW6: 64 | AX6: 69 | AY6: 44 | AZ6: 48.09999847 | BA6: =AVERAGE(AV6:AZ6)*(1+'2014 Farm Bill Calculator'!$B$22) -> 56.37819969 | BB6: =AVERAGE(AW6:BA6)*(1+'2014 Farm Bill Calculator'!$B$22) -> 56.85859603 | BC6: =AVERAGE(AX6:BB6)*(1+'2014 Farm Bill Calculator'!$B$22) -> 55.41603243 | BD6: =AVERAGE(AY6:BC6)*(1+'2014 Farm Bill Calculator'!$B$22) -> 52.67207098 | BE6: 54.2 | BF6: 53.30999985 | BG6: 53.74781982 | BH6: 53.13367942 | BI6: 54.17528266 | BK6: 106 | BL6: 111.0333333 | BM6: 110.9508 | BN6: 111.0755632 | BO6: 112.2257781 | BQ6: 31.66666667 | BR6: 32.17066667 | BS6: 31.44314133 | BT6: 31.29932255 | BU6: 30.8539777 | BW6: 56.33333333 | BX6: 55.36666616 | BY6: 56.15939939 | BZ6: 53.7789314 | CA6: 53.29807686
A7: ANTRIM | B7: 119 | C7: 111 | D7: 108 | E7: 65 | F7: 81 | G7: 95 | H7: 121 | I7: 103 | J7: 92 | K7: 97 | L7: 135.4 | M7: =AVERAGE(H7:L7)*(1+'2014 Farm Bill Calculator'!$B$20) -> 111.8736 | N7: =AVERAGE(I7:M7)*(1+'2014 Farm Bill Calculator'!$B$20) -> 110.0118144 | O7: =AVERAGE(J7:N7)*(1+'2014 Farm Bill Calculator'!$B$20) -> 111.4422245 | P7: =AVERAGE(K7:O7)*(1+'2014 Farm Bill Calculator'!$B$20) -> 115.4084383 | Q7: 99.2 | R7: 100.84 | S7: 100.92736 | T7: 101.1285414 | U7: 105.7727639 | Y7: 18 | AA7: 0.1 | AB7: =AA7 -> 0.1 | AC7: =AB7 -> 0.1 | AD7: =AC7 -> 0.1 | AE7: =AD7 -> 0.1 | AF7: 46.3 | AG7: =AVERAGE(AB7:AF7)*(1+'2014 Farm Bill Calculator'!$B$21) -> 9.4334 | AH7: =AVERAGE(AC7:AG7)*(1+'2014 Farm Bill Calculator'!$B$21) -> 11.3187468 | AI7: =AVERAGE(AD7:AH7)*(1+'2014 Farm Bill Calculator'!$B$21) -> 13.58493365 | AJ7: =AVERAGE(AE7:AI7)*(1+'2014 Farm Bill Calculator'!$B$21) -> 16.30889025 | AK7: 3.083333333 | AL7: 9.257142857 | AM7: 9.279175 | AN7: 9.505794089 | AO7: 9.015231162 | AW7: 61.3 | AX7: 61.5 | AZ7: =AVERAGE(AU7:AY7)*(1+'2014 Farm Bill Calculator'!$B$22) -> 62.014 | BA7: =AVERAGE(AV7:AZ7)*(1+'2014 Farm Bill Calculator'!$B$22) -> 62.22071333 | BB7: =AVERAGE(AW7:BA7)*(1+'2014 Farm Bill Calculator'!$B$22) -> 62.37626512 | BC7: =AVERAGE(AX7:BB7)*(1+'2014 Farm Bill Calculator'!$B$22) -> 62.64802206 | BD7: =AVERAGE(AY7:BC7)*(1+'2014 Farm Bill Calculator'!$B$22) -> 62.93789763 | BE7: 61.4 | BF7: 61.60466667 | BG7: 61.75867833 | BH7: 61.88219569 | BI7: 62.00983342 | BK7: 98.33333333 | BL7: 107 | BM7: 103.9578667 | BN7: 106.2951381 | BO7: 111.109213 | BQ7: 0.1 | BR7: 0.1 | BS7: 3.211133333 | BT7: 6.9507156 | BU7: 11.44569348 | BW7: Data Error | BX7: Data Error | BY7: Data Error | BZ7: Data Error | CA7: Data Error
A8: ARENAC | B8: 110 | C8: 148 | D8: 129 | E8: 115 | F8: 165 | G8: 139 | H8: 151 | I8: 160 | J8: 142 | K8: 114 | L8: 155.4 | M8: =AVERAGE(H8:L8)*(1+'2014 Farm Bill Calculator'!$B$20) -> 147.3696 | N8: =AVERAGE(I8:M8)*(1+'2014 Farm Bill Calculator'!$B$20) -> 146.6289984 | O8: =AVERAGE(J8:N8)*(1+'2014 Farm Bill Calculator'!$B$20) -> 143.9013141 | P8: =AVERAGE(K8:O8)*(1+'2014 Farm Bill Calculator'!$B$20) -> 144.2891821 | Q8: 137.3 | R8: 141.84 | S8: 141.77696 | T8: 143.5398598 | U8: 146.4299912 | V8: 32 | W8: 40 | X8: 41 | Y8: 38 | Z8: 44 | AA8: 37 | AB8: 46 | AC8: 44 | AD8: 51 | AE8: 36 | AF8: =AVERAGE(AA8:AE8)*(1+'2014 Farm Bill Calculator'!$B$21) -> 43.228 | AG8: =AVERAGE(AB8:AF8)*(1+'2014 Farm Bill Calculator'!$B$21) -> 44.486056 | AH8: =AVERAGE(AC8:AG8)*(1+'2014 Farm Bill Calculator'!$B$21) -> 44.18023931 | AI8: =AVERAGE(AD8:AH8)*(1+'2014 Farm Bill Calculator'!$B$21) -> 44.21664765 | AJ8: =AVERAGE(AE8:AI8)*(1+'2014 Farm Bill Calculator'!$B$21) -> 42.84641048 | AK8: 40.9 | AL8: 42.0228 | AM8: 42.4714056 | AN8: 42.78942953 | AO8: 43.4110943 | AP8: 73 | AQ8: 72 | AR8: 78 | AS8: 73 | AT8: 73.5 | AU8: 68 | AV8: 72 | AW8: 76 | AX8: 76 | AY8: 63 | AZ8: 72.90000153 | BA8: =AVERAGE(AV8:AZ8)*(1+'2014 Farm Bill Calculator'!$B$22) -> 72.69980031 | BB8: =AVERAGE(AW8:BA8)*(1+'2014 Farm Bill Calculator'!$B$22) -> 72.84115997 | BC8: =AVERAGE(AX8:BB8)*(1+'2014 Farm Bill Calculator'!$B$22) -> 72.20307428 | BD8: =AVERAGE(AY8:BC8)*(1+'2014 Farm Bill Calculator'!$B$22) -> 71.43609529 | BE8: 72.45 | BF8: 72.44000015 | BG8: 72.50998018 | BH8: 71.99409618 | BI8: 71.91440361 | BK8: 144 | BL8: 149.4666667 | BM8: 148.2565333 | BN8: 145.3328661 | BO8: 145.9666375 | BQ8: 42.33333333 | BR8: 44.40933333 | BS8: 43.90468533 | BT8: 43.9647651 | BU8: 43.87496232 | BW8: 72 | BX8: 73.63333384 | BY8: 73.86660061 | BZ8: 72.81365393 | CA8: 72.58134485
A9: BARAGA | G9: 0.1 | H9: =G9 -> 0.1 | I9: =H9 -> 0.1 | J9: =I9 -> 0.1 | K9: =J9 -> 0.1 | L9: =AVERAGE(G9:K9)*(1+'2014 Farm Bill Calculator'!$B$20) -> 0.102 | M9: =AVERAGE(H9:L9)*(1+'2014 Farm Bill Calculator'!$B$20) -> 0.102408 | N9: =AVERAGE(I9:M9)*(1+'2014 Farm Bill Calculator'!$B$20) -> 0.102899232 | O9: =AVERAGE(J9:N9)*(1+'2014 Farm Bill Calculator'!$B$20) -> 0.1034906753 | P9: =AVERAGE(K9:O9)*(1+'2014 Farm Bill Calculator'!$B$20) -> 0.1042027731 | Q9: 0.1 | R9: 0.1003333333 | S9: 0.1006297143 | T9: 0.100913404 | U9: 0.1011997675 | AA9: 0.1 | AB9: =AA9 -> 0.1 | AC9: =AB9 -> 0.1 | AD9: =AC9 -> 0.1 | AE9: =AD9 -> 0.1 | AF9: =AVERAGE(AA9:AE9)*(1+'2014 Farm Bill Calculator'!$B$21) -> 0.101 | AG9: =AVERAGE(AB9:AF9)*(1+'2014 Farm Bill Calculator'!$B$21) -> 0.101202 | AH9: =AVERAGE(AC9:AG9)*(1+'2014 Farm Bill Calculator'!$B$21) -> 0.101444804 | AI9: =AVERAGE(AD9:AH9)*(1+'2014 Farm Bill Calculator'!$B$21) -> 0.1017366544 | AJ9: =AVERAGE(AE9:AI9)*(1+'2014 Farm Bill Calculator'!$B$21) -> 0.1020874586 | AK9: 0.1 | AL9: 0.1001666667 | AM9: 0.1003145714 | AN9: 0.1004558505 | AO9: 0.100598162 | AU9: 0.1 | AV9: =AU9 -> 0.1 | AW9: =AV9 -> 0.1 | AX9: =AW9 -> 0.1 | AY9: =AX9 -> 0.1 | AZ9: =AVERAGE(AU9:AY9)*(1+'2014 Farm Bill Calculator'!$B$22) -> 0.101 | BA9: =AVERAGE(AV9:AZ9)*(1+'2014 Farm Bill Calculator'!$B$22) -> 0.101202 | BB9: =AVERAGE(AW9:BA9)*(1+'2014 Farm Bill Calculator'!$B$22) -> 0.101444804 | BC9: =AVERAGE(AX9:BB9)*(1+'2014 Farm Bill Calculator'!$B$22) -> 0.1017366544 | BD9: =AVERAGE(AY9:BC9)*(1+'2014 Farm Bill Calculator'!$B$22) -> 0.1020874586 | BE9: 0.1 | BF9: 0.1001666667 | BG9: 0.1003145714 | BH9: 0.1004558505 | BI9: 0.100598162 | BK9: 0.1 | BL9: 0.1 | BM9: 0.1006666667 | BN9: 0.1014693333 | BO9: 0.102435744 | BQ9: 0.1 | BR9: 0.1 | BS9: 0.1003333333 | BT9: 0.100734 | BU9: 0.1012156013 | BW9: 0.1 | BX9: 0.1 | BY9: 0.1003333333 | BZ9: 0.100734 | CA9: 0.1012156013
A10: BARRY | B10: 151 | C10: 135 | D10: 148 | E10: 115 | F10: 131 | G10: 142 | H10: 146 | I10: 153 | J10: 108 | K10: 163 | L10: 151.6 | M10: =AVERAGE(H10:L10)*(1+'2014 Farm Bill Calculator'!$B$20) -> 147.2064 | N10: =AVERAGE(I10:M10)*(1+'2014 Farm Bill Calculator'!$B$20) -> 147.4525056 | O10: =AVERAGE(J10:N10)*(1+'2014 Farm Bill Calculator'!$B$20) -> 146.3208167 | P10: =AVERAGE(K10:O10)*(1+'2014 Farm Bill Calculator'!$B$20) -> 154.1382634 | Q10: 139.2 | R10: 139.26 | S10: 140.48064 | T10: 140.4258906 | U10: 143.5579722 | V10: 41 | W10: 37 | X10: 46 | Y10: 38 | Z10: 31.5 | AA10: 41 | AB10: 43 | AC10: 45 | AD10: 41 | AE10: 49 | AF10: 43.1 | AG10: =AVERAGE(AB10:AF10)*(1+'2014 Farm Bill Calculator'!$B$21) -> 44.6622 | AH10: =AVERAGE(AC10:AG10)*(1+'2014 Farm Bill Calculator'!$B$21) -> 44.9979644 | AI10: =AVERAGE(AD10:AH10)*(1+'2014 Farm Bill Calculator'!$B$21) -> 44.99755321 | AJ10: =AVERAGE(AE10:AI10)*(1+'2014 Farm Bill Calculator'!$B$21) -> 45.80505896 | AK10: 41.25 | AL10: 41.46 | AM10: 42.22622 | AN10: 42.12601644 | AO10: 42.82577176 | AP10: 54 | AQ10: 66 | AR10: 66 | AS10: 57 | AT10: 54.5 | AU10: 64 | AV10: 57 | AW10: 70 | AX10: 72 | AY10: 72 | AZ10: 79.69999695 | BA10: =AVERAGE(AV10:AZ10)*(1+'2014 Farm Bill Calculator'!$B$22) -> 70.84139938 | BB10: =AVERAGE(AW10:BA10)*(1+'2014 Farm Bill Calculator'!$B$22) -> 73.63736206 | BC10: =AVERAGE(AX10:BB10)*(1+'2014 Farm Bill Calculator'!$B$22) -> 74.37210919 | BD10: =AVERAGE(AY10:BC10)*(1+'2014 Farm Bill Calculator'!$B$22) -> 74.85127525 | BE10: 63.25 | BF10: 65.81999969 | BG10: 66.30413963 | BH10: 67.06787584 | BI10: 68.80508676 | BK10: 147 | BL10: 150.2 | BM10: 150.6021333 | BN10: 148.7529685 | BO10: 148.7529685 | BQ10: 43 | BR10: 43.7 | BS10: 44.25406667 | BT10: 44.25338813 | BU10: 44.88590587 | BW10: 68.66666667 | BX10: 71.33333333 | BY10: 71.61379979 | BZ10: 72.54578735 | CA10: 73.33649042
A11: BAY | B11: 132 | C11: 148 | D11: 138 | E11: 122 | F11: 163 | G11: 161 | H11: 163 | I11: 169 | J11: 162 | K11: 143 | L11: 164.4 | M11: =AVERAGE(H11:L11)*(1+'2014 Farm Bill Calculator'!$B$20) -> 163.4856 | N11: =AVERAGE(I11:M11)*(1+'2014 Farm Bill Calculator'!$B$20) -> 163.5846624 | O11: =AVERAGE(J11:N11)*(1+'2014 Farm Bill Calculator'!$B$20) -> 162.4799335 | P11: =AVERAGE(K11:O11)*(1+'2014 Farm Bill Calculator'!$B$20) -> 162.57784 | Q11: 150.1 | R11: 153.34 | S11: 154.88856 | T11: 157.4470262 | U11: 161.4950196 | V11: 34 | W11: 40 | X11: 42 | Y11: 42 | Z11: 47 | AA11: 41 | AB11: 47 | AC11: 48 | AD11: 50 | AE11: 42 | AF11: =AVERAGE(AA11:AE11)*(1+'2014 Farm Bill Calculator'!$B$21) -> 46.056 | AG11: =AVERAGE(AB11:AF11)*(1+'2014 Farm Bill Calculator'!$B$21) -> 47.077312 | AH11: =AVERAGE(AC11:AG11)*(1+'2014 Farm Bill Calculator'!$B$21) -> 47.09292902 | AI11: =AVERAGE(AD11:AH11)*(1+'2014 Farm Bill Calculator'!$B$21) -> 46.90970069 | AJ11: =AVERAGE(AE11:AI11)*(1+'2014 Farm Bill Calculator'!$B$21) -> 46.28546023 | AK11: =AVERAGE(V11:AE11) -> 43.3 | AL11: 44.5056 | AM11: 45.2133312 | AN11: 45.7226241 | AO11: 46.21359417 | AP11: 72 | AQ11: 68 | AR11: 81 | AS11: 72 | AT11: 76 | AU11: 75 | AV11: 71 | AW11: 85 | AX11: 80 | AY11: 75 | AZ11: 74.30000305 | BA11: =AVERAGE(AV11:AZ11)*(1+'2014 Farm Bill Calculator'!$B$22) -> 77.83060062 | BB11: =AVERAGE(AW11:BA11)*(1+'2014 Farm Bill Calculator'!$B$22) -> 79.21038194 | BC11: =AVERAGE(AX11:BB11)*(1+'2014 Farm Bill Calculator'!$B$22) -> 78.04087909 | BD11: =AVERAGE(AY11:BC11)*(1+'2014 Farm Bill Calculator'!$B$22) -> 77.64513667 | BE11: 75.5 | BF11: 75.73000031 | BG11: 76.71306037 | BH11: 76.53409856 | BI11: 77.13818647 | BK11: 162 | BL11: 163.1333333 | BM11: 163.2952 | BN11: 163.0234208 | BO11: 163.1833986 | BQ11: 45.66666667 | BR11: 47.01866667 | BS11: 47.04443733 | BT11: 46.74208034 | BU11: 46.68100423 | BW11: 76.66666667 | BX11: 76.43333435 | BY11: 77.61020021 | BZ11: 77.34699419 | CA11: 76.9571599
A12: BENZIE | B12: 100 | C12: 104 | D12: 108 | E12: 45 | F12: 79 | G12: 108 | H12: 110 | I12: 74 | J12: 61 | K12: 105 | L12: 118.3 | M12: =AVERAGE(H12:L12)*(1+'2014 Farm Bill Calculator'!$B$20) -> 95.5332 | N12: =AVERAGE(I12:M12)*(1+'2014 Farm Bill Calculator'!$B$20) -> 92.5819728 | O12: =AVERAGE(J12:N12)*(1+'2014 Farm Bill Calculator'!$B$20) -> 96.37269525 | P12: =AVERAGE(K12:O12)*(1+'2014 Farm Bill Calculator'!$B$20) -> 103.5887251 | Q12: 89.4 | R12: 91.23 | S12: 90.38332 | T12: 88.84151728 | U12: 93.97878681 | AA12: 0.1 | AB12: =AA12 -> 0.1 | AC12: =AB12 -> 0.1 | AD12: =AC12 -> 0.1 | AE12: =AD12 -> 0.1 | AF12: =AVERAGE(AA12:AE12)*(1+'2014 Farm Bill Calculator'!$B$21) -> 0.101 | AG12: =AVERAGE(AB12:AF12)*(1+'2014 Farm Bill Calculator'!$B$21) -> 0.101202 | AH12: =AVERAGE(AC12:AG12)*(1+'2014 Farm Bill Calculator'!$B$21) -> 0.101444804 | AI12: =AVERAGE(AD12:AH12)*(1+'2014 Farm Bill Calculator'!$B$21) -> 0.1017366544 | AJ12: =AVERAGE(AE12:AI12)*(1+'2014 Farm Bill Calculator'!$B$21) -> 0.1020874586 | AK12: 0.1 | AL12: 0.1001666667 | AM12: 0.1003145714 | AN12: 0.1004558505 | AO12: 0.100598162 | AU12: 0.1 | AV12: =AU12 -> 0.1 | AW12: =AV12 -> 0.1 | AX12: =AW12 -> 0.1 | AY12: =AX12 -> 0.1 | AZ12: =AVERAGE(AU12:AY12)*(1+'2014 Farm Bill Calculator'!$B$22) -> 0.101 | BA12: =AVERAGE(AV12:AZ12)*(1+'2014 Farm Bill Calculator'!$B$22) -> 0.101202 | BB12: =AVERAGE(AW12:BA12)*(1+'2014 Farm Bill Calculator'!$B$22) -> 0.101444804 | BC12: =AVERAGE(AX12:BB12)*(1+'2014 Farm Bill Calculator'!$B$22) -> 0.1017366544 | BD12: =AVERAGE(AY12:BC12)*(1+'2014 Farm Bill Calculator'!$B$22) -> 0.1020874586 | BE12: 0.1 | BF12: 0.1001666667 | BG12: 0.1003145714 | BH12: 0.1004558505 | BI12: 0.100598162 | BK12: 95.66666667 | BL12: 96.33333333 | BM12: 91.51106667 | BN12: 97.7050576 | BO12: 98.96863175 | BQ12: 0.1 | BR12: 0.1 | BS12: 0.1003333333 | BT12: 0.100734 | BU12: 0.1012156013 | BW12: 0.1 | BX12: 0.1 | BY12: 0.1003333333 | BZ12: 0.100734 | CA12: 0.1012156013
A13: BERRIEN | B13: 143 | C13: 123 | D13: 154 | E13: 137 | F13: 148 | G13: 150 | H13: 159 | I13: 163 | J13: 144 | K13: 150 | L13: 176.4 | M13: =AVERAGE(H13:L13)*(1+'2014 Farm Bill Calculator'!$B$20) -> 161.6496 | N13: =AVERAGE(I13:M13)*(1+'2014 Farm Bill Calculator'!$B$20) -> 162.1901184 | O13: =AVERAGE(J13:N13)*(1+'2014 Farm Bill Calculator'!$B$20) -> 162.0249026 | P13: =AVERAGE(K13:O13)*(1+'2014 Farm Bill Calculator'!$B$20) -> 165.7019827 | Q13: 147.1 | R13: 150.44 | S13: 154.30496 | T13: 155.1239718 | U13: 157.6264621 | V13: 44 | W13: 32 | X13: 48 | Y13: 44 | Z13: 44.5 | AA13: 44 | AB13: 48 | AC13: 41 | AD13: 45 | AE13: 41 | AF13: 42.9 | AG13: =AVERAGE(AB13:AF13)*(1+'2014 Farm Bill Calculator'!$B$21) -> 44.0158 | AH13: =AVERAGE(AC13:AG13)*(1+'2014 Farm Bill Calculator'!$B$21) -> 43.2109916 | AI13: =AVERAGE(AD13:AH13)*(1+'2014 Farm Bill Calculator'!$B$21) -> 43.6576119 | AJ13: =AVERAGE(AE13:AI13)*(1+'2014 Farm Bill Calculator'!$B$21) -> 43.38644951 | AK13: 43.15 | AL13: 43.04 | AM13: 44.24158 | AN13: 43.76267916 | AO13: 43.72844035 | AP13: 58 | AQ13: 60 | AR13: 62 | AS13: 51 | AT13: 60.5 | AU13: 62 | AV13: 57 | AW13: 71 | AX13: 62 | AY13: 63 | AZ13: =AVERAGE(AU13:AY13)*(1+'2014 Farm Bill Calculator'!$B$22) -> 63.63 | BA13: =AVERAGE(AV13:AZ13)*(1+'2014 Farm Bill Calculator'!$B$22) -> 63.95926 | BB13: =AVERAGE(AW13:BA13)*(1+'2014 Farm Bill Calculator'!$B$22) -> 65.36503052 | BC13: =AVERAGE(AX13:BB13)*(1+'2014 Farm Bill Calculator'!$B$22) -> 64.22676669 | BD13: =AVERAGE(AY13:BC13)*(1+'2014 Farm Bill Calculator'!$B$22) -> 64.67657356 | BE13: 60.65 | BF13: 61.213 | BG13: 61.608926 | BH13: 61.94542905 | BI13: 63.26810572 | BK13: 153 | BL13: 157.3333333 | BM13: 158.2165333 | BN13: 157.9465728 | BO13: 161.9548737 | BQ13: 43.33333333 | BR13: 42.96666667 | BS13: 42.6386 | BT13: 43.3755972 | BU13: 43.25620117 | BW13: 62.33333333 | BX13: 62.87666667 | BY13: 63.52975333 | BZ13: 63.52975333 | CA13: 63.93867556
A14: BRANCH | B14: 134 | C14: 141 | D14: 150 | E14: 114 | F14: 122 | G14: 135 | H14: 145.2 | I14: 156.4 | J14: 113.5 | K14: 164.5 | L14: 167.2 | M14: =AVERAGE(H14:L14)*(1+'2014 Farm Bill Calculator'!$B$20) -> 152.3472 | N14: =AVERAGE(I14:M14)*(1+'2014 Farm Bill Calculator'!$B$20) -> 153.8052288 | O14: =AVERAGE(J14:N14)*(1+'2014 Farm Bill Calculator'!$B$20) -> 153.2758955 | P14: =AVERAGE(K14:O14)*(1+'2014 Farm Bill Calculator'!$B$20) -> 161.3901782 | Q14: 137.56 | R14: 140.88 | S14: 142.01472 | T14: 142.3952429 | U14: 146.3228324 | V14: 41 | W14: 39 | X14: 47 | Y14: 40 | Z14: 30.5 | AA14: 35 | AB14: 44 | AC14: 45 | AD14: 42 | AE14: 45 | AF14: 42.6 | AG14: =AVERAGE(AB14:AF14)*(1+'2014 Farm Bill Calculator'!$B$21) -> 44.1572 | AH14: =AVERAGE(AC14:AG14)*(1+'2014 Farm Bill Calculator'!$B$21) -> 44.1889544 | AI14: =AVERAGE(AD14:AH14)*(1+'2014 Farm Bill Calculator'!$B$21) -> 44.02512319 | AJ14: =AVERAGE(AE14:AI14)*(1+'2014 Farm Bill Calculator'!$B$21) -> 44.43419807 | AK14: 40.85 | AL14: 41.01 | AM14: 41.52572 | AN14: 41.24461544 | AO14: 41.64712776 | AP14: 49 | AQ14: 55 | AR14: 60 | AS14: 49 | AT14: 53.5 | AU14: 62 | AV14: 55 | AW14: 66 | AX14: 58 | AY14: 53 | AZ14: 61.29999924 | BA14: =AVERAGE(AV14:AZ14)*(1+'2014 Farm Bill Calculator'!$B$22) -> 59.24659985 | BB14: =AVERAGE(AW14:BA14)*(1+'2014 Farm Bill Calculator'!$B$22) -> 60.10441301 | BC14: =AVERAGE(AX14:BB14)*(1+'2014 Farm Bill Calculator'!$B$22) -> 58.91350444 | BD14: =AVERAGE(AY14:BC14)*(1+'2014 Farm Bill Calculator'!$B$22) -> 59.09803234 | BE14: 56.05 | BF14: 57.27999992 | BG14: 57.70465991 | BH14: 57.71510121 | BI14: 58.70645165 | BK14: 145.5333333 | BL14: 155.3666667 | BM14: 157.7490667 | BN14: 156.8841429 | BO14: 157.1937081 | BQ14: 43.66666667 | BR14: 43.86666667 | BS14: 43.91906667 | BT14: 43.64871813 | BU14: 44.1237592 | BW14: 58.33333333 | BX14: 58.09999975 | BY14: 59.51553303 | BZ14: 59.11700429 | CA14: 59.42150577
A15: CALHOUN | B15: 139 | C15: 135 | D15: 140 | E15: 109 | F15: 109 | G15: 138 | H15: 149 | I15: 144 | J15: 88 | K15: 156 | L15: 158.6 | M15: =AVERAGE(H15:L15)*(1+'2014 Farm Bill Calculator'!$B$20) -> 141.9024 | N15: =AVERAGE(I15:M15)*(1+'2014 Farm Bill Calculator'!$B$20) -> 140.4544896 | O15: =AVERAGE(J15:N15)*(1+'2014 Farm Bill Calculator'!$B$20) -> 139.7312055 | P15: =AVERAGE(K15:O15)*(1+'2014 Farm Bill Calculator'!$B$20) -> 150.2843714 | Q15: 130.7 | R15: 132.66 | S15: 133.35024 | T15: 133.395689 | U15: 136.4688095 | V15: 42 | W15: 34 | X15: 43 | Y15: 40 | Z15: 27.5 | AA15: 39 | AB15: 47 | AC15: 45 | AD15: 32 | AE15: 49 | AF15: 39.4 | AG15: =AVERAGE(AB15:AF15)*(1+'2014 Farm Bill Calculator'!$B$21) -> 42.9048 | AH15: =AVERAGE(AC15:AG15)*(1+'2014 Farm Bill Calculator'!$B$21) -> 42.0775696 | AI15: =AVERAGE(AD15:AH15)*(1+'2014 Farm Bill Calculator'!$B$21) -> 41.48723866 | AJ15: =AVERAGE(AE15:AI15)*(1+'2014 Farm Bill Calculator'!$B$21) -> 43.40366087 | AK15: 39.85 | AL15: 39.59 | AM15: 40.48048 | AN15: 40.38823696 | AO15: 40.53696083 | AP15: 47 | AQ15: 53 | AR15: 61 | AS15: 49 | AT15: 56.5 | AU15: 65 | AV15: 63 | AW15: 65 | AX15: 62 | AY15: 59 | AZ15: 57.79999924 | BA15: =AVERAGE(AV15:AZ15)*(1+'2014 Farm Bill Calculator'!$B$22) -> 61.97359985 | BB15: =AVERAGE(AW15:BA15)*(1+'2014 Farm Bill Calculator'!$B$22) -> 61.76626701 | BC15: =AVERAGE(AX15:BB15)*(1+'2014 Farm Bill Calculator'!$B$22) -> 61.11305295 | BD15: =AVERAGE(AY15:BC15)*(1+'2014 Farm Bill Calculator'!$B$22) -> 60.93388965 | BE15: 58.05 | BF15: 59.12999992 | BG15: 60.02735991 | BH15: 60.10398661 | BI15: 61.3152919 | BK15: 143.6666667 | BL15: 149.6666667 | BM15: 147.3008 | BN15: 146.1189632 | BO15: 146.1189632 | BQ15: 43.66666667 | BR15: 43.8 | BS15: 42.43493333 | BT15: 41.46078987 | BU15: 42.15653609 | BW15: 63.33333333 | BX15: 61.33333333 | BY15: 60.99119995 | BZ15: 60.91328895 | CA15: 60.62643999
A16: CASS | B16: 140 | C16: 129 | D16: 159 | E16: 124 | F16: 148 | G16: 163 | H16: 168.5 | I16: 168 | J16: 139.3 | K16: 160.8 | L16: 172 | M16: =AVERAGE(H16:L16)*(1+'2014 Farm Bill Calculator'!$B$20) -> 164.9544 | N16: =AVERAGE(I16:M16)*(1+'2014 Farm Bill Calculator'!$B$20) -> 164.2310976 | O16: =AVERAGE(J16:N16)*(1+'2014 Farm Bill Calculator'!$B$20) -> 163.4622415 | P16: =AVERAGE(K16:O16)*(1+'2014 Farm Bill Calculator'!$B$20) -> 168.3913388 | Q16: 149.96 | R16: 153.16 | S16: 156.75544 | T16: 157.2785498 | U16: 161.2247739 | V16: 43 | W16: 35 | X16: 49 | Y16: 44 | Z16: 33.5 | AA16: 35 | AB16: 45 | AC16: 42 | AD16: 43 | AE16: 41 | AF16: 52 | AG16: =AVERAGE(AB16:AF16)*(1+'2014 Farm Bill Calculator'!$B$21) -> 45.046 | AH16: =AVERAGE(AC16:AG16)*(1+'2014 Farm Bill Calculator'!$B$21) -> 45.055292 | AI16: =AVERAGE(AD16:AH16)*(1+'2014 Farm Bill Calculator'!$B$21) -> 45.67246098 | AJ16: =AVERAGE(AE16:AI16)*(1+'2014 Farm Bill Calculator'!$B$21) -> 46.2122981 | AK16: 41.05 | AL16: 41.95 | AM16: 42.9546 | AN16: 42.5601292 | AO16: 42.7273753 | AP16: 52 | AQ16: 51 | AR16: 60 | AS16: 50 | AT16: 36 | AU16: 60 | AV16: 54 | AW16: 68 | AX16: 50 | AY16: 53 | AZ16: 66.80000305 | BA16: =AVERAGE(AV16:AZ16)*(1+'2014 Farm Bill Calculator'!$B$22) -> 58.94360062 | BB16: =AVERAGE(AW16:BA16)*(1+'2014 Farm Bill Calculator'!$B$22) -> 59.94220794 | BC16: =AVERAGE(AX16:BB16)*(1+'2014 Farm Bill Calculator'!$B$22) -> 58.31453395 | BD16: =AVERAGE(AY16:BC16)*(1+'2014 Farm Bill Calculator'!$B$22) -> 59.9940698 | BE16: 53.4 | BF16: 54.88000031 | BG16: 55.67436037 | BH16: 55.66858116 | BI16: 56.50003456 | BK16: 163.9333333 | BL16: 165.7666667 | BM16: 164.5848 | BN16: 163.3284992 | BO16: 164.215913 | BQ16: 42 | BR16: 43.33333333 | BS16: 43.34866667 | BT16: 44.36709733 | BU16: 45.25791766 | BW16: 55.66666667 | BX16: 57.93333435 | BY16: 59.58120122 | BZ16: 57.29526952 | CA16: 59.06678083
A17: CHARLEVOIX | B17: 108 | C17: 92 | D17: 110 | E17: 81 | F17: 79 | G17: 116 | H17: 115 | I17: 106 | J17: 111 | K17: 122 | L17: 115.2 | M17: =AVERAGE(H17:L17)*(1+'2014 Farm Bill Calculator'!$B$20) -> 116.1168 | N17: =AVERAGE(I17:M17)*(1+'2014 Farm Bill Calculator'!$B$20) -> 116.3446272 | O17: =AVERAGE(J17:N17)*(1+'2014 Farm Bill Calculator'!$B$20) -> 118.4549311 | P17: =AVERAGE(K17:O17)*(1+'2014 Farm Bill Calculator'!$B$20) -> 119.9757371 | Q17: 104 | R17: 104.72 | S17: 107.13168 | T17: 107.7661427 | U17: 111.5116358 | Y17: 16 | AA17: 0.1 | AB17: =AA17 -> 0.1 | AC17: 0.1 | AD17: 0.1 | AE17: 0.1 | AF17: =AVERAGE(AA17:AE17)*(1+'2014 Farm Bill Calculator'!$B$21) -> 0.101 | AG17: =AVERAGE(AB17:AF17)*(1+'2014 Farm Bill Calculator'!$B$21) -> 0.101202 | AH17: =AVERAGE(AC17:AG17)*(1+'2014 Farm Bill Calculator'!$B$21) -> 0.101444804 | AI17: =AVERAGE(AD17:AH17)*(1+'2014 Farm Bill Calculator'!$B$21) -> 0.1017366544 | AJ17: =AVERAGE(AE17:AI17)*(1+'2014 Farm Bill Calculator'!$B$21) -> 0.1020874586 | AK17: 2.75 | AL17: 2.371571429 | AM17: 2.08777525 | AN17: 1.867071867 | AO17: 0.100598162 | AU17: 0.1 | AV17: =AU17 -> 0.1 | AW17: 0.1 | AX17: 0.1 | AY17: 0.1 | AZ17: =AVERAGE(AU17:AY17)*(1+'2014 Farm Bill Calculator'!$B$22) -> 0.101 | BA17: =AVERAGE(AV17:AZ17)*(1+'2014 Farm Bill Calculator'!$B$22) -> 0.101202 | BB17: =AVERAGE(AW17:BA17)*(1+'2014 Farm Bill Calculator'!$B$22) -> 0.101444804 | BC17: =AVERAGE(AX17:BB17)*(1+'2014 Farm Bill Calculator'!$B$22) -> 0.1017366544 | BD17: =AVERAGE(AY17:BC17)*(1+'2014 Farm Bill Calculator'!$B$22) -> 0.1020874586 | BE17: 0.1 | BF17: 0.1001666667 | BG17: 0.1003145714 | BH17: 0.1004558505 | BI17: 0.100598162 | BK17: 114 | BL17: 113.7333333 | BM17: 114.1056 | BN17: 115.8871424 | BO17: 116.9721194 | BQ17: 0.1 | BR17: 0.1 | BS17: 0.1003333333 | BT17: 0.100734 | BU17: 0.1012156013 | BW17: 0.1 | BX17: 0.1 | BY17: 0.1003333333 | BZ17: 0.100734 | CA17: 0.1012156013
A18: CHEBOYGAN | G18: 64 | H18: 133 | I18: 110 | J18: 120 | K18: 113 | L18: 138.5 | M18: =AVERAGE(H18:L18)*(1+'2014 Farm Bill Calculator'!$B$20) -> 125.358 | N18: =AVERAGE(I18:M18)*(1+'2014 Farm Bill Calculator'!$B$20) -> 123.799032 | O18: =AVERAGE(J18:N18)*(1+'2014 Farm Bill Calculator'!$B$20) -> 126.6140345 | P18: =AVERAGE(K18:O18)*(1+'2014 Farm Bill Calculator'!$B$20) -> 127.9632976 | Q18: 108 | R18: 113.0833333 | S18: 114.8368571 | T18: 115.957129 | U18: 117.1412296 | AA18: 0.1 | AB18: 0.1 | AC18: 0.1 | AD18: 0.1 | AE18: 0.1 | AF18: =AVERAGE(AA18:AE18)*(1+'2014 Farm Bill Calculator'!$B$21) -> 0.101 | AG18: =AVERAGE(AB18:AF18)*(1+'2014 Farm Bill Calculator'!$B$21) -> 0.101202 | AH18: =AVERAGE(AC18:AG18)*(1+'2014 Farm Bill Calculator'!$B$21) -> 0.101444804 | AI18: =AVERAGE(AD18:AH18)*(1+'2014 Farm Bill Calculator'!$B$21) -> 0.1017366544 | AJ18: =AVERAGE(AE18:AI18)*(1+'2014 Farm Bill Calculator'!$B$21) -> 0.1020874586 | AK18: 0.1 | AL18: 0.1001666667 | AM18: 0.1003145714 | AN18: 0.1004558505 | AO18: 0.100598162 | AU18: 0.1 | AV18: 0.1 | AW18: 0.1 | AX18: 0.1 | AY18: 0.1 | AZ18: =AVERAGE(AU18:AY18)*(1+'2014 Farm Bill Calculator'!$B$22) -> 0.101 | BA18: =AVERAGE(AV18:AZ18)*(1+'2014 Farm Bill Calculator'!$B$22) -> 0.101202 | BB18: =AVERAGE(AW18:BA18)*(1+'2014 Farm Bill Calculator'!$B$22) -> 0.101444804 | BC18: =AVERAGE(AX18:BB18)*(1+'2014 Farm Bill Calculator'!$B$22) -> 0.1017366544 | BD18: =AVERAGE(AY18:BC18)*(1+'2014 Farm Bill Calculator'!$B$22) -> 0.1020874586 | BE18: 0.1 | BF18: 0.1001666667 | BG18: 0.1003145714 | BH18: 0.1004558505 | BI18: 0.100598162 | BK18: 114.3333333 | BL18: 122 | BM18: 119.4526667 | BN18: 123.052344 | BO18: 125.2570222 | BQ18: 0.1 | BR18: 0.1 | BS18: 0.1003333333 | BT18: 0.100734 | BU18: 0.1012156013 | BW18: 0.1 | BX18: 0.1 | BY18: 0.1003333333 | BZ18: 0.100734 | CA18: 0.1012156013
A19: CHIPPEWA | G19: 0.1 | H19: =G19 -> 0.1 | I19: =H19 -> 0.1 | J19: =I19 -> 0.1 | K19: =J19 -> 0.1 | L19: =AVERAGE(G19:K19)*(1+'2014 Farm Bill Calculator'!$B$20) -> 0.102 | M19: =AVERAGE(H19:L19)*(1+'2014 Farm Bill Calculator'!$B$20) -> 0.102408 | N19: =AVERAGE(I19:M19)*(1+'2014 Farm Bill Calculator'!$B$20) -> 0.102899232 | O19: =AVERAGE(J19:N19)*(1+'2014 Farm Bill Calculator'!$B$20) -> 0.1034906753 | P19: =AVERAGE(K19:O19)*(1+'2014 Farm Bill Calculator'!$B$20) -> 0.1042027731 | Q19: 0.1 | R19: 0.1003333333 | S19: 0.1006297143 | T19: 0.100913404 | U19: 0.1011997675 | AA19: 0.1 | AB19: 0.1 | AC19: 0.1 | AD19: 0.1 | AE19: 0.1 | AF19: =AVERAGE(AA19:AE19)*(1+'2014 Farm Bill Calculator'!$B$21) -> 0.101 | AG19: =AVERAGE(AB19:AF19)*(1+'2014 Farm Bill Calculator'!$B$21) -> 0.101202 | AH19: =AVERAGE(AC19:AG19)*(1+'2014 Farm Bill Calculator'!$B$21) -> 0.101444804 | AI19: =AVERAGE(AD19:AH19)*(1+'2014 Farm Bill Calculator'!$B$21) -> 0.1017366544 | AJ19: =AVERAGE(AE19:AI19)*(1+'2014 Farm Bill Calculator'!$B$21) -> 0.1020874586 | AK19: 0.1 | AL19: =AVERAGE(W19:AF19) -> 0.1001666667 | AM19: =AVERAGE(X19:AG19) -> 0.1003145714 | AN19: =AVERAGE(Y19:AH19) -> 0.1004558505 | AO19: 0.100598162 | AR19: 33 | AU19: 0.1 | AV19: 0.1 | AW19: 0.1 | AX19: 0.1 | AY19: 0.1 | AZ19: =AVERAGE(AU19:AY19)*(1+'2014 Farm Bill Calculator'!$B$22) -> 0.101 | BA19: =AVERAGE(AV19:AZ19)*(1+'2014 Farm Bill Calculator'!$B$22) -> 0.101202 | BB19: =AVERAGE(AW19:BA19)*(1+'2014 Farm Bill Calculator'!$B$22) -> 0.101444804 | BC19: =AVERAGE(AX19:BB19)*(1+'2014 Farm Bill Calculator'!$B$22) -> 0.1017366544 | BD19: =AVERAGE(AY19:BC19)*(1+'2014 Farm Bill Calculator'!$B$22) -> 0.1020874586 | BE19: 5.583333333 | BF19: 4.800142857 | BG19: 4.21277525 | BH19: 0.1004558505 | BI19: 0.100598162 | BK19: 0.1 | BL19: 0.1 | BM19: 0.1006666667 | BN19: 0.1014693333 | BO19: 0.102435744 | BQ19: 0.1 | BR19: 0.1 | BS19: 0.1003333333 | BT19: 0.100734 | BU19: 0.1012156013 | BW19: 0.1 | BX19: 0.1 | BY19: 0.1003333333 | BZ19: 0.100734 | CA19: 0.1012156013
A20: CLARE | B20: 86 | C20: 140 | D20: 112 | F20: 109 | G20: 68 | H20: 127 | I20: 123 | J20: 128 | K20: 104 | L20: 136.6 | M20: =AVERAGE(H20:L20)*(1+'2014 Farm Bill Calculator'!$B$20) -> 126.1944 | N20: =AVERAGE(I20:M20)*(1+'2014 Farm Bill Calculator'!$B$20) -> 126.0300576 | O20: =AVERAGE(J20:N20)*(1+'2014 Farm Bill Calculator'!$B$20) -> 126.6481894 | P20: =AVERAGE(K20:O20)*(1+'2014 Farm Bill Calculator'!$B$20) -> 126.37242 | Q20: 110.7777778 | R20: 116.4 | S20: 114.8660444 | T20: 116.4249397 | U20: 117.4472647 | V20: 20 | Y20: 35 | AA20: 31 | AB20: 43 | AC20: 34 | AD20: 47 | AE20: 30 | AF20: 36.9 | AG20: =AVERAGE(AB20:AF20)*(1+'2014 Farm Bill Calculator'!$B$21) -> 38.5618 | AH20: =AVERAGE(AC20:AG20)*(1+'2014 Farm Bill Calculator'!$B$21) -> 37.6652836 | AI20: =AVERAGE(AD20:AH20)*(1+'2014 Farm Bill Calculator'!$B$21) -> 38.40567089 | AJ20: =AVERAGE(AE20:AI20)*(1+'2014 Farm Bill Calculator'!$B$21) -> 36.66961641 | AK20: 34.28571429 | AL20: 36.7 | AM20: 36.932725 | AN20: 37.0141204 | AO20: 37.39252828 | AQ20: 48 | AR20: 72 | AS20: 53 | AU20: 40 | AV20: 67 | AW20: 63 | AX20: 41 | AY20: 55 | AZ20: 61.40000153 | BA20: =AVERAGE(AV20:AZ20)*(1+'2014 Farm Bill Calculator'!$B$22) -> 58.05480031 | BB20: =AVERAGE(AW20:BA20)*(1+'2014 Farm Bill Calculator'!$B$22) -> 56.24786997 | BC20: =AVERAGE(AX20:BB20)*(1+'2014 Farm Bill Calculator'!$B$22) -> 54.8839397 | BD20: =AVERAGE(AY20:BC20)*(1+'2014 Farm Bill Calculator'!$B$22) -> 57.68849552 | BE20: 54.875 | BF20: 55.60000017 | BG20: 56.7172002 | BH20: 54.96696353 | BI20: 55.17629017 | BK20: 118 | BL20: 126 | BM20: 125.7314667 | BN20: 126.7414859 | BO20: 126.2908823 | BQ20: 36 | BR20: 37.96666667 | BS20: 36.48726667 | BT20: 37.70902787 | BU20: 37.65698483 | BW20: 53 | BX20: 59.80000051 | BY20: 58.15160061 | BZ20: 56.43422343 | CA20: 56.43422343
A21: CLINTON | B21: 144 | C21: 139 | D21: 149 | E21: 124 | F21: 142 | G21: 145 | H21: 132 | I21: 149 | J21: 148 | K21: 122 | L21: 163.4 | M21: =AVERAGE(H21:L21)*(1+'2014 Farm Bill Calculator'!$B$20) -> 145.7376 | N21: =AVERAGE(I21:M21)*(1+'2014 Farm Bill Calculator'!$B$20) -> 148.5400704 | O21: =AVERAGE(J21:N21)*(1+'2014 Farm Bill Calculator'!$B$20) -> 148.4462448 | P21: =AVERAGE(K21:O21)*(1+'2014 Farm Bill Calculator'!$B$20) -> 148.5372787 | Q21: 139.4 | R21: 141.34 | S21: 142.01376 | T21: 141.967767 | U21: 144.4123915 | V21: 40 | W21: 34 | X21: 46 | Y21: 39 | Z21: 39 | AA21: 42 | AB21: 39 | AC21: 45 | AD21: 47 | AE21: 41 | AF21: 44.9 | AG21: =AVERAGE(AB21:AF21)*(1+'2014 Farm Bill Calculator'!$B$21) -> 43.8138 | AH21: =AVERAGE(AC21:AG21)*(1+'2014 Farm Bill Calculator'!$B$21) -> 44.7861876 | AI21: =AVERAGE(AD21:AH21)*(1+'2014 Farm Bill Calculator'!$B$21) -> 44.7429975 | AJ21: =AVERAGE(AE21:AI21)*(1+'2014 Farm Bill Calculator'!$B$21) -> 44.28708299 | AK21: 41.2 | AL21: 41.69 | AM21: 42.67138 | AN21: 42.54999876 | AO21: 43.12429851 | AP21: 65 | AQ21: 73 | AR21: 76 | AS21: 63 | AT21: 70 | AU21: 67 | AV21: 66 | AW21: 81 | AX21: 79 | AY21: 82 | AZ21: 81.80000305 | BA21: =AVERAGE(AV21:AZ21)*(1+'2014 Farm Bill Calculator'!$B$22) -> 78.73960062 | BB21: =AVERAGE(AW21:BA21)*(1+'2014 Farm Bill Calculator'!$B$22) -> 81.31299994 | BC21: =AVERAGE(AX21:BB21)*(1+'2014 Farm Bill Calculator'!$B$22) -> 81.37622593 | BD21: =AVERAGE(AY21:BC21)*(1+'2014 Farm Bill Calculator'!$B$22) -> 81.85622357 | BE21: 72.2 | BF21: 73.88000031 | BG21: 74.45396037 | BH21: 74.98526036 | BI21: 76.82288295 | BK21: 141.6666667 | BL21: 143 | BM21: 147.5792 | BN21: 147.4258901 | BO21: 147.5746384 | BQ21: 42.66666667 | BR21: 43.63333333 | BS21: 44.57126667 | BT21: 44.49999587 | BU21: 44.4476617 | BW21: 75.66666667 | BX21: 80.60000102 | BY21: 80.60000102 | BZ21: 80.70433433 | CA21: 81.49640964
A22: CRAWFORD | G22: 0.1 | H22: =G22 -> 0.1 | I22: =H22 -> 0.1 | J22: =I22 -> 0.1 | K22: =J22 -> 0.1 | L22: =AVERAGE(G22:K22)*(1+'2014 Farm Bill Calculator'!$B$20) -> 0.102 | M22: =AVERAGE(H22:L22)*(1+'2014 Farm Bill Calculator'!$B$20) -> 0.102408 | N22: =AVERAGE(I22:M22)*(1+'2014 Farm Bill Calculator'!$B$20) -> 0.102899232 | O22: =AVERAGE(J22:N22)*(1+'2014 Farm Bill Calculator'!$B$20) -> 0.1034906753 | P22: =AVERAGE(K22:O22)*(1+'2014 Farm Bill Calculator'!$B$20) -> 0.1042027731 | Q22: 0.1 | R22: 0.1003333333 | S22: 0.1006297143 | T22: 0.100913404 | U22: 0.1011997675 | AA22: 0.1 | AB22: =AA22 -> 0.1 | AC22: 0.1 | AD22: 0.1 | AE22: 0.1 | AF22: =AVERAGE(AA22:AE22)*(1+'2014 Farm Bill Calculator'!$B$21) -> 0.101 | AG22: =AVERAGE(AB22:AF22)*(1+'2014 Farm Bill Calculator'!$B$21) -> 0.101202 | AH22: =AVERAGE(AC22:AG22)*(1+'2014 Farm Bill Calculator'!$B$21) -> 0.101444804 | AI22: =AVERAGE(AD22:AH22)*(1+'2014 Farm Bill Calculator'!$B$21) -> 0.1017366544 | AJ22: =AVERAGE(AE22:AI22)*(1+'2014 Farm Bill Calculator'!$B$21) -> 0.1020874586 | AK22: 0.1 | AL22: 0.1001666667 | AM22: 0.1003145714 | AN22: 0.1004558505 | AO22: 0.100598162 | AU22: 0.1 | AV22: =AU22 -> 0.1 | AW22: 0.1 | AX22: 0.1 | AY22: 0.1 | AZ22: =AVERAGE(AU22:AY22)*(1+'2014 Farm Bill Calculator'!$B$22) -> 0.101 | BA22: =AVERAGE(AV22:AZ22)*(1+'2014 Farm Bill Calculator'!$B$22) -> 0.101202 | BB22: =AVERAGE(AW22:BA22)*(1+'2014 Farm Bill Calculator'!$B$22) -> 0.101444804 | BC22: =AVERAGE(AX22:BB22)*(1+'2014 Farm Bill Calculator'!$B$22) -> 0.1017366544 | BD22: =AVERAGE(AY22:BC22)*(1+'2014 Farm Bill Calculator'!$B$22) -> 0.1020874586 | BE22: 0.1 | BF22: 0.1001666667 | BG22: 0.1003145714 | BH22: 0.1004558505 | BI22: 0.100598162 | BK22: 0.1 | BL22: 0.1 | BM22: 0.1006666667 | BN22: 0.1014693333 | BO22: 0.102435744 | BQ22: 0.1 | BR22: 0.1 | BS22: 0.1003333333 | BT22: 0.100734 | BU22: 0.1012156013 | BW22: 0.1 | BX22: 0.1 | BY22: 0.1003333333 | BZ22: 0.100734 | CA22: 0.1012156013
A23: DELTA | B23: 59 | C23: 92 | D23: 129 | E23: 89 | F23: 64 | G23: 49 | H23: 133 | I23: 58 | J23: 99 | K23: 120 | L23: =AVERAGE(G23:K23)*(1+'2014 Farm Bill Calculator'!$B$20) -> 93.636 | M23: =AVERAGE(H23:L23)*(1+'2014 Farm Bill Calculator'!$B$20) -> 102.741744 | N23: =AVERAGE(I23:M23)*(1+'2014 Farm Bill Calculator'!$B$20) -> 96.56905978 | O23: =AVERAGE(J23:N23)*(1+'2014 Farm Bill Calculator'!$B$20) -> 104.437148 | P23: =AVERAGE(K23:O23)*(1+'2014 Farm Bill Calculator'!$B$20) -> 105.5463262 | Q23: 89.2 | R23: 92.6636 | S23: 93.7377744 | T23: 90.49468038 | U23: 92.03839517 | AA23: 0.1 | AB23: 0.1 | AC23: 0.1 | AD23: 0.1 | AE23: 0.1 | AF23: =AVERAGE(AA23:AE23)*(1+'2014 Farm Bill Calculator'!$B$21) -> 0.101 | AG23: =AVERAGE(AB23:AF23)*(1+'2014 Farm Bill Calculator'!$B$21) -> 0.101202 | AH23: =AVERAGE(AC23:AG23)*(1+'2014 Farm Bill Calculator'!$B$21) -> 0.101444804 | AI23: =AVERAGE(AD23:AH23)*(1+'2014 Farm Bill Calculator'!$B$21) -> 0.1017366544 | AJ23: =AVERAGE(AE23:AI23)*(1+'2014 Farm Bill Calculator'!$B$21) -> 0.1020874586 | AK23: 0.1 | AL23: 0.1001666667 | AM23: 0.1003145714 | AN23: 0.1004558505 | AO23: 0.100598162 | AU23: 0.1 | AV23: =AU23 -> 0.1 | AW23: 0.1 | AX23: 0.1 | AY23: 0.1 | AZ23: =AVERAGE(AU23:AY23)*(1+'2014 Farm Bill Calculator'!$B$22) -> 0.101 | BA23: =AVERAGE(AV23:AZ23)*(1+'2014 Farm Bill Calculator'!$B$22) -> 0.101202 | BB23: =AVERAGE(AW23:BA23)*(1+'2014 Farm Bill Calculator'!$B$22) -> 0.101444804 | BC23: =AVERAGE(AX23:BB23)*(1+'2014 Farm Bill Calculator'!$B$22) -> 0.1017366544 | BD23: =AVERAGE(AY23:BC23)*(1+'2014 Farm Bill Calculator'!$B$22) -> 0.1020874586 | BE23: 0.1 | BF23: 0.1001666667 | BG23: 0.1003145714 | BH23: 0.1004558505 | BI23: 0.100598162 | BK23: 92.33333333 | BL23: 104.212 | BM23: 98.459248 | BN23: 99.43693459 | BO23: 101.2493172 | BQ23: 0.1 | BR23: 0.1 | BS23: 0.1003333333 | BT23: 0.100734 | BU23: 0.1012156013 | BW23: 0.1 | BX23: 0.1 | BY23: 0.1003333333 | BZ23: 0.100734 | CA23: 0.1012156013
A24: DICKINSON | G24: 49 | H24: 139 | I24: 49 | J24: 102 | K24: 117 | L24: =AVERAGE(G24:K24)*(1+'2014 Farm Bill Calculator'!$B$20) -> 93.024 | M24: =AVERAGE(H24:L24)*(1+'2014 Farm Bill Calculator'!$B$20) -> 102.004896 | N24: =AVERAGE(I24:M24)*(1+'2014 Farm Bill Calculator'!$B$20) -> 94.45789478 | O24: =AVERAGE(J24:N24)*(1+'2014 Farm Bill Calculator'!$B$20) -> 103.7313053 | P24: =AVERAGE(K24:O24)*(1+'2014 Farm Bill Calculator'!$B$20) -> 104.0844916 | Q24: 91.2 | R24: 91.504 | S24: 93.004128 | T24: 93.18584885 | U24: 94.35756623 | AA24: 0.1 | AB24: 0.1 | AC24: 0.1 | AD24: 0.1 | AE24: 0.1 | AF24: =AVERAGE(AA24:AE24)*(1+'2014 Farm Bill Calculator'!$B$21) -> 0.101 | AG24: =AVERAGE(AB24:AF24)*(1+'2014 Farm Bill Calculator'!$B$21) -> 0.101202 | AH24: =AVERAGE(AC24:AG24)*(1+'2014 Farm Bill Calculator'!$B$21) -> 0.101444804 | AI24: =AVERAGE(AD24:AH24)*(1+'2014 Farm Bill Calculator'!$B$21) -> 0.1017366544 | AJ24: =AVERAGE(AE24:AI24)*(1+'2014 Farm Bill Calculator'!$B$21) -> 0.1020874586 | AK24: 0.1 | AL24: 0.1001666667 | AM24: 0.1003145714 | AN24: 0.1004558505 | AO24: 0.100598162 | AU24: 0.1 | AV24: =AU24 -> 0.1 | AW24: 0.1 | AX24: 0.1 | AY24: 0.1 | AZ24: =AVERAGE(AU24:AY24)*(1+'2014 Farm Bill Calculator'!$B$22) -> 0.101 | BA24: =AVERAGE(AV24:AZ24)*(1+'2014 Farm Bill Calculator'!$B$22) -> 0.101202 | BB24: =AVERAGE(AW24:BA24)*(1+'2014 Farm Bill Calculator'!$B$22) -> 0.101444804 | BC24: =AVERAGE(AX24:BB24)*(1+'2014 Farm Bill Calculator'!$B$22) -> 0.1017366544 | BD24: =AVERAGE(AY24:BC24)*(1+'2014 Farm Bill Calculator'!$B$22) -> 0.1020874586 | BE24: 0.1 | BF24: 0.1001666667 | BG24: 0.1003145714 | BH24: 0.1004558505 | BI24: 0.100598162 | BK24: 89.33333333 | BL24: 104.008 | BM24: 99.009632 | BN24: 99.48759693 | BO24: 100.0646987 | BQ24: 0.1 | BR24: 0.1 | BS24: 0.1003333333 | BT24: 0.100734 | BU24: 0.1012156013 | BW24: 0.1 | BX24: 0.1 | BY24: 0.1003333333 | BZ24: 0.100734 | CA24: 0.1012156013
A25: EATON | B25: 153 | C25: 145 | D25: 144 | E25: 118 | F25: 129 | G25: 152 | H25: 162 | I25: 147 | J25: 124 | K25: 170 | L25: 176.5 | M25: =AVERAGE(H25:L25)*(1+'2014 Farm Bill Calculator'!$B$20) -> 159.018 | N25: =AVERAGE(I25:M25)*(1+'2014 Farm Bill Calculator'!$B$20) -> 158.409672 | O25: =AVERAGE(J25:N25)*(1+'2014 Farm Bill Calculator'!$B$20) -> 160.7372451 | P25: =AVERAGE(K25:O25)*(1+'2014 Farm Bill Calculator'!$B$20) -> 168.2316431 | Q25: 144.4 | R25: 146.75 | S25: 148.1518 | T25: 149.5927672 | U25: 153.8664917 | V25: 44 | W25: 33 | X25: 48 | Y25: 42 | Z25: 33.5 | AA25: 42 | AB25: 47 | AC25: 43 | AD25: 40 | AE25: 48 | AF25: 45.1 | AG25: =AVERAGE(AB25:AF25)*(1+'2014 Farm Bill Calculator'!$B$21) -> 45.0662 | AH25: =AVERAGE(AC25:AG25)*(1+'2014 Farm Bill Calculator'!$B$21) -> 44.6755724 | AI25: =AVERAGE(AD25:AH25)*(1+'2014 Farm Bill Calculator'!$B$21) -> 45.01403802 | AJ25: =AVERAGE(AE25:AI25)*(1+'2014 Farm Bill Calculator'!$B$21) -> 46.02687371 | AK25: 42.05 | AL25: 42.16 | AM25: 43.36662 | AN25: 43.03417724 | AO25: 43.33558104 | AP25: 58 | AQ25: 63 | AR25: 71 | AS25: 64 | AT25: 55.5 | AU25: 64 | AV25: 65 | AW25: 76 | AX25: 75 | AY25: 72 | AZ25: 77.59999847 | BA25: =AVERAGE(AV25:AZ25)*(1+'2014 Farm Bill Calculator'!$B$22) -> 73.85119969 | BB25: =AVERAGE(AW25:BA25)*(1+'2014 Farm Bill Calculator'!$B$22) -> 75.63914203 | BC25: =AVERAGE(AX25:BB25)*(1+'2014 Farm Bill Calculator'!$B$22) -> 75.56624872 | BD25: =AVERAGE(AY25:BC25)*(1+'2014 Farm Bill Calculator'!$B$22) -> 75.68063096 | BE25: 66.35 | BF25: 68.30999985 | BG25: 69.39511982 | BH25: 69.85903402 | BI25: 71.01565889 | BK25: 153.6666667 | BL25: 159.6666667 | BM25: 158.6726667 | BN25: 162.4758907 | BO25: 163.2517484 | BQ25: 44 | BR25: 45.03333333 | BS25: 44.38873333 | BT25: 44.94725747 | BU25: 45.06007934 | BW25: 70.66666667 | BX25: 74.33333333 | BY25: 74.9503999 | BZ25: 74.83011391 | CA25: 75.01886348
A26: EMMET | B26: 80 | C26: 95 | D26: 111 | E26: 75 | F26: 89 | G26: 84 | H26: 127 | I26: 109 | J26: 117 | K26: 78 | L26: 132.9 | M26: =AVERAGE(H26:L26)*(1+'2014 Farm Bill Calculator'!$B$20) -> 115.0356 | N26: =AVERAGE(I26:M26)*(1+'2014 Farm Bill Calculator'!$B$20) -> 112.5948624 | O26: =AVERAGE(J26:N26)*(1+'2014 Farm Bill Calculator'!$B$20) -> 113.3282143 | P26: =AVERAGE(K26:O26)*(1+'2014 Farm Bill Calculator'!$B$20) -> 112.5791701 | Q26: 96.5 | R26: 101.79 | S26: 103.79356 | T26: 103.9530462 | U26: 107.7858677 | AA26: 0.1 | AB26: =AA26 -> 0.1 | AC26: =AB26 -> 0.1 | AD26: =AC26 -> 0.1 | AE26: =AD26 -> 0.1 | AF26: =AVERAGE(AA26:AE26)*(1+'2014 Farm Bill Calculator'!$B$21) -> 0.101 | AG26: =AVERAGE(AB26:AF26)*(1+'2014 Farm Bill Calculator'!$B$21) -> 0.101202 | AH26: =AVERAGE(AC26:AG26)*(1+'2014 Farm Bill Calculator'!$B$21) -> 0.101444804 | AI26: =AVERAGE(AD26:AH26)*(1+'2014 Farm Bill Calculator'!$B$21) -> 0.1017366544 | AJ26: =AVERAGE(AE26:AI26)*(1+'2014 Farm Bill Calculator'!$B$21) -> 0.1020874586 | AK26: 0.1 | AL26: 0.1001666667 | AM26: 0.1003145714 | AN26: 0.1004558505 | AO26: 0.100598162 | AU26: 0.1 | AV26: =AU26 -> 0.1 | AW26: =AV26 -> 0.1 | AX26: =AW26 -> 0.1 | AY26: =AX26 -> 0.1 | AZ26: =AVERAGE(AU26:AY26)*(1+'2014 Farm Bill Calculator'!$B$22) -> 0.101 | BA26: =AVERAGE(AV26:AZ26)*(1+'2014 Farm Bill Calculator'!$B$22) -> 0.101202 | BB26: =AVERAGE(AW26:BA26)*(1+'2014 Farm Bill Calculator'!$B$22) -> 0.101444804 | BC26: =AVERAGE(AX26:BB26)*(1+'2014 Farm Bill Calculator'!$B$22) -> 0.1017366544 | BD26: =AVERAGE(AY26:BC26)*(1+'2014 Farm Bill Calculator'!$B$22) -> 0.1020874586 | BE26: 0.1 | BF26: 0.1001666667 | BG26: 0.1003145714 | BH26: 0.1004558505 | BI26: 0.100598162 | BK26: =IF(COUNT(G26:K26)=5,((SUM(G26:K26)-MIN(G26:K26)-MAX(G26:K26))/3),"Data Error") -> 103.3333333 | BL26: 117.6666667 | BM26: 113.6785333 | BN26: 114.8768208 | BO26: 113.6528922 | BQ26: 0.1 | BR26: 0.1 | BS26: 0.1003333333 | BT26: 0.100734 | BU26: 0.1012156013 | BW26: 0.1 | BX26: 0.1 | BY26: 0.1003333333 | BZ26: 0.100734 | CA26: 0.1012156013
A27: GENESEE | B27: 109 | C27: 137 | D27: 121 | E27: 120 | F27: 138 | G27: 123 | H27: 131 | I27: 132 | J27: 134 | K27: 141 | L27: 142.5 | M27: =AVERAGE(H27:L27)*(1+'2014 Farm Bill Calculator'!$B$20) -> 138.822 | N27: =AVERAGE(I27:M27)*(1+'2014 Farm Bill Calculator'!$B$20) -> 140.417688 | O27: =AVERAGE(J27:N27)*(1+'2014 Farm Bill Calculator'!$B$20) -> 142.1348964 | P27: =AVERAGE(K27:O27)*(1+'2014 Farm Bill Calculator'!$B$20) -> 143.7944152 | Q27: 128.6 | R27: 131.95 | S27: 132.1322 | T27: 134.0739688 | U27: 136.2874584 | V27: 31 | W27: 38 | X27: 37 | Y27: 38 | Z27: 38 | AA27: 33 | AB27: 38 | AC27: 37 | AD27: 42 | AE27: 41 | AF27: 37 | AG27: =AVERAGE(AB27:AF27)*(1+'2014 Farm Bill Calculator'!$B$21) -> 39.39 | AH27: =AVERAGE(AC27:AG27)*(1+'2014 Farm Bill Calculator'!$B$21) -> 39.67078 | AI27: =AVERAGE(AD27:AH27)*(1+'2014 Farm Bill Calculator'!$B$21) -> 40.21027756 | AJ27: =AVERAGE(AE27:AI27)*(1+'2014 Farm Bill Calculator'!$B$21) -> 39.84875363 | AK27: 37.3 | AL27: 37.9 | AM27: 38.039 | AN27: 38.306078 | AO27: 38.52710576 | AP27: 57 | AQ27: 58 | AR27: 62 | AS27: 57 | AT27: 57.5 | AU27: 49 | AV27: 58 | AW27: 60 | AX27: 66 | AY27: 63 | AZ27: 62 | BA27: =AVERAGE(AV27:AZ27)*(1+'2014 Farm Bill Calculator'!$B$22) -> 62.418 | BB27: =AVERAGE(AW27:BA27)*(1+'2014 Farm Bill Calculator'!$B$22) -> 63.310436 | BC27: =AVERAGE(AX27:BB27)*(1+'2014 Farm Bill Calculator'!$B$22) -> 63.97914407 | BD27: =AVERAGE(AY27:BC27)*(1+'2014 Farm Bill Calculator'!$B$22) -> 63.57093117 | BE27: 58.75 | BF27: 59.25 | BG27: 59.6918 | BH27: 59.8228436 | BI27: 60.52075801 | BK27: 132.3333333 | BL27: 135.6666667 | BM27: 137.9406667 | BN27: 140.079896 | BO27: 141.1841948 | BQ27: 38.66666667 | BR27: 38.66666667 | BS27: 39.13 | BT27: 40.02026 | BU27: 39.75701919 | BW27: 60.33333333 | BX27: 61.66666667 | BY27: 62.47266667 | BZ27: 62.90947867 | CA27: 62.90947867
A28: GLADWIN | B28: 113 | C28: 162 | D28: 134 | F28: 138 | G28: 116 | H28: 153 | I28: 156 | J28: 148 | K28: 117 | L28: 158 | M28: =AVERAGE(H28:L28)*(1+'2014 Farm Bill Calculator'!$B$20) -> 149.328 | N28: =AVERAGE(I28:M28)*(1+'2014 Farm Bill Calculator'!$B$20) -> 148.578912 | O28: =AVERAGE(J28:N28)*(1+'2014 Farm Bill Calculator'!$B$20) -> 147.06501 | P28: =AVERAGE(K28:O28)*(1+'2014 Farm Bill Calculator'!$B$20) -> 146.8742721 | Q28: 137.4444444 | R28: 142.4444444 | S28: 141.0364444 | T28: 142.6563236 | U28: 143.0971922 | V28: 29 | W28: 42 | X28: 41 | Y28: 37 | AA28: 36 | AB28: 49 | AC28: 45 | AD28: 52 | AE28: 37 | AF28: 40.3 | AG28: =AVERAGE(AB28:AF28)*(1+'2014 Farm Bill Calculator'!$B$21) -> 45.1066 | AH28: =AVERAGE(AC28:AG28)*(1+'2014 Farm Bill Calculator'!$B$21) -> 44.3201332 | AI28: =AVERAGE(AD28:AH28)*(1+'2014 Farm Bill Calculator'!$B$21) -> 44.18280011 | AJ28: =AVERAGE(AE28:AI28)*(1+'2014 Farm Bill Calculator'!$B$21) -> 42.60372573 | AK28: 40.88888889 | AL28: 42.14444444 | AM28: 42.48962222 | AN28: 42.85852591 | AO28: 43.65661481 | AP28: 59 | AQ28: 46 | AR28: 62 | AS28: 69 | AT28: 62.5 | AU28: 63 | AV28: 76 | AW28: 64 | AX28: 78 | AY28: 71 | AZ28: =AVERAGE(AU28:AY28)*(1+'2014 Farm Bill Calculator'!$B$22) -> 71.104 | BA28: =AVERAGE(AV28:AZ28)*(1+'2014 Farm Bill Calculator'!$B$22) -> 72.741008 | BB28: =AVERAGE(AW28:BA28)*(1+'2014 Farm Bill Calculator'!$B$22) -> 72.08269162 | BC28: =AVERAGE(AX28:BB28)*(1+'2014 Farm Bill Calculator'!$B$22) -> 73.71539532 | BD28: =AVERAGE(AY28:BC28)*(1+'2014 Farm Bill Calculator'!$B$22) -> 72.84990518 | BE28: 65.05 | BF28: 66.2604 | BG28: 68.9345008 | BH28: 69.94276996 | BI28: 70.41430949 | BK28: 139.3333333 | BL28: 152.3333333 | BM28: 151.1093333 | BN28: 148.6356373 | BO28: 148.323974 | BQ28: 43.66666667 | BR28: 44.76666667 | BS28: 43.46886667 | BT28: 43.2422444 | BU28: 42.9343111 | BW28: 70.33333333 | BX28: 72.70133333 | BY28: 71.61500267 | BZ28: 71.97589987 | CA28: 71.97589987
A29: GOGEBIC | G29: 0.1 | H29: =G29 -> 0.1 | I29: =H29 -> 0.1 | J29: =I29 -> 0.1 | K29: =J29 -> 0.1 | M29: =AVERAGE(H29:L29)*(1+'2014 Farm Bill Calculator'!$B$20) -> 0.102 | N29: =AVERAGE(I29:M29)*(1+'2014 Farm Bill Calculator'!$B$20) -> 0.10251 | O29: =AVERAGE(J29:N29)*(1+'2014 Farm Bill Calculator'!$B$20) -> 0.10315005 | P29: =AVERAGE(K29:O29)*(1+'2014 Farm Bill Calculator'!$B$20) -> 0.1039533127 | Q29: 0.1 | R29: 0.1 | S29: 0.1003333333 | T29: 0.1006442857 | U29: 0.1009575062 | AA29: 0.1 | AB29: =AA29 -> 0.1 | AC29: =AB29 -> 0.1 | AD29: =AC29 -> 0.1 | AE29: =AD29 -> 0.1 | AF29: =AVERAGE(AA29:AE29)*(1+'2014 Farm Bill Calculator'!$B$21) -> 0.101 | AG29: =AVERAGE(AB29:AF29)*(1+'2014 Farm Bill Calculator'!$B$21) -> 0.101202 | AH29: =AVERAGE(AC29:AG29)*(1+'2014 Farm Bill Calculator'!$B$21) -> 0.101444804 | AI29: =AVERAGE(AD29:AH29)*(1+'2014 Farm Bill Calculator'!$B$21) -> 0.1017366544 | AJ29: =AVERAGE(AE29:AI29)*(1+'2014 Farm Bill Calculator'!$B$21) -> 0.1020874586 | AK29: 0.1 | AL29: 0.1001666667 | AM29: 0.1003145714 | AN29: 0.1004558505 | AO29: 0.100598162 | AU29: 0.1 | AV29: =AU29 -> 0.1 | AW29: =AV29 -> 0.1 | AX29: =AW29 -> 0.1 | AY29: =AX29 -> 0.1 | AZ29: =AVERAGE(AU29:AY29)*(1+'2014 Farm Bill Calculator'!$B$22) -> 0.101 | BA29: =AVERAGE(AV29:AZ29)*(1+'2014 Farm Bill Calculator'!$B$22) -> 0.101202 | BB29: =AVERAGE(AW29:BA29)*(1+'2014 Farm Bill Calculator'!$B$22) -> 0.101444804 | BC29: =AVERAGE(AX29:BB29)*(1+'2014 Farm Bill Calculator'!$B$22) -> 0.1017366544 | BD29: =AVERAGE(AY29:BC29)*(1+'2014 Farm Bill Calculator'!$B$22) -> 0.1020874586 | BE29: 0.1 | BF29: 0.1001666667 | BG29: 0.1003145714 | BH29: 0.1004558505 | BI29: 0.100598162 | BK29: 0.1 | BL29: Data Error | BM29: Data Error | BN29: Data Error | BO29: Data Error | BQ29: 0.1 | BR29: 0.1 | BS29: 0.1003333333 | BT29: 0.100734 | BU29: 0.1012156013 | BW29: 0.1 | BX29: 0.1 | BY29: 0.1003333333 | BZ29: 0.100734 | CA29: 0.1012156013
A30: GRAND TRAVERSE | B30: 81 | C30: 100 | D30: 98 | E30: 44 | F30: 77 | G30: 91 | H30: 116 | I30: 102 | J30: 65 | K30: 81 | L30: 86.7 | M30: =AVERAGE(H30:L30)*(1+'2014 Farm Bill Calculator'!$B$20) -> 91.9428 | N30: =AVERAGE(I30:M30)*(1+'2014 Farm Bill Calculator'!$B$20) -> 87.0351312 | O30: =AVERAGE(J30:N30)*(1+'2014 Farm Bill Calculator'!$B$20) -> 83.98229796 | P30: =AVERAGE(K30:O30)*(1+'2014 Farm Bill Calculator'!$B$20) -> 87.85468675 | Q30: 85.5 | R30: 86.07 | S30: 85.26428 | T30: 84.16779312 | U30: 88.16602292 | X30: 27 | Y30: 10 | AA30: 28 | AB30: 33 | AC30: 35 | AD30: 28 | AE30: 27 | AF30: =AVERAGE(AA30:AE30)*(1+'2014 Farm Bill Calculator'!$B$21) -> 30.502 | AG30: =AVERAGE(AB30:AF30)*(1+'2014 Farm Bill Calculator'!$B$21) -> 31.007404 | AH30: =AVERAGE(AC30:AG30)*(1+'2014 Farm Bill Calculator'!$B$21) -> 30.60489961 | AI30: =AVERAGE(AD30:AH30)*(1+'2014 Farm Bill Calculator'!$B$21) -> 29.71708933 | AJ30: =AVERAGE(AE30:AI30)*(1+'2014 Farm Bill Calculator'!$B$21) -> 30.06394137 | AK30: 26.85714286 | AL30: 27.31275 | AM30: 27.72326711 | AN30: 28.12381151 | AO30: 30.31459922 | AP30: 55 | AQ30: 43 | AR30: 55 | AS30: 36 | AT30: 53 | AU30: 44 | AV30: 35 | AW30: 49 | AX30: 47 | AY30: 40 | AZ30: =AVERAGE(AU30:AY30)*(1+'2014 Farm Bill Calculator'!$B$22) -> 43.43 | BA30: =AVERAGE(AV30:AZ30)*(1+'2014 Farm Bill Calculator'!$B$22) -> 43.31486 | BB30: =AVERAGE(AW30:BA30)*(1+'2014 Farm Bill Calculator'!$B$22) -> 44.99446172 | BC30: =AVERAGE(AX30:BB30)*(1+'2014 Farm Bill Calculator'!$B$22) -> 44.18534299 | BD30: =AVERAGE(AY30:BC30)*(1+'2014 Farm Bill Calculator'!$B$22) -> 43.61678227 | BE30: 45.7 | BF30: 44.543 | BG30: 44.574486 | BH30: 43.57393217 | BI30: 44.39246647 | BK30: 91.33333333 | BL30: 89.9 | BM30: 86.5476 | BN30: 84.9117104 | BO30: 85.90580972 | BQ30: 29.66666667 | BR30: 30.50066667 | BS30: 29.836468 | BT30: 29.70229987 | BU30: 30.27466298 | BW30: 43.66666667 | BX30: 43.47666667 | BY30: 44.58162 | BZ30: 43.91310724 | CA30: 43.643401
A31: GRATIOT | B31: 125 | C31: 145 | D31: 141 | E31: 125 | F31: 138 | G31: 156 | H31: 145 | I31: 155 | J31: 173 | K31: 135 | L31: 153.5 | M31: =AVERAGE(H31:L31)*(1+'2014 Farm Bill Calculator'!$B$20) -> 155.346 | N31: =AVERAGE(I31:M31)*(1+'2014 Farm Bill Calculator'!$B$20) -> 157.456584 | O31: =AVERAGE(J31:N31)*(1+'2014 Farm Bill Calculator'!$B$20) -> 157.9577271 | P31: =AVERAGE(K31:O31)*(1+'2014 Farm Bill Calculator'!$B$20) -> 154.8891035 | Q31: 143.8 | R31: 146.65 | S31: 147.6846 | T31: 149.3302584 | U31: 152.6260311 | V31: 33 | W31: 39 | X31: 48 | Y31: 38 | Z31: 36 | AA31: 43 | AB31: 41 | AC31: 45 | AD31: 53 | AE31: 41 | AF31: 42.4 | AG31: =AVERAGE(AB31:AF31)*(1+'2014 Farm Bill Calculator'!$B$21) -> 44.9248 | AH31: =AVERAGE(AC31:AG31)*(1+'2014 Farm Bill Calculator'!$B$21) -> 45.7176096 | AI31: =AVERAGE(AD31:AH31)*(1+'2014 Farm Bill Calculator'!$B$21) -> 45.86256674 | AJ31: =AVERAGE(AE31:AI31)*(1+'2014 Farm Bill Calculator'!$B$21) -> 44.42080522 | AK31: 41.7 | AL31: 42.64 | AM31: 43.23248 | AN31: 43.00424096 | AO31: 43.79049763 | AP31: 69 | AQ31: 72 | AR31: 76 | AS31: 67 | AT31: 72 | AU31: 70 | AV31: 73 | AW31: 74 | AX31: 92 | AY31: 72 | AZ31: 79.5 | BA31: =AVERAGE(AV31:AZ31)*(1+'2014 Farm Bill Calculator'!$B$22) -> 78.881 | BB31: =AVERAGE(AW31:BA31)*(1+'2014 Farm Bill Calculator'!$B$22) -> 80.068962 | BC31: =AVERAGE(AX31:BB31)*(1+'2014 Farm Bill Calculator'!$B$22) -> 81.29489232 | BD31: =AVERAGE(AY31:BC31)*(1+'2014 Farm Bill Calculator'!$B$22) -> 79.13246057 | BE31: 73.7 | BF31: 74.75 | BG31: 75.4381 | BH31: 75.8449962 | BI31: 77.27448543 | BK31: 152 | BL31: 151.1666667 | BM31: 154.6153333 | BN31: 155.4341947 | BO31: 155.4341947 | BQ31: 43 | BR31: 42.8 | BS31: 44.10826667 | BT31: 44.34746987 | BU31: 44.34746987 | BW31: 73 | BX31: 75.5 | BY31: 77.46033333 | BZ31: 79.48332067 | CA31: 79.48332067
A32: HILLSDALE | B32: 135 | C32: 151 | D32: 149 | E32: 113 | F32: 124 | G32: 133 | H32: 140 | I32: 139 | J32: 109 | K32: 169 | L32: 155 | M32: =AVERAGE(H32:L32)*(1+'2014 Farm Bill Calculator'!$B$20) -> 145.248 | N32: =AVERAGE(I32:M32)*(1+'2014 Farm Bill Calculator'!$B$20) -> 146.318592 | O32: =AVERAGE(J32:N32)*(1+'2014 Farm Bill Calculator'!$B$20) -> 147.8115848 | P32: =AVERAGE(K32:O32)*(1+'2014 Farm Bill Calculator'!$B$20) -> 155.7291481 | Q32: 136.2 | R32: 138.2 | S32: 137.6248 | T32: 137.3566592 | U32: 140.8378177 | V32: 40 | W32: 42 | X32: 48 | Y32: 39 | Z32: 32.5 | AA32: 36 | AB32: 45 | AC32: 44 | AD32: 40 | AE32: 47 | AF32: 39.3 | AG32: =AVERAGE(AB32:AF32)*(1+'2014 Farm Bill Calculator'!$B$21) -> 43.4906 | AH32: =AVERAGE(AC32:AG32)*(1+'2014 Farm Bill Calculator'!$B$21) -> 43.1857012 | AI32: =AVERAGE(AD32:AH32)*(1+'2014 Farm Bill Calculator'!$B$21) -> 43.02121284 | AJ32: =AVERAGE(AE32:AI32)*(1+'2014 Farm Bill Calculator'!$B$21) -> 43.63149784 | AK32: 41.35 | AL32: 41.28 | AM32: 41.42906 | AN32: 40.94763012 | AO32: 41.3497514 | AP32: 50 | AQ32: 64 | AR32: 63 | AS32: 54 | AT32: 64 | AU32: 66 | AV32: 62 | AW32: 65 | AX32: 69 | AY32: 74 | AZ32: 71.80000305 | BA32: =AVERAGE(AV32:AZ32)*(1+'2014 Farm Bill Calculator'!$B$22) -> 69.04360062 | BB32: =AVERAGE(AW32:BA32)*(1+'2014 Farm Bill Calculator'!$B$22) -> 70.46640794 | BC32: =AVERAGE(AX32:BB32)*(1+'2014 Farm Bill Calculator'!$B$22) -> 71.57062235 | BD32: =AVERAGE(AY32:BC32)*(1+'2014 Farm Bill Calculator'!$B$22) -> 72.08988806 | BE32: 63.1 | BF32: 65.28000031 | BG32: 65.78436037 | BH32: 66.53100116 | BI32: 68.2880634 | BK32: 137.3333333 | BL32: 144.6666667 | BM32: 146.416 | BN32: 148.8555307 | BO32: 149.7100589 | BQ32: 43 | BR32: 43 | BS32: 42.49686667 | BT32: 42.22543373 | BU32: 43.23250468 | BW32: 66.66666667 | BX32: 68.60000102 | BY32: 69.94786789 | BZ32: 70.43667054 | CA32: 71.27901111
A33: HOUGHTON | G33: 0.1 | H33: =G33 -> 0.1 | I33: =H33 -> 0.1 | J33: =I33 -> 0.1 | K33: =J33 -> 0.1 | M33: =AVERAGE(H33:L33)*(1+'2014 Farm Bill Calculator'!$B$20) -> 0.102 | N33: =AVERAGE(I33:M33)*(1+'2014 Farm Bill Calculator'!$B$20) -> 0.10251 | O33: =AVERAGE(J33:N33)*(1+'2014 Farm Bill Calculator'!$B$20) -> 0.10315005 | P33: =AVERAGE(K33:O33)*(1+'2014 Farm Bill Calculator'!$B$20) -> 0.1039533127 | Q33: 0.1 | R33: 0.1 | S33: 0.1003333333 | T33: 0.1006442857 | U33: 0.1009575062 | AA33: 0.1 | AB33: =AA33 -> 0.1 | AC33: =AB33 -> 0.1 | AD33: =AC33 -> 0.1 | AE33: =AD33 -> 0.1 | AF33: =AVERAGE(AA33:AE33)*(1+'2014 Farm Bill Calculator'!$B$21) -> 0.101 | AG33: =AVERAGE(AB33:AF33)*(1+'2014 Farm Bill Calculator'!$B$21) -> 0.101202 | AH33: =AVERAGE(AC33:AG33)*(1+'2014 Farm Bill Calculator'!$B$21) -> 0.101444804 | AI33: =AVERAGE(AD33:AH33)*(1+'2014 Farm Bill Calculator'!$B$21) -> 0.1017366544 | AJ33: =AVERAGE(AE33:AI33)*(1+'2014 Farm Bill Calculator'!$B$21) -> 0.1020874586 | AK33: 0.1 | AL33: 0.1001666667 | AM33: 0.1003145714 | AN33: 0.1004558505 | AO33: 0.100598162 | AU33: 0.1 | AV33: =AU33 -> 0.1 | AW33: =AV33 -> 0.1 | AX33: =AW33 -> 0.1 | AY33: =AX33 -> 0.1 | AZ33: =AVERAGE(AU33:AY33)*(1+'2014 Farm Bill Calculator'!$B$22) -> 0.101 | BA33: =AVERAGE(AV33:AZ33)*(1+'2014 Farm Bill Calculator'!$B$22) -> 0.101202 | BB33: =AVERAGE(AW33:BA33)*(1+'2014 Farm Bill Calculator'!$B$22) -> 0.101444804 | BC33: =AVERAGE(AX33:BB33)*(1+'2014 Farm Bill Calculator'!$B$22) -> 0.1017366544 | BD33: =AVERAGE(AY33:BC33)*(1+'2014 Farm Bill Calculator'!$B$22) -> 0.1020874586 | BE33: 0.1 | BF33: 0.1001666667 | BG33: 0.1003145714 | BH33: 0.1004558505 | BI33: 0.100598162 | BK33: 0.1 | BL33: Data Error | BM33: Data Error | BN33: Data Error | BO33: Data Error | BQ33: 0.1 | BR33: 0.1 | BS33: 0.1003333333 | BT33: 0.100734 | BU33: 0.1012156013 | BW33: 0.1 | BX33: 0.1 | BY33: 0.1003333333 | BZ33: 0.100734 | CA33: 0.1012156013
A34: HURON | B34: 139 | C34: 160 | D34: 167 | E34: 147 | F34: 174 | G34: 167 | H34: 172 | I34: 175 | J34: 129 | K34: 164 | L34: 172.3 | M34: =AVERAGE(H34:L34)*(1+'2014 Farm Bill Calculator'!$B$20) -> 165.7092 | N34: =AVERAGE(I34:M34)*(1+'2014 Farm Bill Calculator'!$B$20) -> 164.4258768 | O34: =AVERAGE(J34:N34)*(1+'2014 Farm Bill Calculator'!$B$20) -> 162.2687557 | P34: =AVERAGE(K34:O34)*(1+'2014 Farm Bill Calculator'!$B$20) -> 169.0555818 | Q34: 159.4 | R34: 162.73 | S34: 163.30092 | T34: 163.0435077 | U34: 164.5703832 | V34: 43 | W34: 46 | X34: 50 | Y34: 45 | Z34: 48.5 | AA34: 40 | AB34: 46 | AC34: 48 | AD34: 50 | AE34: 47 | AF34: 39 | AG34: =AVERAGE(AB34:AF34)*(1+'2014 Farm Bill Calculator'!$B$21) -> 46.46 | AH34: =AVERAGE(AC34:AG34)*(1+'2014 Farm Bill Calculator'!$B$21) -> 46.55292 | AI34: =AVERAGE(AD34:AH34)*(1+'2014 Farm Bill Calculator'!$B$21) -> 46.26060984 | AJ34: =AVERAGE(AE34:AI34)*(1+'2014 Farm Bill Calculator'!$B$21) -> 45.50525303 | AK34: 46.35 | AL34: 45.95 | AM34: 45.996 | AN34: 45.651292 | AO34: 45.77735298 | AP34: 82 | AQ34: 80 | AR34: 86 | AS34: 80 | AT34: 87.5 | AU34: 64 | AV34: 86 | AW34: 91 | AX34: 88 | AY34: 92 | AZ34: 90.40000153 | BA34: =AVERAGE(AV34:AZ34)*(1+'2014 Farm Bill Calculator'!$B$22) -> 90.37480031 | BB34: =AVERAGE(AW34:BA34)*(1+'2014 Farm Bill Calculator'!$B$22) -> 91.25850997 | BC34: =AVERAGE(AX34:BB34)*(1+'2014 Farm Bill Calculator'!$B$22) -> 91.31072898 | BD34: =AVERAGE(AY34:BC34)*(1+'2014 Farm Bill Calculator'!$B$22) -> 91.97949624 | BE34: 83.65 | BF34: 84.49000015 | BG34: 85.52748018 | BH34: 86.05333118 | BI34: 87.18440408 | BK34: 167.6666667 | BL34: 169.4333333 | BM34: 167.3364 | BN34: 164.7116923 | BO34: 164.7116923 | BQ34: 47 | BR34: 47 | BS34: 47.15333333 | BT34: 46.67097333 | BU34: 46.42450995 | BW34: 88.33333333 | BX34: 89.80000051 | BY34: 90.59160061 | BZ34: 90.6777706 | CA34: 90.98974683
A35: INGHAM | B35: 159 | C35: 145 | D35: 151 | E35: 118 | F35: 129 | G35: 151 | H35: 159 | I35: 148 | J35: 116 | K35: 161 | L35: 175.9 | M35: =AVERAGE(H35:L35)*(1+'2014 Farm Bill Calculator'!$B$20) -> 155.0196 | N35: =AVERAGE(I35:M35)*(1+'2014 Farm Bill Calculator'!$B$20) -> 154.2075984 | O35: =AVERAGE(J35:N35)*(1+'2014 Farm Bill Calculator'!$B$20) -> 155.4739485 | P35: =AVERAGE(K35:O35)*(1+'2014 Farm Bill Calculator'!$B$20) -> 163.526634 | Q35: 143.7 | R35: 145.39 | S35: 146.39196 | T35: 146.7127198 | U35: 150.4601147 | V35: 47 | W35: 37 | X35: 47 | Y35: 41 | Z35: 34.5 | AA35: 41 | AB35: 47 | AC35: 46 | AD35: 39 | AE35: 48 | AF35: 49.7 | AG35: =AVERAGE(AB35:AF35)*(1+'2014 Farm Bill Calculator'!$B$21) -> 46.3994 | AH35: =AVERAGE(AC35:AG35)*(1+'2014 Farm Bill Calculator'!$B$21) -> 46.2780788 | AI35: =AVERAGE(AD35:AH35)*(1+'2014 Farm Bill Calculator'!$B$21) -> 46.33425072 | AJ35: =AVERAGE(AE35:AI35)*(1+'2014 Farm Bill Calculator'!$B$21) -> 47.81576936 | AK35: 42.75 | AL35: 43.02 | AM35: 43.95994 | AN35: 43.88774788 | AO35: 44.42117295 | AP35: 61 | AQ35: 66 | AR35: 74 | AS35: 66 | AT35: 65.5 | AU35: 66 | AV35: 70 | AW35: 80 | AX35: 84 | AY35: 84 | AZ35: 83 | BA35: =AVERAGE(AV35:AZ35)*(1+'2014 Farm Bill Calculator'!$B$22) -> 81.002 | BB35: =AVERAGE(AW35:BA35)*(1+'2014 Farm Bill Calculator'!$B$22) -> 83.224404 | BC35: =AVERAGE(AX35:BB35)*(1+'2014 Farm Bill Calculator'!$B$22) -> 83.87573361 | BD35: =AVERAGE(AY35:BC35)*(1+'2014 Farm Bill Calculator'!$B$22) -> 83.8506318 | BE35: 71.65 | BF35: 73.85 | BG35: 75.3502 | BH35: 76.2726404 | BI35: 78.06021376 | BK35: =IF(COUNT(G35:K35)=5,((SUM(G35:K35)-MIN(G35:K35)-MAX(G35:K35))/3),"Data Error") -> 152.6666667 | BL35: =IF(COUNT(H35:L35)=5,((SUM(H35:L35)-MIN(H35:L35)-MAX(H35:L35))/3),"Data Error") -> 156 | BM35: =IF(COUNT(I35:M35)=5,((SUM(I35:M35)-MIN(I35:M35)-MAX(I35:M35))/3),"Data Error") -> 154.6732 | BN35: =IF(COUNT(J35:N35)=5,((SUM(J35:N35)-MIN(J35:N35)-MAX(J35:N35))/3),"Data Error") -> 156.7423995 | BO35: =IF(COUNT(K35:O35)=5,((SUM(K35:O35)-MIN(K35:O35)-MAX(K35:O35))/3),"Data Error") -> 157.1645162 | BQ35: =IF(COUNT(AA35:AE35)=5,((SUM(AA35:AE35)-MIN(AA35:AE35)-MAX(AA35:AE35))/3),"Data Error") -> 44.66666667 | BR35: =IF(COUNT(AB35:AF35)=5,((SUM(AB35:AF35)-MIN(AB35:AF35)-MAX(AB35:AF35))/3),"Data Error") -> 47 | BS35: =IF(COUNT(AC35:AG35)=5,((SUM(AC35:AG35)-MIN(AC35:AG35)-MAX(AC35:AG35))/3),"Data Error") -> 46.7998 | BT35: =IF(COUNT(AD35:AH35)=5,((SUM(AD35:AH35)-MIN(AD35:AH35)-MAX(AD35:AH35))/3),"Data Error") -> 46.89249293 | BU35: =IF(COUNT(AE35:AI35)=5,((SUM(AE35:AI35)-MIN(AE35:AI35)-MAX(AE35:AI35))/3),"Data Error") -> 46.91121691 | BW35: 78 | BX35: 82.33333333 | BY35: 82.66733333 | BZ35: 83.40813467 | CA35: 83.36671254
A36: IONIA | B36: 146 | C36: 142 | D36: 147 | E36: 132 | F36: 148 | G36: 153 | H36: 160 | I36: 165 | J36: 139 | K36: 159 | L36: 161.4 | M36: =AVERAGE(H36:L36)*(1+'2014 Farm Bill Calculator'!$B$20) -> 160.0176 | N36: =AVERAGE(I36:M36)*(1+'2014 Farm Bill Calculator'!$B$20) -> 160.0211904 | O36: =AVERAGE(J36:N36)*(1+'2014 Farm Bill Calculator'!$B$20) -> 159.0055132 | P36: =AVERAGE(K36:O36)*(1+'2014 Farm Bill Calculator'!$B$20) -> 163.0866379 | Q36: 149.1 | R36: 150.64 | S36: 152.44176 | T36: 153.743879 | U36: 156.4444304 | V36: 43 | W36: 40 | X36: 46 | Y36: 41 | Z36: 37 | AA36: 45 | AB36: 48 | AC36: 48 | AD36: 50 | AE36: 47 | AF36: 45.2 | AG36: =AVERAGE(AB36:AF36)*(1+'2014 Farm Bill Calculator'!$B$21) -> 48.1164 | AH36: =AVERAGE(AC36:AG36)*(1+'2014 Farm Bill Calculator'!$B$21) -> 48.1399128 | AI36: =AVERAGE(AD36:AH36)*(1+'2014 Farm Bill Calculator'!$B$21) -> 48.16817519 | AJ36: =AVERAGE(AE36:AI36)*(1+'2014 Farm Bill Calculator'!$B$21) -> 47.79814657 | AK36: 44.5 | AL36: 44.72 | AM36: 45.53164 | AN36: 45.74563128 | AO36: 46.4624488 | AP36: 57 | AQ36: 64 | AR36: 66 | AS36: 62 | AT36: 64 | AU36: 66 | AV36: 63 | AW36: 77 | AX36: 74 | AY36: 78 | AZ36: 77.80000305 | BA36: =AVERAGE(AV36:AZ36)*(1+'2014 Farm Bill Calculator'!$B$22) -> 74.69960062 | BB36: =AVERAGE(AW36:BA36)*(1+'2014 Farm Bill Calculator'!$B$22) -> 77.06291994 | BC36: =AVERAGE(AX36:BB36)*(1+'2014 Farm Bill Calculator'!$B$22) -> 77.07562977 | BD36: =AVERAGE(AY36:BC36)*(1+'2014 Farm Bill Calculator'!$B$22) -> 77.69690698 | BE36: 67.1 | BF36: 69.18000031 | BG36: 70.24996037 | BH36: 71.35625236 | BI36: 72.86381534 | BK36: 157.3333333 | BL36: 160.1333333 | BM36: 160.1392 | BN36: 159.6795968 | BO36: 159.6814345 | BQ36: 47.66666667 | BR36: 47.66666667 | BS36: 47.70546667 | BT36: 47.75210427 | BU36: 47.75210427 | BW36: 72.33333333 | BX36: 76.26666768 | BY36: 76.49986789 | BZ36: 76.5208412 | CA36: 77.31285092
A37: IOSCO | B37: 92 | C37: 142 | D37: 138 | E37: 110 | F37: 131 | G37: 119 | H37: 146 | I37: 150 | J37: 133 | K37: 122 | L37: 128 | M37: =AVERAGE(H37:L37)*(1+'2014 Farm Bill Calculator'!$B$20) -> 138.516 | N37: =AVERAGE(I37:M37)*(1+'2014 Farm Bill Calculator'!$B$20) -> 136.989264 | O37: =AVERAGE(J37:N37)*(1+'2014 Farm Bill Calculator'!$B$20) -> 134.3350739 | P37: =AVERAGE(K37:O37)*(1+'2014 Farm Bill Calculator'!$B$20) -> 134.6074289 | Q37: 128.3 | R37: 131.9 | S37: 131.5516 | T37: 131.4505264 | U37: 133.8840338 | X37: 44 | Y37: 32 | Z37: 33 | AA37: 35 | AB37: 44 | AC37: 34 | AD37: 43 | AE37: 33 | AF37: 32.2 | AG37: =AVERAGE(AB37:AF37)*(1+'2014 Farm Bill Calculator'!$B$21) -> 37.6124 | AH37: =AVERAGE(AC37:AG37)*(1+'2014 Farm Bill Calculator'!$B$21) -> 36.3221048 | AI37: =AVERAGE(AD37:AH37)*(1+'2014 Farm Bill Calculator'!$B$21) -> 36.79116997 | AJ37: =AVERAGE(AE37:AI37)*(1+'2014 Farm Bill Calculator'!$B$21) -> 35.5369863 | AK37: 37.25 | AL37: 36.68888889 | AM37: 36.78124 | AN37: 36.01345048 | AO37: 36.49256748 | AP37: 60 | AQ37: 74 | AR37: 78 | AS37: 66 | AT37: 58 | AU37: 71 | AV37: 52 | AW37: 77 | AX37: 67 | AY37: 64 | AZ37: =AVERAGE(AU37:AY37)*(1+'2014 Farm Bill Calculator'!$B$22) -> 66.862 | BA37: =AVERAGE(AV37:AZ37)*(1+'2014 Farm Bill Calculator'!$B$22) -> 66.026124 | BB37: =AVERAGE(AW37:BA37)*(1+'2014 Farm Bill Calculator'!$B$22) -> 68.85940105 | BC37: =AVERAGE(AX37:BB37)*(1+'2014 Farm Bill Calculator'!$B$22) -> 67.21500006 | BD37: =AVERAGE(AY37:BC37)*(1+'2014 Farm Bill Calculator'!$B$22) -> 67.25843007 | BE37: 66.7 | BF37: 67.3862 | BG37: 66.5888124 | BH37: 65.6747525 | BI37: 65.79625251 | BK37: 133.6666667 | BL37: 135.6666667 | BM37: 133.172 | BN37: 132.663088 | BO37: 133.1081126 | BQ37: 37.33333333 | BR37: 36.66666667 | BS37: 34.8708 | BT37: 35.64483493 | BU37: 35.37109159 | BW37: 67.33333333 | BX37: 65.954 | BY37: 66.62937467 | BZ37: 66.62937467 | CA37: 66.70104135
A38: IRON | G38: 0.1 | H38: =G38 -> 0.1 | I38: =H38 -> 0.1 | J38: =I38 -> 0.1 | K38: =J38 -> 0.1 | L38: =AVERAGE(G38:K38)*(1+'2014 Farm Bill Calculator'!$B$20) -> 0.102 | M38: =AVERAGE(H38:L38)*(1+'2014 Farm Bill Calculator'!$B$20) -> 0.102408 | N38: =AVERAGE(I38:M38)*(1+'2014 Farm Bill Calculator'!$B$20) -> 0.102899232 | O38: =AVERAGE(J38:N38)*(1+'2014 Farm Bill Calculator'!$B$20) -> 0.1034906753 | P38: =AVERAGE(K38:O38)*(1+'2014 Farm Bill Calculator'!$B$20) -> 0.1042027731 | Q38: 0.1 | R38: 0.1003333333 | S38: 0.1006297143 | T38: 0.100913404 | U38: 0.1011997675 | AA38: 0.1 | AB38: =AA38 -> 0.1 | AC38: =AB38 -> 0.1 | AD38: =AC38 -> 0.1 | AE38: =AD38 -> 0.1 | AF38: =AVERAGE(AA38:AE38)*(1+'2014 Farm Bill Calculator'!$B$21) -> 0.101 | AG38: =AVERAGE(AB38:AF38)*(1+'2014 Farm Bill Calculator'!$B$21) -> 0.101202 | AH38: =AVERAGE(AC38:AG38)*(1+'2014 Farm Bill Calculator'!$B$21) -> 0.101444804 | AI38: =AVERAGE(AD38:AH38)*(1+'2014 Farm Bill Calculator'!$B$21) -> 0.1017366544 | AJ38: =AVERAGE(AE38:AI38)*(1+'2014 Farm Bill Calculator'!$B$21) -> 0.1020874586 | AK38: 0.1 | AL38: 0.1001666667 | AM38: 0.1003145714 | AN38: 0.1004558505 | AO38: 0.100598162 | AU38: 0.1 | AV38: =AU38 -> 0.1 | AW38: =AV38 -> 0.1 | AX38: =AW38 -> 0.1 | AY38: =AX38 -> 0.1 | AZ38: =AVERAGE(AU38:AY38)*(1+'2014 Farm Bill Calculator'!$B$22) -> 0.101 | BA38: =AVERAGE(AV38:AZ38)*(1+'2014 Farm Bill Calculator'!$B$22) -> 0.101202 | BB38: =AVERAGE(AW38:BA38)*(1+'2014 Farm Bill Calculator'!$B$22) -> 0.101444804 | BC38: =AVERAGE(AX38:BB38)*(1+'2014 Farm Bill Calculator'!$B$22) -> 0.1017366544 | BD38: =AVERAGE(AY38:BC38)*(1+'2014 Farm Bill Calculator'!$B$22) -> 0.1020874586 | BE38: 0.1 | BF38: 0.1001666667 | BG38: 0.1003145714 | BH38: 0.1004558505 | BI38: 0.100598162 | BK38: 0.1 | BL38: 0.1 | BM38: 0.1006666667 | BN38: 0.1014693333 | BO38: 0.102435744 | BQ38: 0.1 | BR38: 0.1 | BS38: 0.1003333333 | BT38: 0.100734 | BU38: 0.1012156013 | BW38: 0.1 | BX38: 0.1 | BY38: 0.1003333333 | BZ38: 0.100734 | CA38: 0.1012156013
A39: ISABELLA | B39: 119 | C39: 158 | D39: 136 | E39: 117 | F39: 134 | G39: 134 | H39: 145 | I39: 146 | J39: 156 | K39: 138 | L39: 148.1 | M39: =AVERAGE(H39:L39)*(1+'2014 Farm Bill Calculator'!$B$20) -> 149.5524 | N39: =AVERAGE(I39:M39)*(1+'2014 Farm Bill Calculator'!$B$20) -> 150.4810896 | O39: =AVERAGE(J39:N39)*(1+'2014 Farm Bill Calculator'!$B$20) -> 151.3952319 | P39: =AVERAGE(K39:O39)*(1+'2014 Farm Bill Calculator'!$B$20) -> 150.4558592 | Q39: 138.3 | R39: 141.21 | S39: 140.36524 | T39: 141.813349 | U39: 145.2528721 | V39: 29 | W39: 46 | X39: 47 | Y39: 37 | Z39: 36.5 | AA39: 40 | AB39: 48 | AC39: 46 | AD39: 57 | AE39: 40 | AF39: 40.9 | AG39: =AVERAGE(AB39:AF39)*(1+'2014 Farm Bill Calculator'!$B$21) -> 46.8438 | AH39: =AVERAGE(AC39:AG39)*(1+'2014 Farm Bill Calculator'!$B$21) -> 46.6102476 | AI39: =AVERAGE(AD39:AH39)*(1+'2014 Farm Bill Calculator'!$B$21) -> 46.73351762 | AJ39: =AVERAGE(AE39:AI39)*(1+'2014 Farm Bill Calculator'!$B$21) -> 44.65968817 | AK39: 42.65 | AL39: 43.84 | AM39: 43.92438 | AN39: 43.88540476 | AO39: 44.85875652 | AP39: 83 | AQ39: 62 | AR39: 77 | AS39: 58 | AT39: 72 | AU39: 70 | AV39: 70 | AW39: 80 | AX39: 77 | AY39: 68 | AZ39: 70.80000305 | BA39: =AVERAGE(AV39:AZ39)*(1+'2014 Farm Bill Calculator'!$B$22) -> 73.89160062 | BB39: =AVERAGE(AW39:BA39)*(1+'2014 Farm Bill Calculator'!$B$22) -> 74.67770394 | BC39: =AVERAGE(AX39:BB39)*(1+'2014 Farm Bill Calculator'!$B$22) -> 73.60260014 | BD39: =AVERAGE(AY39:BC39)*(1+'2014 Farm Bill Calculator'!$B$22) -> 72.91632536 | BE39: 71.7 | BF39: 70.48000031 | BG39: 71.66916037 | BH39: 71.43693076 | BI39: 72.99719077 | BK39: 143 | BL39: 146.3666667 | BM39: 147.8841333 | BN39: 149.3778299 | BO39: 149.3778299 | BQ39: 44.66666667 | BR39: 44.96666667 | BS39: 44.58126667 | BT39: 44.78468253 | BU39: 44.74792174 | BW39: 72.33333333 | BX39: 72.60000102 | BY39: 73.89720122 | BZ39: 73.12310254 | CA39: 72.7647346
A40: JACKSON | B40: 133 | C40: 143 | D40: 134 | E40: 103 | F40: 111 | G40: 122 | H40: 141 | I40: 130 | J40: 85 | K40: 156 | L40: 155.6 | M40: =AVERAGE(H40:L40)*(1+'2014 Farm Bill Calculator'!$B$20) -> 136.1904 | N40: =AVERAGE(I40:M40)*(1+'2014 Farm Bill Calculator'!$B$20) -> 135.2092416 | O40: =AVERAGE(J40:N40)*(1+'2014 Farm Bill Calculator'!$B$20) -> 136.2719269 | P40: =AVERAGE(K40:O40)*(1+'2014 Farm Bill Calculator'!$B$20) -> 146.7314 | Q40: 125.8 | R40: 128.06 | S40: 127.37904 | T40: 127.4999642 | U40: 130.8271568 | V40: 41 | W40: 37 | X40: 44 | Y40: 38 | Z40: 26.5 | AA40: 39 | AB40: 46 | AC40: 40 | AD40: 29 | AE40: 46 | AF40: 41.6 | AG40: =AVERAGE(AB40:AF40)*(1+'2014 Farm Bill Calculator'!$B$21) -> 40.9252 | AH40: =AVERAGE(AC40:AG40)*(1+'2014 Farm Bill Calculator'!$B$21) -> 39.9000904 | AI40: =AVERAGE(AD40:AH40)*(1+'2014 Farm Bill Calculator'!$B$21) -> 39.87990866 | AJ40: =AVERAGE(AE40:AI40)*(1+'2014 Farm Bill Calculator'!$B$21) -> 42.07765021 | AK40: 38.65 | AL40: 38.71 | AM40: 39.10252 | AN40: 38.69252904 | AO40: 38.88051991 | AP40: 51 | AQ40: 53 | AR40: 57 | AS40: 51 | AT40: 59 | AU40: 57 | AV40: 55 | AW40: 66 | AX40: 63 | AY40: 64 | AZ40: 63 | BA40: =AVERAGE(AV40:AZ40)*(1+'2014 Farm Bill Calculator'!$B$22) -> 62.822 | BB40: =AVERAGE(AW40:BA40)*(1+'2014 Farm Bill Calculator'!$B$22) -> 64.402044 | BC40: =AVERAGE(AX40:BB40)*(1+'2014 Farm Bill Calculator'!$B$22) -> 64.07925689 | BD40: =AVERAGE(AY40:BC40)*(1+'2014 Farm Bill Calculator'!$B$22) -> 64.29726678 | BE40: 57.6 | BF40: 58.8 | BG40: 59.7822 | BH40: 60.5224044 | BI40: 61.83033009 | BK40: 131 | BL40: 142.2 | BM40: 140.5968 | BN40: 142.3332139 | BO40: 142.6874423 | BQ40: 41.66666667 | BR40: 42.53333333 | BS40: 40.84173333 | BT40: 40.80843013 | BU40: 40.80843013 | BW40: 61.33333333 | BX40: 63.33333333 | BY40: 63.33333333 | BZ40: 63.33333333 | CA40: 63.69308563
A41: KALAMAZOO | B41: 138 | C41: 135 | D41: 148 | E41: 109 | F41: 120 | G41: 150 | H41: 155.8 | I41: 162.3 | J41: 139.2 | K41: 178.8 | L41: 188.7 | M41: =AVERAGE(H41:L41)*(1+'2014 Farm Bill Calculator'!$B$20) -> 168.2592 | N41: =AVERAGE(I41:M41)*(1+'2014 Farm Bill Calculator'!$B$20) -> 170.8008768 | O41: =AVERAGE(J41:N41)*(1+'2014 Farm Bill Calculator'!$B$20) -> 172.5350557 | P41: =AVERAGE(K41:O41)*(1+'2014 Farm Bill Calculator'!$B$20) -> 179.335407 | Q41: 143.61 | R41: 148.68 | S41: 152.00592 | T41: 154.2860077 | U41: 160.6395132 | V41: 41 | W41: 40 | X41: 50 | Y41: 40 | Z41: 32 | AA41: 39 | AB41: 51.4 | AC41: 47.6 | AD41: 36.7 | AE41: 49.7 | AF41: 47.2 | AG41: =AVERAGE(AB41:AF41)*(1+'2014 Farm Bill Calculator'!$B$21) -> 46.9852 | AH41: =AVERAGE(AC41:AG41)*(1+'2014 Farm Bill Calculator'!$B$21) -> 46.0934104 | AI41: =AVERAGE(AD41:AH41)*(1+'2014 Farm Bill Calculator'!$B$21) -> 45.7890793 | AJ41: =AVERAGE(AE41:AI41)*(1+'2014 Farm Bill Calculator'!$B$21) -> 47.62507332 | AK41: 42.74 | AL41: 43.36 | AM41: 44.05852 | AN41: 43.66786104 | AO41: 44.24676897 | AP41: 50 | AQ41: 50 | AR41: 57 | AS41: 50 | AT41: 54.5 | AU41: 66 | AV41: 67 | AW41: 68 | AX41: 66 | AY41: 73 | AZ41: 58.90000153 | BA41: =AVERAGE(AV41:AZ41)*(1+'2014 Farm Bill Calculator'!$B$22) -> 67.24580031 | BB41: =AVERAGE(AW41:BA41)*(1+'2014 Farm Bill Calculator'!$B$22) -> 67.29545197 | BC41: =AVERAGE(AX41:BB41)*(1+'2014 Farm Bill Calculator'!$B$22) -> 67.15313327 | BD41: =AVERAGE(AY41:BC41)*(1+'2014 Farm Bill Calculator'!$B$22) -> 67.38606619 | BE41: 60.15 | BF41: 61.04000015 | BG41: 62.76458018 | BH41: 63.79412538 | BI41: 65.50943871 | BK41: 156.0333333 | BL41: 165.6333333 | BM41: 169.7864 | BN41: 172.6200256 | BO41: 174.0453108 | BQ41: 45.43333333 | BR41: 48.16666667 | BS41: 47.26173333 | BT41: 46.7595368 | BU41: 46.7595368 | BW41: 67 | BX41: 67 | BY41: 67.08193344 | BZ41: 66.84708409 | CA41: 67.23146185
A42: KALKASKA | G42: 78 | H42: 115 | I42: 80 | J42: 61 | K42: 102 | M42: =AVERAGE(H42:L42)*(1+'2014 Farm Bill Calculator'!$B$20) -> 91.29 | N42: =AVERAGE(I42:M42)*(1+'2014 Farm Bill Calculator'!$B$20) -> 85.24395 | O42: =AVERAGE(J42:N42)*(1+'2014 Farm Bill Calculator'!$B$20) -> 86.58115725 | P42: =AVERAGE(K42:O42)*(1+'2014 Farm Bill Calculator'!$B$20) -> 93.10435235 | Q42: 87.2 | R42: 87.2 | S42: 87.88166667 | T42: 87.50485 | U42: 87.38938841 | V42: 35 | W42: 41 | X42: 42 | Y42: 40 | Z42: 34.5 | AA42: 0.1 | AB42: =AA42 -> 0.1 | AC42: =AB42 -> 0.1 | AD42: =AC42 -> 0.1 | AE42: =AD42 -> 0.1 | AF42: =AVERAGE(AA42:AE42)*(1+'2014 Farm Bill Calculator'!$B$21) -> 0.101 | AG42: =AVERAGE(AB42:AF42)*(1+'2014 Farm Bill Calculator'!$B$21) -> 0.101202 | AH42: =AVERAGE(AC42:AG42)*(1+'2014 Farm Bill Calculator'!$B$21) -> 0.101444804 | AI42: =AVERAGE(AD42:AH42)*(1+'2014 Farm Bill Calculator'!$B$21) -> 0.1017366544 | AJ42: =AVERAGE(AE42:AI42)*(1+'2014 Farm Bill Calculator'!$B$21) -> 0.1020874586 | AK42: 19.3 | AL42: 15.8101 | AM42: 11.7202202 | AN42: 7.53036468 | AO42: 3.540538346 | AT42: 70 | AU42: 62 | AV42: 46 | AW42: 77 | AX42: 72 | AY42: 64 | AZ42: 68.19999695 | BA42: =AVERAGE(AV42:AZ42)*(1+'2014 Farm Bill Calculator'!$B$22) -> 66.09439938 | BB42: =AVERAGE(AW42:BA42)*(1+'2014 Farm Bill Calculator'!$B$22) -> 70.15346806 | BC42: =AVERAGE(AX42:BB42)*(1+'2014 Farm Bill Calculator'!$B$22) -> 68.77046861 | BD42: =AVERAGE(AY42:BC42)*(1+'2014 Farm Bill Calculator'!$B$22) -> 68.11810327 | BE42: 65.16666667 | BF42: 65.59999956 | BG42: 65.66179954 | BH42: 66.16087382 | BI42: 66.4218333 | BK42: 86.66666667 | BL42: Data Error | BM42: Data Error | BN42: Data Error | BO42: Data Error | BQ42: 0.1 | BR42: 0.1 | BS42: 0.1003333333 | BT42: 0.100734 | BU42: 0.1012156013 | BW42: 66 | BX42: 68.06666565 | BY42: 68.76479878 | BZ42: 68.14928813 | CA42: 67.68828831
A43: KENT | B43: 129 | C43: 138 | D43: 140 | E43: 115 | F43: 134 | G43: 141 | H43: 149 | I43: 163 | J43: 129 | K43: 149 | L43: 146.8 | M43: =AVERAGE(H43:L43)*(1+'2014 Farm Bill Calculator'!$B$20) -> 150.3072 | N43: =AVERAGE(I43:M43)*(1+'2014 Farm Bill Calculator'!$B$20) -> 150.5738688 | O43: =AVERAGE(J43:N43)*(1+'2014 Farm Bill Calculator'!$B$20) -> 148.038938 | P43: =AVERAGE(K43:O43)*(1+'2014 Farm Bill Calculator'!$B$20) -> 151.9228814 | Q43: 138.7 | R43: 140.48 | S43: 141.71072 | T43: 142.7681069 | U43: 146.0720007 | AA43: 43 | AB43: 46 | AC43: 45 | AD43: 44 | AE43: 43 | AF43: 41.1 | AG43: =AVERAGE(AB43:AF43)*(1+'2014 Farm Bill Calculator'!$B$21) -> 44.2582 | AH43: =AVERAGE(AC43:AG43)*(1+'2014 Farm Bill Calculator'!$B$21) -> 43.9063564 | AI43: =AVERAGE(AD43:AH43)*(1+'2014 Farm Bill Calculator'!$B$21) -> 43.68544039 | AJ43: =AVERAGE(AE43:AI43)*(1+'2014 Farm Bill Calculator'!$B$21) -> 43.62189935 | AK43: 44.2 | AL43: 43.68333333 | AM43: 43.76545714 | AN43: 43.78306955 | AO43: 43.77222187 | AP43: 53 | AQ43: 58 | AR43: 71 | AS43: 51 | AT43: 60.5 | AU43: 62 | AV43: 62 | AW43: 66 | AX43: 79 | AY43: 69 | AZ43: =AVERAGE(AU43:AY43)*(1+'2014 Farm Bill Calculator'!$B$22) -> 68.276 | BA43: =AVERAGE(AV43:AZ43)*(1+'2014 Farm Bill Calculator'!$B$22) -> 69.543752 | BB43: =AVERAGE(AW43:BA43)*(1+'2014 Farm Bill Calculator'!$B$22) -> 71.0675899 | BC43: =AVERAGE(AX43:BB43)*(1+'2014 Farm Bill Calculator'!$B$22) -> 72.09124306 | BD43: =AVERAGE(AY43:BC43)*(1+'2014 Farm Bill Calculator'!$B$22) -> 70.69567416 | BE43: 63.15 | BF43: 64.6776 | BG43: 65.8319752 | BH43: 65.83873419 | BI43: 67.9478585 | BK43: 146.3333333 | BL43: 148.2666667 | BM43: 148.7024 | BN43: 148.7024 | BO43: 149.1153793 | BQ43: 44 | BR43: 44 | BS43: 43.75273333 | BT43: 43.63545213 | BU43: 43.53059893 | BW43: 65.66666667 | BX43: 67.75866667 | BY43: 68.93991733 | BZ43: 69.8704473 | CA43: 69.8704473
A44: KEWEENAW | G44: 0.1 | H44: =G44 -> 0.1 | I44: =H44 -> 0.1 | J44: =I44 -> 0.1 | K44: =J44 -> 0.1 | L44: =AVERAGE(G44:K44)*(1+'2014 Farm Bill Calculator'!$B$20) -> 0.102 | M44: =AVERAGE(H44:L44)*(1+'2014 Farm Bill Calculator'!$B$20) -> 0.102408 | N44: =AVERAGE(I44:M44)*(1+'2014 Farm Bill Calculator'!$B$20) -> 0.102899232 | O44: =AVERAGE(J44:N44)*(1+'2014 Farm Bill Calculator'!$B$20) -> 0.1034906753 | P44: =AVERAGE(K44:O44)*(1+'2014 Farm Bill Calculator'!$B$20) -> 0.1042027731 | Q44: 0.1 | R44: 0.1003333333 | S44: 0.1006297143 | T44: 0.100913404 | U44: 0.1011997675 | AA44: 0.1 | AB44: =AA44 -> 0.1 | AC44: 0.1 | AD44: 0.1 | AE44: 0.1 | AF44: =AVERAGE(AA44:AE44)*(1+'2014 Farm Bill Calculator'!$B$21) -> 0.101 | AG44: =AVERAGE(AB44:AF44)*(1+'2014 Farm Bill Calculator'!$B$21) -> 0.101202 | AH44: =AVERAGE(AC44:AG44)*(1+'2014 Farm Bill Calculator'!$B$21) -> 0.101444804 | AI44: =AVERAGE(AD44:AH44)*(1+'2014 Farm Bill Calculator'!$B$21) -> 0.1017366544 | AJ44: =AVERAGE(AE44:AI44)*(1+'2014 Farm Bill Calculator'!$B$21) -> 0.1020874586 | AK44: 0.1 | AL44: 0.1001666667 | AM44: 0.1003145714 | AN44: 0.1004558505 | AO44: 0.100598162 | AU44: 0.1 | AV44: =AU44 -> 0.1 | AW44: =AV44 -> 0.1 | AX44: =AW44 -> 0.1 | AY44: =AX44 -> 0.1 | AZ44: =AVERAGE(AU44:AY44)*(1+'2014 Farm Bill Calculator'!$B$22) -> 0.101 | BA44: =AVERAGE(AV44:AZ44)*(1+'2014 Farm Bill Calculator'!$B$22) -> 0.101202 | BB44: =AVERAGE(AW44:BA44)*(1+'2014 Farm Bill Calculator'!$B$22) -> 0.101444804 | BC44: =AVERAGE(AX44:BB44)*(1+'2014 Farm Bill Calculator'!$B$22) -> 0.1017366544 | BD44: =AVERAGE(AY44:BC44)*(1+'2014 Farm Bill Calculator'!$B$22) -> 0.1020874586 | BE44: 0.1 | BF44: 0.1001666667 | BG44: 0.1003145714 | BH44: 0.1004558505 | BI44: 0.100598162 | BK44: 0.1 | BL44: 0.1 | BM44: 0.1006666667 | BN44: 0.1014693333 | BO44: 0.102435744 | BQ44: 0.1 | BR44: 0.1 | BS44: 0.1003333333 | BT44: 0.100734 | BU44: 0.1012156013 | BW44: 0.1 | BX44: 0.1 | BY44: 0.1003333333 | BZ44: 0.100734 | CA44: 0.1012156013
A45: LAKE | G45: 93 | H45: 144 | I45: 138 | J45: 124 | K45: 94 | L45: 125 | M45: =AVERAGE(H45:L45)*(1+'2014 Farm Bill Calculator'!$B$20) -> 127.5 | N45: =AVERAGE(I45:M45)*(1+'2014 Farm Bill Calculator'!$B$20) -> 124.134 | O45: =AVERAGE(J45:N45)*(1+'2014 Farm Bill Calculator'!$B$20) -> 121.305336 | P45: =AVERAGE(K45:O45)*(1+'2014 Farm Bill Calculator'!$B$20) -> 120.7556245 | Q45: 118.6 | R45: 119.6666667 | S45: 120.7857143 | T45: 121.20425 | U45: 121.2154818 | AA45: 0.1 | AB45: 0.1 | AC45: 0.1 | AD45: 0.1 | AE45: 0.1 | AF45: =AVERAGE(AA45:AE45)*(1+'2014 Farm Bill Calculator'!$B$21) -> 0.101 | AG45: =AVERAGE(AB45:AF45)*(1+'2014 Farm Bill Calculator'!$B$21) -> 0.101202 | AH45: =AVERAGE(AC45:AG45)*(1+'2014 Farm Bill Calculator'!$B$21) -> 0.101444804 | AI45: =AVERAGE(AD45:AH45)*(1+'2014 Farm Bill Calculator'!$B$21) -> 0.1017366544 | AJ45: =AVERAGE(AE45:AI45)*(1+'2014 Farm Bill Calculator'!$B$21) -> 0.1020874586 | AK45: 0.1 | AL45: 0.1001666667 | AM45: 0.1003145714 | AN45: 0.1004558505 | AO45: 0.100598162 | AU45: 54 | AV45: 57 | AW45: 68 | AX45: 62 | AY45: 63 | AZ45: =AVERAGE(AU45:AY45)*(1+'2014 Farm Bill Calculator'!$B$22) -> 61.408 | BA45: =AVERAGE(AV45:AZ45)*(1+'2014 Farm Bill Calculator'!$B$22) -> 62.904416 | BB45: =AVERAGE(AW45:BA45)*(1+'2014 Farm Bill Calculator'!$B$22) -> 64.09710803 | BC45: =AVERAGE(AX45:BB45)*(1+'2014 Farm Bill Calculator'!$B$22) -> 63.30872385 | BD45: =AVERAGE(AY45:BC45)*(1+'2014 Farm Bill Calculator'!$B$22) -> 63.57308607 | BE45: 60.8 | BF45: 60.90133333 | BG45: 61.187488 | BH45: 61.5511905 | BI45: 61.74647199 | BK45: 118.6666667 | BL45: 129 | BM45: 125.5 | BN45: 124.378 | BO45: 123.4797787 | BQ45: 0.1 | BR45: 0.1 | BS45: 0.1003333333 | BT45: 0.100734 | BU45: 0.1012156013 | BW45: 60.66666667 | BX45: 62.136 | BY45: 62.63480533 | BZ45: 62.63480533 | CA45: 63.07104662
A46: LAPEER | B46: 123 | C46: 138 | D46: 156 | E46: 110 | F46: 150 | G46: 132 | H46: 137 | I46: 137 | J46: 149 | K46: 149 | L46: 149.1 | M46: =AVERAGE(H46:L46)*(1+'2014 Farm Bill Calculator'!$B$20) -> 147.1044 | N46: =AVERAGE(I46:M46)*(1+'2014 Farm Bill Calculator'!$B$20) -> 149.1656976 | O46: =AVERAGE(J46:N46)*(1+'2014 Farm Bill Calculator'!$B$20) -> 151.6474999 | P46: =AVERAGE(K46:O46)*(1+'2014 Farm Bill Calculator'!$B$20) -> 152.1875899 | Q46: 138.1 | R46: 140.71 | S46: 141.62044 | T46: 140.9370098 | U46: 145.1017598 | V46: 31 | W46: 39 | X46: 49 | Y46: 34 | Z46: 44 | AA46: 36 | AB46: 41 | AC46: 42 | AD46: 43 | AE46: 41 | AF46: 36.4 | AG46: =AVERAGE(AB46:AF46)*(1+'2014 Farm Bill Calculator'!$B$21) -> 41.0868 | AH46: =AVERAGE(AC46:AG46)*(1+'2014 Farm Bill Calculator'!$B$21) -> 41.1043336 | AI46: =AVERAGE(AD46:AH46)*(1+'2014 Farm Bill Calculator'!$B$21) -> 40.92340899 | AJ46: =AVERAGE(AE46:AI46)*(1+'2014 Farm Bill Calculator'!$B$21) -> 40.5039376 | AK46: 40 | AL46: 40.54 | AM46: 40.74868 | AN46: 39.95911336 | AO46: 40.65145426 | AP46: 61 | AQ46: 62 | AR46: 70 | AS46: 57 | AT46: 69 | AU46: 60 | AV46: 65 | AW46: 67 | AX46: 74 | AY46: 69 | AZ46: 62 | BA46: =AVERAGE(AV46:AZ46)*(1+'2014 Farm Bill Calculator'!$B$22) -> 68.074 | BB46: =AVERAGE(AW46:BA46)*(1+'2014 Farm Bill Calculator'!$B$22) -> 68.694948 | BC46: =AVERAGE(AX46:BB46)*(1+'2014 Farm Bill Calculator'!$B$22) -> 69.0373275 | BD46: =AVERAGE(AY46:BC46)*(1+'2014 Farm Bill Calculator'!$B$22) -> 68.03486765 | BE46: 65.4 | BF46: 65.5 | BG46: 66.1074 | BH46: 65.9768948 | BI46: 67.18062755 | BK46: 141 | BL46: 145 | BM46: 148.3681333 | BN46: 149.0333333 | BO46: 149.0885659 | BQ46: 41.33333333 | BR46: 41.33333333 | BS46: 41.36226667 | BT46: 41.0637112 | BU46: 41.003403 | BW46: 67 | BX46: 67 | BY46: 68.02466667 | BZ46: 68.58964933 | CA46: 68.58964933
A47: LEELANAU | C47: 82 | E47: 56 | F47: 84 | G47: 93 | H47: 104 | I47: 75 | J47: 54 | K47: 98 | L47: =AVERAGE(G47:K47)*(1+'2014 Farm Bill Calculator'!$B$20) -> 86.496 | M47: =AVERAGE(H47:L47)*(1+'2014 Farm Bill Calculator'!$B$20) -> 85.169184 | N47: =AVERAGE(I47:M47)*(1+'2014 Farm Bill Calculator'!$B$20) -> 81.32769754 | O47: =AVERAGE(J47:N47)*(1+'2014 Farm Bill Calculator'!$B$20) -> 82.61854783 | P47: =AVERAGE(K47:O47)*(1+'2014 Farm Bill Calculator'!$B$20) -> 88.45673159 | Q47: 80.75 | R47: 81.38844444 | S47: 81.740576 | T47: 81.69928815 | U47: 84.36114294 | AA47: 0.1 | AB47: =AA47 -> 0.1 | AC47: =AB47 -> 0.1 | AD47: =AC47 -> 0.1 | AE47: =AD47 -> 0.1 | AF47: =AVERAGE(AA47:AE47)*(1+'2014 Farm Bill Calculator'!$B$21) -> 0.101 | AG47: =AVERAGE(AB47:AF47)*(1+'2014 Farm Bill Calculator'!$B$21) -> 0.101202 | AH47: =AVERAGE(AC47:AG47)*(1+'2014 Farm Bill Calculator'!$B$21) -> 0.101444804 | AI47: =AVERAGE(AD47:AH47)*(1+'2014 Farm Bill Calculator'!$B$21) -> 0.1017366544 | AJ47: =AVERAGE(AE47:AI47)*(1+'2014 Farm Bill Calculator'!$B$21) -> 0.1020874586 | AK47: 0.1 | AL47: 0.1001666667 | AM47: 0.1003145714 | AN47: 0.1004558505 | AO47: 0.100598162 | AU47: 0.1 | AV47: =AU47 -> 0.1 | AW47: =AV47 -> 0.1 | AX47: =AW47 -> 0.1 | AY47: =AX47 -> 0.1 | AZ47: =AVERAGE(AU47:AY47)*(1+'2014 Farm Bill Calculator'!$B$22) -> 0.101 | BA47: =AVERAGE(AV47:AZ47)*(1+'2014 Farm Bill Calculator'!$B$22) -> 0.101202 | BB47: =AVERAGE(AW47:BA47)*(1+'2014 Farm Bill Calculator'!$B$22) -> 0.101444804 | BC47: =AVERAGE(AX47:BB47)*(1+'2014 Farm Bill Calculator'!$B$22) -> 0.1017366544 | BD47: =AVERAGE(AY47:BC47)*(1+'2014 Farm Bill Calculator'!$B$22) -> 0.1020874586 | BE47: 0.1 | BF47: 0.1001666667 | BG47: 0.1003145714 | BH47: 0.1004558505 | BI47: 0.100598162 | BK47: 88.66666667 | BL47: 86.49866667 | BM47: 82.221728 | BN47: 84.33096051 | BO47: 84.76124394 | BQ47: 0.1 | BR47: 0.1 | BS47: 0.1003333333 | BT47: 0.100734 | BU47: 0.1012156013 | BW47: 0.1 | BX47: 0.1 | BY47: 0.1003333333 | BZ47: 0.100734 | CA47: 0.1012156013
A48: LENAWEE | B48: 150 | C48: 161 | D48: 158 | E48: 144 | F48: 134 | G48: 149 | H48: 156 | I48: 149 | J48: 100 | K48: 180 | L48: 174.7 | M48: =AVERAGE(H48:L48)*(1+'2014 Farm Bill Calculator'!$B$20) -> 154.9788 | N48: =AVERAGE(I48:M48)*(1+'2014 Farm Bill Calculator'!$B$20) -> 154.7704752 | O48: =AVERAGE(J48:N48)*(1+'2014 Farm Bill Calculator'!$B$20) -> 155.9476521 | P48: =AVERAGE(K48:O48)*(1+'2014 Farm Bill Calculator'!$B$20) -> 167.3609732 | Q48: 148.1 | R48: 150.57 | S48: 149.96788 | T48: 149.6449275 | U48: 150.8396927 | V48: 39 | W48: 44 | X48: 48 | Y48: 47 | Z48: 32 | AA48: 43 | AB48: 43 | AC48: 46 | AD48: 34 | AE48: 51 | AF48: 48.7 | AG48: =AVERAGE(AB48:AF48)*(1+'2014 Farm Bill Calculator'!$B$21) -> 44.9854 | AH48: =AVERAGE(AC48:AG48)*(1+'2014 Farm Bill Calculator'!$B$21) -> 45.3864508 | AI48: =AVERAGE(AD48:AH48)*(1+'2014 Farm Bill Calculator'!$B$21) -> 45.26251386 | AJ48: =AVERAGE(AE48:AI48)*(1+'2014 Farm Bill Calculator'!$B$21) -> 47.53754166 | AK48: 42.7 | AL48: 43.67 | AM48: 43.76854 | AN48: 43.50718508 | AO48: 43.33343647 | AP48: 65 | AQ48: 74 | AR48: 76 | AS48: 73 | AT48: 75.5 | AU48: 80 | AV48: 72 | AW48: 75 | AX48: 71 | AY48: 86 | AZ48: 84.80000305 | BA48: =AVERAGE(AV48:AZ48)*(1+'2014 Farm Bill Calculator'!$B$22) -> 78.53760062 | BB48: =AVERAGE(AW48:BA48)*(1+'2014 Farm Bill Calculator'!$B$22) -> 79.85819594 | BC48: =AVERAGE(AX48:BB48)*(1+'2014 Farm Bill Calculator'!$B$22) -> 80.83955152 | BD48: =AVERAGE(AY48:BC48)*(1+'2014 Farm Bill Calculator'!$B$22) -> 82.82714093 | BE48: 74.75 | BF48: 76.73000031 | BG48: 77.18376037 | BH48: 77.56957996 | BI48: 78.35353511 | BK48: 151.3333333 | BL48: 159.9 | BM48: 159.5596 | BN48: 161.4830917 | BO48: 161.875484 | BQ48: 44 | BR48: 45.9 | BS48: 46.5618 | BT48: 46.3572836 | BU48: 46.44965489 | BW48: 75.66666667 | BX48: 77.26666768 | BY48: 79.44586789 | BZ48: 81.06526654 | CA48: 81.8325835
A49: LIVINGSTON | B49: 132 | C49: 135 | D49: 131 | E49: 107 | F49: 126 | G49: 137 | H49: 145 | I49: 139 | J49: 119 | K49: 152 | L49: 171.4 | M49: =AVERAGE(H49:L49)*(1+'2014 Farm Bill Calculator'!$B$20) -> 148.1856 | N49: =AVERAGE(I49:M49)*(1+'2014 Farm Bill Calculator'!$B$20) -> 148.8354624 | O49: =AVERAGE(J49:N49)*(1+'2014 Farm Bill Calculator'!$B$20) -> 150.8418967 | P49: =AVERAGE(K49:O49)*(1+'2014 Farm Bill Calculator'!$B$20) -> 157.3376437 | Q49: 132.3 | R49: 136.24 | S49: 137.55856 | T49: 139.3421062 | U49: 143.7262959 | V49: 42 | W49: 35 | X49: 44 | Y49: 37 | Z49: 33 | AA49: 38 | AB49: 41 | AC49: 42 | AD49: 41 | AE49: 44 | AF49: 44.2 | AG49: =AVERAGE(AB49:AF49)*(1+'2014 Farm Bill Calculator'!$B$21) -> 42.8644 | AH49: =AVERAGE(AC49:AG49)*(1+'2014 Farm Bill Calculator'!$B$21) -> 43.2410088 | AI49: =AVERAGE(AD49:AH49)*(1+'2014 Farm Bill Calculator'!$B$21) -> 43.49169258 | AJ49: =AVERAGE(AE49:AI49)*(1+'2014 Farm Bill Calculator'!$B$21) -> 43.99501448 | AK49: 39.7 | AL49: 39.92 | AM49: 40.70644 | AN49: 40.63054088 | AO49: 41.27971014 | AP49: 54 | AQ49: 61 | AR49: 77 | AS49: 55 | AT49: 56 | AU49: 56 | AV49: 58 | AW49: 64 | AX49: 65 | AY49: 55 | AZ49: 69.5 | BA49: =AVERAGE(AV49:AZ49)*(1+'2014 Farm Bill Calculator'!$B$22) -> 62.923 | BB49: =AVERAGE(AW49:BA49)*(1+'2014 Farm Bill Calculator'!$B$22) -> 63.917446 | BC49: =AVERAGE(AX49:BB49)*(1+'2014 Farm Bill Calculator'!$B$22) -> 63.90077009 | BD49: =AVERAGE(AY49:BC49)*(1+'2014 Farm Bill Calculator'!$B$22) -> 63.67872565 | BE49: 60.1 | BF49: 61.65 | BG49: 61.8423 | BH49: 60.5340446 | BI49: 61.42412161 | BK49: 140.3333333 | BL49: 145.3333333 | BM49: 146.3952 | BN49: 149.6736875 | BO49: 150.5591197 | BQ49: 41.33333333 | BR49: 42.33333333 | BS49: 42.9548 | BT49: 43.3684696 | BU49: 43.57756713 | BW49: 59.33333333 | BX49: 62.33333333 | BY49: 63.97433333 | BZ49: 63.94681533 | CA49: 63.58040536
A50: LUCE | G50: 0.1 | H50: =G50 -> 0.1 | I50: 0.1 | J50: 0.1 | K50: 0.1 | L50: =AVERAGE(G50:K50)*(1+'2014 Farm Bill Calculator'!$B$20) -> 0.102 | M50: =AVERAGE(H50:L50)*(1+'2014 Farm Bill Calculator'!$B$20) -> 0.102408 | N50: =AVERAGE(I50:M50)*(1+'2014 Farm Bill Calculator'!$B$20) -> 0.102899232 | O50: =AVERAGE(J50:N50)*(1+'2014 Farm Bill Calculator'!$B$20) -> 0.1034906753 | P50: =AVERAGE(K50:O50)*(1+'2014 Farm Bill Calculator'!$B$20) -> 0.1042027731 | Q50: 0.1 | R50: 0.1003333333 | S50: 0.1006297143 | T50: 0.100913404 | U50: 0.1011997675 | AA50: 0.1 | AB50: =AA50 -> 0.1 | AC50: 0.1 | AD50: 0.1 | AE50: 0.1 | AF50: =AVERAGE(AA50:AE50)*(1+'2014 Farm Bill Calculator'!$B$21) -> 0.101 | AG50: =AVERAGE(AB50:AF50)*(1+'2014 Farm Bill Calculator'!$B$21) -> 0.101202 | AH50: =AVERAGE(AC50:AG50)*(1+'2014 Farm Bill Calculator'!$B$21) -> 0.101444804 | AI50: =AVERAGE(AD50:AH50)*(1+'2014 Farm Bill Calculator'!$B$21) -> 0.1017366544 | AJ50: =AVERAGE(AE50:AI50)*(1+'2014 Farm Bill Calculator'!$B$21) -> 0.1020874586 | AK50: 0.1 | AL50: 0.1001666667 | AM50: 0.1003145714 | AN50: 0.1004558505 | AO50: 0.100598162 | AU50: 0.1 | AV50: =AU50 -> 0.1 | AW50: 0.1 | AX50: 0.1 | AY50: 0.1 | AZ50: =AVERAGE(AU50:AY50)*(1+'2014 Farm Bill Calculator'!$B$22) -> 0.101 | BA50: =AVERAGE(AV50:AZ50)*(1+'2014 Farm Bill Calculator'!$B$22) -> 0.101202 | BB50: =AVERAGE(AW50:BA50)*(1+'2014 Farm Bill Calculator'!$B$22) -> 0.101444804 | BC50: =AVERAGE(AX50:BB50)*(1+'2014 Farm Bill Calculator'!$B$22) -> 0.1017366544 | BD50: =AVERAGE(AY50:BC50)*(1+'2014 Farm Bill Calculator'!$B$22) -> 0.1020874586 | BE50: 0.1 | BF50: 0.1001666667 | BG50: 0.1003145714 | BH50: 0.1004558505 | BI50: 0.100598162 | BK50: 0.1 | BL50: 0.1 | BM50: 0.1006666667 | BN50: 0.1014693333 | BO50: 0.102435744 | BQ50: 0.1 | BR50: 0.1 | BS50: 0.1003333333 | BT50: 0.100734 | BU50: 0.1012156013 | BW50: 0.1 | BX50: 0.1 | BY50: 0.1003333333 | BZ50: 0.100734 | CA50: 0.1012156013
A51: MACKINAC | G51: 0.1 | H51: 0.1 | I51: 0.1 | J51: 0.1 | K51: 0.1 | L51: =AVERAGE(G51:K51)*(1+'2014 Farm Bill Calculator'!$B$20) -> 0.102 | M51: =AVERAGE(H51:L51)*(1+'2014 Farm Bill Calculator'!$B$20) -> 0.102408 | N51: =AVERAGE(I51:M51)*(1+'2014 Farm Bill Calculator'!$B$20) -> 0.102899232 | O51: =AVERAGE(J51:N51)*(1+'2014 Farm Bill Calculator'!$B$20) -> 0.1034906753 | P51: =AVERAGE(K51:O51)*(1+'2014 Farm Bill Calculator'!$B$20) -> 0.1042027731 | Q51: 0.1 | R51: 0.1003333333 | S51: 0.1006297143 | T51: 0.100913404 | U51: 0.1011997675 | AA51: 0.1 | AB51: 0.1 | AC51: 0.1 | AD51: 0.1 | AE51: 0.1 | AF51: =AVERAGE(AA51:AE51)*(1+'2014 Farm Bill Calculator'!$B$21) -> 0.101 | AG51: =AVERAGE(AB51:AF51)*(1+'2014 Farm Bill Calculator'!$B$21) -> 0.101202 | AH51: =AVERAGE(AC51:AG51)*(1+'2014 Farm Bill Calculator'!$B$21) -> 0.101444804 | AI51: =AVERAGE(AD51:AH51)*(1+'2014 Farm Bill Calculator'!$B$21) -> 0.1017366544 | AJ51: =AVERAGE(AE51:AI51)*(1+'2014 Farm Bill Calculator'!$B$21) -> 0.1020874586 | AK51: 0.1 | AL51: 0.1001666667 | AM51: 0.1003145714 | AN51: 0.1004558505 | AO51: 0.100598162 | AU51: 0.1 | AV51: =AU51 -> 0.1 | AW51: 0.1 | AX51: 0.1 | AY51: 0.1 | AZ51: =AVERAGE(AU51:AY51)*(1+'2014 Farm Bill Calculator'!$B$22) -> 0.101 | BA51: =AVERAGE(AV51:AZ51)*(1+'2014 Farm Bill Calculator'!$B$22) -> 0.101202 | BB51: =AVERAGE(AW51:BA51)*(1+'2014 Farm Bill Calculator'!$B$22) -> 0.101444804 | BC51: =AVERAGE(AX51:BB51)*(1+'2014 Farm Bill Calculator'!$B$22) -> 0.1017366544 | BD51: =AVERAGE(AY51:BC51)*(1+'2014 Farm Bill Calculator'!$B$22) -> 0.1020874586 | BE51: 0.1 | BF51: 0.1001666667 | BG51: 0.1003145714 | BH51: 0.1004558505 | BI51: 0.100598162 | BK51: 0.1 | BL51: 0.1 | BM51: 0.1006666667 | BN51: 0.1014693333 | BO51: 0.102435744 | BQ51: 0.1 | BR51: 0.1 | BS51: 0.1003333333 | BT51: 0.100734 | BU51: 0.1012156013 | BW51: 0.1 | BX51: 0.1 | BY51: 0.1003333333 | BZ51: 0.100734 | CA51: 0.1012156013
A52: MACOMB | B52: 130 | C52: 150 | D52: 153 | E52: 110 | F52: 160 | G52: 147 | H52: 136 | I52: 148 | J52: 168 | K52: 152 | L52: 160.2 | M52: =AVERAGE(H52:L52)*(1+'2014 Farm Bill Calculator'!$B$20) -> 155.8968 | N52: =AVERAGE(I52:M52)*(1+'2014 Farm Bill Calculator'!$B$20) -> 159.9557472 | O52: =AVERAGE(J52:N52)*(1+'2014 Farm Bill Calculator'!$B$20) -> 162.3947196 | P52: =AVERAGE(K52:O52)*(1+'2014 Farm Bill Calculator'!$B$20) -> 161.2512424 | Q52: 145.4 | R52: 148.42 | S52: 149.00968 | T52: 149.7052547 | U52: 154.9447267 | V52: 37 | W52: 39 | X52: 43 | Y52: 33 | Z52: 45.5 | AA52: 38 | AB52: 37 | AC52: 42 | AD52: 43 | AE52: 38 | AF52: 40.4 | AG52: =AVERAGE(AB52:AF52)*(1+'2014 Farm Bill Calculator'!$B$21) -> 40.4808 | AH52: =AVERAGE(AC52:AG52)*(1+'2014 Farm Bill Calculator'!$B$21) -> 41.1839216 | AI52: =AVERAGE(AD52:AH52)*(1+'2014 Farm Bill Calculator'!$B$21) -> 41.01907376 | AJ52: =AVERAGE(AE52:AI52)*(1+'2014 Farm Bill Calculator'!$B$21) -> 40.61892666 | AK52: 39.55 | AL52: 39.89 | AM52: 40.03808 | AN52: 39.85647216 | AO52: 40.65837954 | AP52: 63 | AQ52: 63 | AR52: 62 | AS52: 57 | AT52: 65.5 | AU52: 52.5 | AV52: 71.4 | AW52: 50 | AX52: 61.1 | AY52: 70.7 | AZ52: 54.29999924 | BA52: =AVERAGE(AV52:AZ52)*(1+'2014 Farm Bill Calculator'!$B$22) -> 62.11499985 | BB52: =AVERAGE(AW52:BA52)*(1+'2014 Farm Bill Calculator'!$B$22) -> 60.23942981 | BC52: =AVERAGE(AX52:BB52)*(1+'2014 Farm Bill Calculator'!$B$22) -> 62.30779464 | BD52: =AVERAGE(AY52:BC52)*(1+'2014 Farm Bill Calculator'!$B$22) -> 62.55176915 | BE52: 61.62 | BF52: 60.74999992 | BG52: 60.66149991 | BH52: 60.48544289 | BI52: 61.01622235 | BK52: 149 | BL52: 153.4 | BM52: 156.0322667 | BN52: 158.6841824 | BO52: 158.6841824 | BQ52: 39.33333333 | BR52: 40.13333333 | BS52: 40.96026667 | BT52: 40.68824053 | BU52: 40.63329125 | BW52: 61.43333333 | BX52: 62.03333308 | BY52: 59.17166636 | BZ52: 61.15147655 | CA52: 61.55407477
A53: MANISTEE | B53: 93 | D53: 100 | E53: 64 | G53: 78 | H53: 130 | I53: 101 | J53: 61 | K53: 76 | L53: 129.3 | M53: =AVERAGE(H53:L53)*(1+'2014 Farm Bill Calculator'!$B$20) -> 101.4492 | N53: =AVERAGE(I53:M53)*(1+'2014 Farm Bill Calculator'!$B$20) -> 95.6248368 | O53: =AVERAGE(J53:N53)*(1+'2014 Farm Bill Calculator'!$B$20) -> 94.52830351 | P53: =AVERAGE(K53:O53)*(1+'2014 Farm Bill Calculator'!$B$20) -> 101.3680774 | Q53: 87.875 | R53: 92.4125 | S53: 93.41657778 | T53: 92.93044853 | U53: 96.32248226 | AA53: 0.1 | AB53: =AA53 -> 0.1 | AC53: 0.1 | AD53: 0.1 | AE53: 0.1 | AF53: =AVERAGE(AA53:AE53)*(1+'2014 Farm Bill Calculator'!$B$21) -> 0.101 | AG53: =AVERAGE(AB53:AF53)*(1+'2014 Farm Bill Calculator'!$B$21) -> 0.101202 | AH53: =AVERAGE(AC53:AG53)*(1+'2014 Farm Bill Calculator'!$B$21) -> 0.101444804 | AI53: =AVERAGE(AD53:AH53)*(1+'2014 Farm Bill Calculator'!$B$21) -> 0.1017366544 | AJ53: =AVERAGE(AE53:AI53)*(1+'2014 Farm Bill Calculator'!$B$21) -> 0.1020874586 | AK53: 0.1 | AL53: 0.1001666667 | AM53: 0.1003145714 | AN53: 0.1004558505 | AO53: 0.100598162 | AU53: 0.1 | AV53: =AU53 -> 0.1 | AW53: 0.1 | AX53: 0.1 | AY53: 0.1 | AZ53: =AVERAGE(AU53:AY53)*(1+'2014 Farm Bill Calculator'!$B$22) -> 0.101 | BA53: =AVERAGE(AV53:AZ53)*(1+'2014 Farm Bill Calculator'!$B$22) -> 0.101202 | BB53: =AVERAGE(AW53:BA53)*(1+'2014 Farm Bill Calculator'!$B$22) -> 0.101444804 | BC53: =AVERAGE(AX53:BB53)*(1+'2014 Farm Bill Calculator'!$B$22) -> 0.1017366544 | BD53: =AVERAGE(AY53:BC53)*(1+'2014 Farm Bill Calculator'!$B$22) -> 0.1020874586 | BE53: 0.1 | BF53: 0.1001666667 | BG53: 0.1003145714 | BH53: 0.1004558505 | BI53: 0.100598162 | BK53: 85 | BL53: 102.1 | BM53: 92.8164 | BN53: 91.02467893 | BO53: 97.2007801 | BQ53: 0.1 | BR53: 0.1 | BS53: 0.1003333333 | BT53: 0.100734 | BU53: 0.1012156013 | BW53: 0.1 | BX53: 0.1 | BY53: 0.1003333333 | BZ53: 0.100734 | CA53: 0.1012156013
A54: MARQUETTE | G54: 0.1 | H54: =G54 -> 0.1 | I54: =H54 -> 0.1 | J54: =I54 -> 0.1 | K54: =J54 -> 0.1 | L54: =AVERAGE(G54:K54)*(1+'2014 Farm Bill Calculator'!$B$20) -> 0.102 | M54: =AVERAGE(H54:L54)*(1+'2014 Farm Bill Calculator'!$B$20) -> 0.102408 | N54: =AVERAGE(I54:M54)*(1+'2014 Farm Bill Calculator'!$B$20) -> 0.102899232 | O54: =AVERAGE(J54:N54)*(1+'2014 Farm Bill Calculator'!$B$20) -> 0.1034906753 | P54: =AVERAGE(K54:O54)*(1+'2014 Farm Bill Calculator'!$B$20) -> 0.1042027731 | Q54: 0.1 | R54: 0.1003333333 | S54: 0.1006297143 | T54: 0.100913404 | U54: 0.1011997675 | AA54: 0.1 | AB54: 0.1 | AC54: 0.1 | AD54: 0.1 | AE54: 0.1 | AF54: =AVERAGE(AA54:AE54)*(1+'2014 Farm Bill Calculator'!$B$21) -> 0.101 | AG54: =AVERAGE(AB54:AF54)*(1+'2014 Farm Bill Calculator'!$B$21) -> 0.101202 | AH54: =AVERAGE(AC54:AG54)*(1+'2014 Farm Bill Calculator'!$B$21) -> 0.101444804 | AI54: =AVERAGE(AD54:AH54)*(1+'2014 Farm Bill Calculator'!$B$21) -> 0.1017366544 | AJ54: =AVERAGE(AE54:AI54)*(1+'2014 Farm Bill Calculator'!$B$21) -> 0.1020874586 | AK54: 0.1 | AL54: 0.1001666667 | AM54: 0.1003145714 | AN54: 0.1004558505 | AO54: 0.100598162 | AU54: 0.1 | AV54: =AU54 -> 0.1 | AW54: 0.1 | AX54: 0.1 | AY54: 0.1 | AZ54: =AVERAGE(AU54:AY54)*(1+'2014 Farm Bill Calculator'!$B$22) -> 0.101 | BA54: =AVERAGE(AV54:AZ54)*(1+'2014 Farm Bill Calculator'!$B$22) -> 0.101202 | BB54: =AVERAGE(AW54:BA54)*(1+'2014 Farm Bill Calculator'!$B$22) -> 0.101444804 | BC54: =AVERAGE(AX54:BB54)*(1+'2014 Farm Bill Calculator'!$B$22) -> 0.1017366544 | BD54: =AVERAGE(AY54:BC54)*(1+'2014 Farm Bill Calculator'!$B$22) -> 0.1020874586 | BE54: 0.1 | BF54: 0.1001666667 | BG54: 0.1003145714 | BH54: 0.1004558505 | BI54: 0.100598162 | BK54: 0.1 | BL54: 0.1 | BM54: 0.1006666667 | BN54: 0.1014693333 | BO54: 0.102435744 | BQ54: 0.1 | BR54: 0.1 | BS54: 0.1003333333 | BT54: 0.100734 | BU54: 0.1012156013 | BW54: 0.1 | BX54: 0.1 | BY54: 0.1003333333 | BZ54: 0.100734 | CA54: 0.1012156013
A55: MASON | C55: 132 | D55: 116 | E55: 109 | F55: 99 | G55: 102 | H55: 151 | I55: 128 | J55: 138 | K55: 110 | L55: 127.1 | M55: =AVERAGE(H55:L55)*(1+'2014 Farm Bill Calculator'!$B$20) -> 133.4364 | N55: =AVERAGE(I55:M55)*(1+'2014 Farm Bill Calculator'!$B$20) -> 129.8534256 | O55: =AVERAGE(J55:N55)*(1+'2014 Farm Bill Calculator'!$B$20) -> 130.2315244 | P55: =AVERAGE(K55:O55)*(1+'2014 Farm Bill Calculator'!$B$20) -> 128.6467554 | Q55: 120.5555556 | R55: 121.21 | S55: 121.35364 | T55: 122.7389826 | U55: 124.862135 | V55: 27 | W55: 40 | X55: 35 | Y55: 35 | Z55: 28.5 | AA55: 33 | AB55: 56 | AC55: 38 | AD55: 45 | AE55: 38 | AF55: 33.9 | AG55: =AVERAGE(AB55:AF55)*(1+'2014 Farm Bill Calculator'!$B$21) -> 42.6018 | AH55: =AVERAGE(AC55:AG55)*(1+'2014 Farm Bill Calculator'!$B$21) -> 39.8953636 | AI55: =AVERAGE(AD55:AH55)*(1+'2014 Farm Bill Calculator'!$B$21) -> 40.27822705 | AJ55: =AVERAGE(AE55:AI55)*(1+'2014 Farm Bill Calculator'!$B$21) -> 39.32442891 | AK55: 37.55 | AL55: 38.24 | AM55: 38.50018 | AN55: 38.98971636 | AO55: 39.51753906 | AP55: 51 | AQ55: 60 | AR55: 60 | AS55: 43 | AT55: 65 | AU55: 52 | AV55: 60 | AW55: 62 | AX55: 65 | AY55: 64 | AZ55: 49.20000076 | BA55: =AVERAGE(AV55:AZ55)*(1+'2014 Farm Bill Calculator'!$B$22) -> 60.64040015 | BB55: =AVERAGE(AW55:BA55)*(1+'2014 Farm Bill Calculator'!$B$22) -> 60.76976099 | BC55: =AVERAGE(AX55:BB55)*(1+'2014 Farm Bill Calculator'!$B$22) -> 60.5212527 | BD55: =AVERAGE(AY55:BC55)*(1+'2014 Farm Bill Calculator'!$B$22) -> 59.61654575 | BE55: 58.2 | BF55: 58.02000008 | BG55: 58.08404009 | BH55: 58.16101619 | BI55: 59.91314146 | BK55: 125.3333333 | BL55: 131.0333333 | BM55: 129.5121333 | BN55: 130.1299419 | BO55: 129.06165 | BQ55: 40.33333333 | BR55: 40.33333333 | BS55: 39.53393333 | BT55: 40.1657212 | BU55: 39.39119688 | BW55: 62 | BX55: 62 | BY55: 62.21346672 | BZ55: 61.80338705 | CA55: 60.64380461
A56: MECOSTA | B56: 102 | C56: 139 | D56: 132 | E56: 100 | F56: 108 | G56: 126 | H56: 142.5 | I56: 136.6 | J56: 146.8 | K56: 132.8 | L56: 134.6 | M56: =AVERAGE(H56:L56)*(1+'2014 Farm Bill Calculator'!$B$20) -> 141.4332 | N56: =AVERAGE(I56:M56)*(1+'2014 Farm Bill Calculator'!$B$20) -> 141.2155728 | O56: =AVERAGE(J56:N56)*(1+'2014 Farm Bill Calculator'!$B$20) -> 142.1571497 | P56: =AVERAGE(K56:O56)*(1+'2014 Farm Bill Calculator'!$B$20) -> 141.2100082 | Q56: 126.57 | R56: 129.83 | S56: 130.07332 | T56: 130.9948773 | U56: 135.2105922 | W56: 36 | X56: 20 | Y56: 23 | Z56: 27.5 | AA56: 24 | AB56: 36 | AC56: 34 | AD56: 32 | AE56: 25 | AF56: 34.7 | AG56: =AVERAGE(AB56:AF56)*(1+'2014 Farm Bill Calculator'!$B$21) -> 32.6634 | AH56: =AVERAGE(AC56:AG56)*(1+'2014 Farm Bill Calculator'!$B$21) -> 31.9894068 | AI56: =AVERAGE(AD56:AH56)*(1+'2014 Farm Bill Calculator'!$B$21) -> 31.58326697 | AJ56: =AVERAGE(AE56:AI56)*(1+'2014 Farm Bill Calculator'!$B$21) -> 31.4990869 | AK56: 28.61111111 | AL56: 29.22 | AM56: 28.88634 | AN56: 30.08528068 | AO56: 30.94360738 | AP56: 49 | AQ56: 35 | AR56: 42 | AS56: 43 | AT56: 59.5 | AU56: 49 | AV56: 65 | AW56: 51 | AX56: 48 | AY56: 42 | AZ56: 40 | BA56: =AVERAGE(AV56:AZ56)*(1+'2014 Farm Bill Calculator'!$B$22) -> 49.692 | BB56: =AVERAGE(AW56:BA56)*(1+'2014 Farm Bill Calculator'!$B$22) -> 46.599784 | BC56: =AVERAGE(AX56:BB56)*(1+'2014 Farm Bill Calculator'!$B$22) -> 45.71094037 | BD56: =AVERAGE(AY56:BC56)*(1+'2014 Farm Bill Calculator'!$B$22) -> 45.24855032 | BE56: 48.35 | BF56: 47.45 | BG56: 48.9192 | BH56: 49.3791784 | BI56: 49.65027244 | BK56: 137.3 | BL56: 137.9 | BM56: 137.5444 | BN56: 139.0829243 | BO56: 139.0829243 | BQ56: 30.33333333 | BR56: 33.56666667 | BS56: 32.8878 | BT56: 32.21760227 | BU56: 32.07869126 | BW56: 49.33333333 | BX56: 47 | BY56: 46.564 | BZ56: 45.53326133 | CA56: 44.77024146
A57: MENOMINEE | B57: 82 | C57: 122 | D57: 138 | E57: 77 | F57: 76 | G57: 51 | H57: 124 | I57: 51 | J57: 95 | K57: 139 | L57: =AVERAGE(G57:K57)*(1+'2014 Farm Bill Calculator'!$B$20) -> 93.84 | M57: =AVERAGE(H57:L57)*(1+'2014 Farm Bill Calculator'!$B$20) -> 102.57936 | N57: =AVERAGE(I57:M57)*(1+'2014 Farm Bill Calculator'!$B$20) -> 98.20954944 | O57: =AVERAGE(J57:N57)*(1+'2014 Farm Bill Calculator'!$B$20) -> 107.8402975 | P57: =AVERAGE(K57:O57)*(1+'2014 Farm Bill Calculator'!$B$20) -> 110.4597182 | Q57: 95.5 | R57: 96.684 | S57: 94.741936 | T57: 90.76289094 | U57: 93.8469207 | AA57: 17 | AB57: 35 | AC57: 17 | AD57: 23 | AE57: 25 | AF57: =AVERAGE(AA57:AE57)*(1+'2014 Farm Bill Calculator'!$B$21) -> 23.634 | AG57: =AVERAGE(AB57:AF57)*(1+'2014 Farm Bill Calculator'!$B$21) -> 24.974068 | AH57: =AVERAGE(AC57:AG57)*(1+'2014 Farm Bill Calculator'!$B$21) -> 22.94882974 | AI57: =AVERAGE(AD57:AH57)*(1+'2014 Farm Bill Calculator'!$B$21) -> 24.15049334 | AJ57: =AVERAGE(AE57:AI57)*(1+'2014 Farm Bill Calculator'!$B$21) -> 24.382893 | AK57: 23.4 | AL57: 23.439 | AM57: 23.65829543 | AN57: 23.56961222 | AO57: 23.63415456 | AU57: 0.1 | AV57: =AU57 -> 0.1 | AW57: =AV57 -> 0.1 | AX57: =AW57 -> 0.1 | AY57: =AX57 -> 0.1 | AZ57: =AVERAGE(AU57:AY57)*(1+'2014 Farm Bill Calculator'!$B$22) -> 0.101 | BA57: =AVERAGE(AV57:AZ57)*(1+'2014 Farm Bill Calculator'!$B$22) -> 0.101202 | BB57: =AVERAGE(AW57:BA57)*(1+'2014 Farm Bill Calculator'!$B$22) -> 0.101444804 | BC57: =AVERAGE(AX57:BB57)*(1+'2014 Farm Bill Calculator'!$B$22) -> 0.1017366544 | BD57: =AVERAGE(AY57:BC57)*(1+'2014 Farm Bill Calculator'!$B$22) -> 0.1020874586 | BE57: 0.1 | BF57: 0.1001666667 | BG57: 0.1003145714 | BH57: 0.1004558505 | BI57: 0.100598162 | BK57: 90 | BL57: 104.28 | BM57: 97.13978667 | BN57: 98.59630315 | BO57: 102.8764023 | BQ57: 21.66666667 | BR57: 23.878 | BS57: 23.869356 | BT57: 23.869356 | BU57: 24.25285378 | BW57: 0.1 | BX57: 0.1 | BY57: 0.1003333333 | BZ57: 0.100734 | CA57: 0.1012156013
A58: MIDLAND | B58: 122 | C58: 152 | D58: 136 | E58: 134 | F58: 151 | G58: 155 | H58: 161 | I58: 162 | J58: 164 | K58: 147 | L58: 168.9 | M58: =AVERAGE(H58:L58)*(1+'2014 Farm Bill Calculator'!$B$20) -> 163.7916 | N58: =AVERAGE(I58:M58)*(1+'2014 Farm Bill Calculator'!$B$20) -> 164.3610864 | O58: =AVERAGE(J58:N58)*(1+'2014 Farm Bill Calculator'!$B$20) -> 164.842748 | P58: =AVERAGE(K58:O58)*(1+'2014 Farm Bill Calculator'!$B$20) -> 165.0146686 | Q58: 148.4 | R58: 153.09 | S58: 154.26916 | T58: 157.1052686 | U58: 160.1895434 | V58: 31 | W58: 40 | X58: 40 | Y58: 42 | Z58: 40.5 | AA58: 40 | AB58: 46 | AC58: 46 | AD58: 53 | AE58: 40 | AF58: 45.8 | AG58: =AVERAGE(AB58:AF58)*(1+'2014 Farm Bill Calculator'!$B$21) -> 46.6216 | AH58: =AVERAGE(AC58:AG58)*(1+'2014 Farm Bill Calculator'!$B$21) -> 46.7471632 | AI58: =AVERAGE(AD58:AH58)*(1+'2014 Farm Bill Calculator'!$B$21) -> 46.89809017 | AJ58: =AVERAGE(AE58:AI58)*(1+'2014 Farm Bill Calculator'!$B$21) -> 45.66550438 | AK58: 41.85 | AL58: 43.33 | AM58: 43.99216 | AN58: 44.66687632 | AO58: 45.15668534 | AP58: 72 | AQ58: 67 | AR58: 75 | AS58: 72 | AT58: 74 | AU58: 69 | AV58: 71 | AW58: 79 | AX58: 98 | AY58: 67 | AZ58: 68.90000153 | BA58: =AVERAGE(AV58:AZ58)*(1+'2014 Farm Bill Calculator'!$B$22) -> 77.54780031 | BB58: =AVERAGE(AW58:BA58)*(1+'2014 Farm Bill Calculator'!$B$22) -> 78.87045597 | BC58: =AVERAGE(AX58:BB58)*(1+'2014 Farm Bill Calculator'!$B$22) -> 78.84428808 | BD58: =AVERAGE(AY58:BC58)*(1+'2014 Farm Bill Calculator'!$B$22) -> 74.97483427 | BE58: 74.4 | BF58: 74.09000015 | BG58: 75.14478018 | BH58: 75.53182578 | BI58: 76.21625459 | BK58: 159.3333333 | BL58: 162.3333333 | BM58: 163.2638667 | BN58: 164.0508955 | BO58: 164.3318115 | BQ58: 44 | BR58: 45.93333333 | BS58: 46.14053333 | BT58: 46.38958773 | BU58: 46.38958773 | BW58: 73 | BX58: 72.96666718 | BY58: 75.14926728 | BZ58: 75.10608593 | CA58: 75.0973633
A59: MISSAUKEE | B59: 97 | C59: 136 | D59: 136 | E59: 94 | F59: 122 | G59: 75 | H59: 151 | I59: 141 | J59: 123 | K59: 111 | L59: 139.8 | M59: =AVERAGE(H59:L59)*(1+'2014 Farm Bill Calculator'!$B$20) -> 135.8232 | N59: =AVERAGE(I59:M59)*(1+'2014 Farm Bill Calculator'!$B$20) -> 132.7271328 | O59: =AVERAGE(J59:N59)*(1+'2014 Farm Bill Calculator'!$B$20) -> 131.0394679 | P59: =AVERAGE(K59:O59)*(1+'2014 Farm Bill Calculator'!$B$20) -> 132.6795193 | Q59: 118.6 | R59: 122.88 | S59: 122.86232 | T59: 122.5350333 | U59: 126.2389801 | AA59: 0.1 | AB59: =AA59 -> 0.1 | AC59: =AB59 -> 0.1 | AD59: =AC59 -> 0.1 | AE59: =AD59 -> 0.1 | AF59: =AVERAGE(AA59:AE59)*(1+'2014 Farm Bill Calculator'!$B$21) -> 0.101 | AG59: =AVERAGE(AB59:AF59)*(1+'2014 Farm Bill Calculator'!$B$21) -> 0.101202 | AH59: =AVERAGE(AC59:AG59)*(1+'2014 Farm Bill Calculator'!$B$21) -> 0.101444804 | AI59: =AVERAGE(AD59:AH59)*(1+'2014 Farm Bill Calculator'!$B$21) -> 0.1017366544 | AJ59: =AVERAGE(AE59:AI59)*(1+'2014 Farm Bill Calculator'!$B$21) -> 0.1020874586 | AK59: 0.1 | AL59: 0.1001666667 | AM59: 0.1003145714 | AN59: 0.1004558505 | AO59: 0.100598162 | AP59: 49 | AQ59: 45 | AR59: 68 | AS59: 57 | AT59: 63 | AU59: 54 | AV59: 43 | AW59: 62 | AX59: 64 | AY59: 70 | AZ59: =AVERAGE(AU59:AY59)*(1+'2014 Farm Bill Calculator'!$B$22) -> 59.186 | BA59: =AVERAGE(AV59:AZ59)*(1+'2014 Farm Bill Calculator'!$B$22) -> 60.233572 | BB59: =AVERAGE(AW59:BA59)*(1+'2014 Farm Bill Calculator'!$B$22) -> 63.71475354 | BC59: =AVERAGE(AX59:BB59)*(1+'2014 Farm Bill Calculator'!$B$22) -> 64.06113376 | BD59: =AVERAGE(AY59:BC59)*(1+'2014 Farm Bill Calculator'!$B$22) -> 64.07348278 | BE59: 57.5 | BF59: 58.5186 | BG59: 60.0419572 | BH59: 59.61343255 | BI59: 60.31954593 | BK59: 125 | BL59: 134.6 | BM59: 132.8744 | BN59: 130.5167776 | BO59: 133.1966002 | BQ59: 0.1 | BR59: 0.1 | BS59: 0.1003333333 | BT59: 0.100734 | BU59: 0.1012156013 | BW59: 60 | BX59: 61.72866667 | BY59: 62.07785733 | BZ59: 62.64944185 | CA59: 62.66981977
A60: MONROE | B60: 145 | C60: 163 | D60: 163 | E60: 154 | F60: 139 | G60: 164 | H60: 154 | I60: 157 | J60: 106 | K60: 151 | L60: 175.4 | M60: =AVERAGE(H60:L60)*(1+'2014 Farm Bill Calculator'!$B$20) -> 151.6536 | N60: =AVERAGE(I60:M60)*(1+'2014 Farm Bill Calculator'!$B$20) -> 151.1749344 | O60: =AVERAGE(J60:N60)*(1+'2014 Farm Bill Calculator'!$B$20) -> 149.986621 | P60: =AVERAGE(K60:O60)*(1+'2014 Farm Bill Calculator'!$B$20) -> 158.9598917 | Q60: 149.6 | R60: 152.64 | S60: 151.50536 | T60: 150.3228534 | U60: 149.9215155 | V60: 37 | W60: 42 | X60: 46 | Y60: 42 | Z60: 32 | AA60: 44 | AB60: 41 | AC60: 44 | AD60: 35 | AE60: 48 | AF60: 48.8 | AG60: =AVERAGE(AB60:AF60)*(1+'2014 Farm Bill Calculator'!$B$21) -> 43.7936 | AH60: =AVERAGE(AC60:AG60)*(1+'2014 Farm Bill Calculator'!$B$21) -> 44.3579072 | AI60: =AVERAGE(AD60:AH60)*(1+'2014 Farm Bill Calculator'!$B$21) -> 44.43020445 | AJ60: =AVERAGE(AE60:AI60)*(1+'2014 Farm Bill Calculator'!$B$21) -> 46.33510575 | AK60: 41.1 | AL60: 42.28 | AM60: 42.45936 | AN60: 42.29515072 | AO60: 42.53817117 | AP60: 67 | AQ60: 72 | AR60: 77 | AS60: 71 | AT60: 70 | AU60: 75 | AV60: 72 | AW60: 72 | AX60: 76 | AY60: 79 | AZ60: 78.19999695 | BA60: =AVERAGE(AV60:AZ60)*(1+'2014 Farm Bill Calculator'!$B$22) -> 76.19439938 | BB60: =AVERAGE(AW60:BA60)*(1+'2014 Farm Bill Calculator'!$B$22) -> 77.04166806 | BC60: =AVERAGE(AX60:BB60)*(1+'2014 Farm Bill Calculator'!$B$22) -> 78.06008501 | BD60: =AVERAGE(AY60:BC60)*(1+'2014 Farm Bill Calculator'!$B$22) -> 78.47622218 | BE60: 73.1 | BF60: 74.21999969 | BG60: 74.63943963 | BH60: 74.64360644 | BI60: 75.34961494 | BK60: 154 | BL60: 154 | BM60: 153.2178667 | BN60: 151.2761781 | BO60: 151.2761781 | BQ60: 43 | BR60: 44.33333333 | BS60: 45.26453333 | BT60: 45.38383573 | BU60: 45.59603722 | BW60: 74.33333333 | BX60: 75.39999898 | BY60: 76.79813211 | BZ60: 77.1453548 | CA60: 77.76725
A61: MONTCALM | B61: 120 | C61: 135 | D61: 134 | E61: 110 | F61: 126 | G61: 136 | H61: 135.9 | I61: 146.8 | J61: 142.3 | K61: 140.2 | L61: 149.3 | M61: =AVERAGE(H61:L61)*(1+'2014 Farm Bill Calculator'!$B$20) -> 145.758 | N61: =AVERAGE(I61:M61)*(1+'2014 Farm Bill Calculator'!$B$20) -> 147.769032 | O61: =AVERAGE(J61:N61)*(1+'2014 Farm Bill Calculator'!$B$20) -> 147.9667145 | P61: =AVERAGE(K61:O61)*(1+'2014 Farm Bill Calculator'!$B$20) -> 149.1227243 | Q61: 132.62 | R61: 135.55 | S61: 136.6258 | T61: 138.0027032 | U61: 141.7993747 | V61: 29 | W61: 40 | X61: 40 | Y61: 31 | Z61: 35 | AA61: 38 | AB61: 38 | AC61: 42 | AD61: 43 | AE61: 34 | AF61: 36 | AG61: =AVERAGE(AB61:AF61)*(1+'2014 Farm Bill Calculator'!$B$21) -> 38.986 | AH61: =AVERAGE(AC61:AG61)*(1+'2014 Farm Bill Calculator'!$B$21) -> 39.185172 | AI61: =AVERAGE(AD61:AH61)*(1+'2014 Farm Bill Calculator'!$B$21) -> 38.61657674 | AJ61: =AVERAGE(AE61:AI61)*(1+'2014 Farm Bill Calculator'!$B$21) -> 37.73112525 | AK61: 37 | AL61: 37.7 | AM61: 37.5986 | AN61: 37.5171172 | AO61: 38.27877487 | AP61: 60 | AQ61: 53 | AR61: 66 | AS61: 52 | AT61: 63 | AU61: 56 | AV61: 54.8 | AW61: 62.1 | AX61: 57.6 | AY61: 65 | AZ61: =AVERAGE(AU61:AY61)*(1+'2014 Farm Bill Calculator'!$B$22) -> 59.691 | BA61: =AVERAGE(AV61:AZ61)*(1+'2014 Farm Bill Calculator'!$B$22) -> 60.436582 | BB61: =AVERAGE(AW61:BA61)*(1+'2014 Farm Bill Calculator'!$B$22) -> 61.57517156 | BC61: =AVERAGE(AX61:BB61)*(1+'2014 Farm Bill Calculator'!$B$22) -> 61.46915622 | BD61: =AVERAGE(AY61:BC61)*(1+'2014 Farm Bill Calculator'!$B$22) -> 62.25072578 | BE61: 58.95 | BF61: 58.9191 | BG61: 59.6627582 | BH61: 59.22027536 | BI61: 60.16719098 | BK61: 139.5 | BL61: 143.1 | BM61: 144.9526667 | BN61: 145.2756773 | BO61: 147.1645822 | BQ61: 39.33333333 | BR61: 38.66666667 | BS61: 38.99533333 | BT61: 38.05705733 | BU61: 37.86752558 | BW61: 58.56666667 | BX61: 59.797 | BY61: 60.74252733 | BZ61: 60.56758452 | CA61: 61.16030326
A62: MONTMORENCY | B62: 100 | C62: 124 | D62: 125 | E62: 83 | F62: 106 | G62: 110 | H62: 118 | I62: 109 | J62: 111 | K62: 102 | L62: 121.4 | M62: =AVERAGE(H62:L62)*(1+'2014 Farm Bill Calculator'!$B$20) -> 114.5256 | N62: =AVERAGE(I62:M62)*(1+'2014 Farm Bill Calculator'!$B$20) -> 113.8168224 | O62: =AVERAGE(J62:N62)*(1+'2014 Farm Bill Calculator'!$B$20) -> 114.7994542 | P62: =AVERAGE(K62:O62)*(1+'2014 Farm Bill Calculator'!$B$20) -> 115.5745428 | Q62: 108.8 | R62: 110.94 | S62: 109.99256 | T62: 108.8742422 | U62: 112.0541877 | V62: 37 | W62: 39 | X62: 44 | Y62: 29 | Z62: 35.5 | AA62: 24 | AB62: 41 | AC62: 30 | AD62: 30 | AE62: 29 | AF62: 25.1 | AG62: =AVERAGE(AB62:AF62)*(1+'2014 Farm Bill Calculator'!$B$21) -> 31.3302 | AH62: =AVERAGE(AC62:AG62)*(1+'2014 Farm Bill Calculator'!$B$21) -> 29.3769004 | AI62: =AVERAGE(AD62:AH62)*(1+'2014 Farm Bill Calculator'!$B$21) -> 29.25103428 | AJ62: =AVERAGE(AE62:AI62)*(1+'2014 Farm Bill Calculator'!$B$21) -> 29.09974321 | AK62: 33.85 | AL62: 32.66 | AM62: 31.89302 | AN62: 30.43071004 | AO62: 30.45581347 | AP62: 70 | AQ62: 48 | AR62: 62 | AS62: 54 | AT62: 56 | AU62: 65 | AV62: 52 | AW62: 62 | AX62: 68 | AY62: 55 | AZ62: =AVERAGE(AU62:AY62)*(1+'2014 Farm Bill Calculator'!$B$22) -> 61.004 | BA62: =AVERAGE(AV62:AZ62)*(1+'2014 Farm Bill Calculator'!$B$22) -> 60.196808 | BB62: =AVERAGE(AW62:BA62)*(1+'2014 Farm Bill Calculator'!$B$22) -> 61.85256322 | BC62: =AVERAGE(AX62:BB62)*(1+'2014 Farm Bill Calculator'!$B$22) -> 61.82278099 | BD62: =AVERAGE(AY62:BC62)*(1+'2014 Farm Bill Calculator'!$B$22) -> 60.57498274 | BE62: 59.2 | BF62: 58.3004 | BG62: 59.5200808 | BH62: 59.50533712 | BI62: 60.28761522 | BK62: 110 | BL62: 112.6666667 | BM62: 111.5085333 | BN62: 113.1141408 | BO62: 114.3806255 | BQ62: 29.66666667 | BR62: 29.66666667 | BS62: 29.66666667 | BT62: 29.4589668 | BU62: 29.20931156 | BW62: 60.66666667 | BX62: 59.33466667 | BY62: 61.066936 | BZ62: 61.01779041 | CA62: 61.007863
A63: MUSKEGON | B63: 84 | C63: 112 | E63: 106 | F63: 119 | G63: 122 | H63: 154 | I63: 139 | J63: 112 | K63: 111 | L63: 132.7 | M63: =AVERAGE(H63:L63)*(1+'2014 Farm Bill Calculator'!$B$20) -> 132.3348 | N63: =AVERAGE(I63:M63)*(1+'2014 Farm Bill Calculator'!$B$20) -> 127.9150992 | O63: =AVERAGE(J63:N63)*(1+'2014 Farm Bill Calculator'!$B$20) -> 125.6537794 | P63: =AVERAGE(K63:O63)*(1+'2014 Farm Bill Calculator'!$B$20) -> 128.4391504 | Q63: 117.6666667 | R63: 123.0777778 | S63: 125.3372 | T63: 125.5949899 | U63: 127.5603679 | V63: 32 | W63: 33 | X63: 39 | Y63: 38 | Z63: 33.5 | AA63: 41 | AB63: 49 | AC63: 45 | AD63: 40 | AE63: 38 | AF63: 39.9 | AG63: =AVERAGE(AB63:AF63)*(1+'2014 Farm Bill Calculator'!$B$21) -> 42.8038 | AH63: =AVERAGE(AC63:AG63)*(1+'2014 Farm Bill Calculator'!$B$21) -> 41.5521676 | AI63: =AVERAGE(AD63:AH63)*(1+'2014 Farm Bill Calculator'!$B$21) -> 40.85570546 | AJ63: =AVERAGE(AE63:AI63)*(1+'2014 Farm Bill Calculator'!$B$21) -> 41.02855796 | AK63: 38.85 | AL63: 39.64 | AM63: 40.62038 | AN63: 40.87559676 | AO63: 41.16116731 | AP63: 36 | AQ63: 54 | AR63: 61 | AS63: 48 | AT63: 52 | AU63: 49 | AV63: 49 | AW63: 76 | AX63: 57 | AY63: 51 | AZ63: 39.90000153 | BA63: =AVERAGE(AV63:AZ63)*(1+'2014 Farm Bill Calculator'!$B$22) -> 55.12580031 | BB63: =AVERAGE(AW63:BA63)*(1+'2014 Farm Bill Calculator'!$B$22) -> 56.36321197 | BC63: =AVERAGE(AX63:BB63)*(1+'2014 Farm Bill Calculator'!$B$22) -> 52.39658079 | BD63: =AVERAGE(AY63:BC63)*(1+'2014 Farm Bill Calculator'!$B$22) -> 51.46669011 | BE63: 53.3 | BF63: 53.69000015 | BG63: 53.80258018 | BH63: 53.33890138 | BI63: 53.77855946 | BK63: 124.3333333 | BL63: 127.9 | BM63: 125.6782667 | BN63: 124.0832997 | BO63: 128.6345595 | BQ63: 42 | BR63: 41.63333333 | BS63: 40.90126667 | BT63: 40.48405587 | BU63: 40.76929102 | BW63: 52.33333333 | BX63: 52.33333333 | BY63: 54.37526677 | BZ63: 54.16300409 | CA63: 52.8407937
A64: NEWAYGO | B64: 91 | C64: 106 | D64: 132 | E64: 102 | F64: 108 | G64: 121 | H64: 135 | I64: 127 | J64: 129 | K64: 98 | L64: 119.4 | M64: =AVERAGE(H64:L64)*(1+'2014 Farm Bill Calculator'!$B$20) -> 124.1136 | N64: =AVERAGE(I64:M64)*(1+'2014 Farm Bill Calculator'!$B$20) -> 121.8927744 | O64: =AVERAGE(J64:N64)*(1+'2014 Farm Bill Calculator'!$B$20) -> 120.8509004 | P64: =AVERAGE(K64:O64)*(1+'2014 Farm Bill Calculator'!$B$20) -> 119.1884841 | Q64: 114.9 | R64: 117.74 | S64: 119.55136 | T64: 118.5406374 | U64: 120.4257275 | V64: 27 | W64: 27 | X64: 38 | Y64: 36 | Z64: 30 | AA64: 36 | AB64: 44 | AC64: 42 | AD64: 42 | AE64: 38 | AF64: 32.3 | AG64: =AVERAGE(AB64:AF64)*(1+'2014 Farm Bill Calculator'!$B$21) -> 40.0566 | AH64: =AVERAGE(AC64:AG64)*(1+'2014 Farm Bill Calculator'!$B$21) -> 39.2600332 | AI64: =AVERAGE(AD64:AH64)*(1+'2014 Farm Bill Calculator'!$B$21) -> 38.70655991 | AJ64: =AVERAGE(AE64:AI64)*(1+'2014 Farm Bill Calculator'!$B$21) -> 38.04128501 | AK64: 36 | AL64: 36.53 | AM64: 37.83566 | AN64: 37.96166332 | AO64: 38.23231931 | AQ64: 52 | AS64: 43 | AU64: 57 | AV64: 60 | AW64: 65 | AX64: 61 | AY64: 55 | AZ64: =AVERAGE(AU64:AY64)*(1+'2014 Farm Bill Calculator'!$B$22) -> 60.196 | BA64: =AVERAGE(AV64:AZ64)*(1+'2014 Farm Bill Calculator'!$B$22) -> 60.841592 | BB64: =AVERAGE(AW64:BA64)*(1+'2014 Farm Bill Calculator'!$B$22) -> 61.01159358 | BC64: =AVERAGE(AX64:BB64)*(1+'2014 Farm Bill Calculator'!$B$22) -> 60.20593549 | BD64: =AVERAGE(AY64:BC64)*(1+'2014 Farm Bill Calculator'!$B$22) -> 60.04553446 | BE64: =AVERAGE(AP64:AY64) -> 56.14285714 | BF64: 56.6495 | BG64: 57.754699 | BH64: 58.11657618 | BI64: 60.02834679 | BK64: 125.6666667 | BL64: 125.1333333 | BM64: 123.5045333 | BN64: 121.8021248 | BO64: 120.7145583 | BQ64: 40.66666667 | BR64: 40.66666667 | BS64: 40.01886667 | BT64: 39.1055444 | BU64: 38.65553104 | BW64: 59.33333333 | BX64: 60.39866667 | BY64: 60.67919733 | BZ64: 60.67919733 | CA64: 60.41450916
A65: OAKLAND | G65: 114 | H65: 124 | I65: 129 | J65: 121 | K65: 153 | L65: 139.3 | M65: =AVERAGE(H65:L65)*(1+'2014 Farm Bill Calculator'!$B$20) -> 135.9252 | N65: =AVERAGE(I65:M65)*(1+'2014 Farm Bill Calculator'!$B$20) -> 138.3579408 | O65: =AVERAGE(J65:N65)*(1+'2014 Farm Bill Calculator'!$B$20) -> 140.2669607 | P65: =AVERAGE(K65:O65)*(1+'2014 Farm Bill Calculator'!$B$20) -> 144.1974207 | Q65: 128.2 | R65: 130.05 | S65: 130.8893143 | T65: 131.8228926 | U65: 132.7611224 | V65: 31 | W65: 27 | X65: 45 | Y65: 36 | Z65: 38 | AA65: 38 | AB65: 37 | AC65: 40 | AD65: 37 | AE65: 45 | AF65: 40.3 | AG65: =AVERAGE(AB65:AF65)*(1+'2014 Farm Bill Calculator'!$B$21) -> 40.2586 | AH65: =AVERAGE(AC65:AG65)*(1+'2014 Farm Bill Calculator'!$B$21) -> 40.9168372 | AI65: =AVERAGE(AD65:AH65)*(1+'2014 Farm Bill Calculator'!$B$21) -> 41.10203831 | AJ65: =AVERAGE(AE65:AI65)*(1+'2014 Farm Bill Calculator'!$B$21) -> 41.93065005 | AK65: 37.4 | AL65: 38.33 | AM65: 39.65586 | AN65: 39.24754372 | AO65: 39.75774755 | AP65: 50 | AQ65: 45 | AR65: 61 | AT65: 61.5 | AU65: 49 | AV65: 56 | AW65: 76 | AX65: 65 | AY65: 74 | AZ65: =AVERAGE(AU65:AY65)*(1+'2014 Farm Bill Calculator'!$B$22) -> 64.64 | BA65: =AVERAGE(AV65:AZ65)*(1+'2014 Farm Bill Calculator'!$B$22) -> 67.79928 | BB65: =AVERAGE(AW65:BA65)*(1+'2014 Farm Bill Calculator'!$B$22) -> 70.18273456 | BC65: =AVERAGE(AX65:BB65)*(1+'2014 Farm Bill Calculator'!$B$22) -> 69.00764694 | BD65: =AVERAGE(AY65:BC65)*(1+'2014 Farm Bill Calculator'!$B$22) -> 69.81719162 | BE65: 59.72222222 | BF65: 61.34888889 | BG65: 63.88214222 | BH65: 64.90244606 | BI65: 65.31296615 | BK65: 124.6666667 | BL65: 130.7666667 | BM65: 134.7417333 | BN65: 137.8610469 | BO65: 139.3083005 | BQ65: 38.33333333 | BR65: 39.1 | BS65: 40.1862 | BT65: 40.4918124 | BU65: 40.7729585 | BW65: 65 | BX65: 67.88 | BY65: 68.93309333 | BZ65: 67.66067152 | CA65: 68.99655383
A66: OCEANA | B66: 84 | D66: 119 | G66: 111 | H66: 146 | I66: 127 | J66: 123 | K66: 129 | L66: 123.3 | M66: =AVERAGE(H66:L66)*(1+'2014 Farm Bill Calculator'!$B$20) -> 132.2532 | N66: =AVERAGE(I66:M66)*(1+'2014 Farm Bill Calculator'!$B$20) -> 129.4488528 | O66: =AVERAGE(J66:N66)*(1+'2014 Farm Bill Calculator'!$B$20) -> 129.9484188 | P66: =AVERAGE(K66:O66)*(1+'2014 Farm Bill Calculator'!$B$20) -> 131.3658962 | Q66: 119.8571429 | R66: 125.4714286 | S66: 126.31915 | T66: 127.6252566 | U66: 127.8833857 | V66: 30 | W66: 30 | X66: 29 | Y66: 30 | Z66: 30.5 | AA66: 34 | AB66: 42 | AC66: 45 | AD66: 41 | AE66: 37 | AF66: =AVERAGE(AA66:AE66)*(1+'2014 Farm Bill Calculator'!$B$21) -> 40.198 | AG66: =AVERAGE(AB66:AF66)*(1+'2014 Farm Bill Calculator'!$B$21) -> 41.449996 | AH66: =AVERAGE(AC66:AG66)*(1+'2014 Farm Bill Calculator'!$B$21) -> 41.33889519 | AI66: =AVERAGE(AD66:AH66)*(1+'2014 Farm Bill Calculator'!$B$21) -> 40.59935202 | AJ66: =AVERAGE(AE66:AI66)*(1+'2014 Farm Bill Calculator'!$B$21) -> 40.51842113 | AK66: 34.85 | AL66: 35.8698 | AM66: 37.0147996 | AN66: 38.24868912 | AO66: 39.30862432 | AP66: 47 | AR66: 56 | AS66: 43 | AT66: 49.5 | AU66: 51 | AV66: 58 | AW66: 63 | AX66: 67 | AY66: 63 | AZ66: 59.40000153 | BA66: =AVERAGE(AV66:AZ66)*(1+'2014 Farm Bill Calculator'!$B$22) -> 62.70080031 | BB66: =AVERAGE(AW66:BA66)*(1+'2014 Farm Bill Calculator'!$B$22) -> 63.65036197 | BC66: =AVERAGE(AX66:BB66)*(1+'2014 Farm Bill Calculator'!$B$22) -> 63.78173509 | BD66: =AVERAGE(AY66:BC66)*(1+'2014 Farm Bill Calculator'!$B$22) -> 63.13164558 | BE66: 55.27777778 | BF66: 56.65555573 | BG66: 57.26008018 | BH66: 58.02511638 | BI66: 60.10328989 | BK66: 126.3333333 | BL66: 126.4333333 | BM66: 126.4333333 | BN66: 127.2496176 | BO66: 129.4657572 | BQ66: 40 | BR66: 41.066 | BS66: 40.88266533 | BT66: 40.84563173 | BU66: 40.7120824 | BW66: 61.33333333 | BX66: 61.80000051 | BY66: 62.90026677 | BZ66: 63.11705409 | CA66: 63.11705409
A67: OGEMAW | B67: 80 | C67: 152 | D67: 131 | E67: 116 | F67: 139 | G67: 89 | H67: 128 | I67: 142 | J67: 109 | K67: 114 | L67: 126.2 | M67: =AVERAGE(H67:L67)*(1+'2014 Farm Bill Calculator'!$B$20) -> 126.3168 | N67: =AVERAGE(I67:M67)*(1+'2014 Farm Bill Calculator'!$B$20) -> 125.9734272 | O67: =AVERAGE(J67:N67)*(1+'2014 Farm Bill Calculator'!$B$20) -> 122.7040063 | P67: =AVERAGE(K67:O67)*(1+'2014 Farm Bill Calculator'!$B$20) -> 125.4996236 | Q67: 120 | R67: 124.62 | S67: 122.05168 | T67: 121.5490227 | U67: 122.2194234 | V67: 24 | W67: 44 | X67: 42 | Y67: 35 | Z67: 44.5 | AA67: 39 | AB67: 45 | AC67: 38 | AD67: 48 | AE67: 31 | AF67: 32.1 | AG67: =AVERAGE(AB67:AF67)*(1+'2014 Farm Bill Calculator'!$B$21) -> 39.2082 | AH67: =AVERAGE(AC67:AG67)*(1+'2014 Farm Bill Calculator'!$B$21) -> 38.0382564 | AI67: =AVERAGE(AD67:AH67)*(1+'2014 Farm Bill Calculator'!$B$21) -> 38.04598419 | AJ67: =AVERAGE(AE67:AI67)*(1+'2014 Farm Bill Calculator'!$B$21) -> 36.035273 | AK67: 39.05 | AL67: 39.86 | AM67: 39.38082 | AN67: 38.98464564 | AO67: 39.28924406 | AP67: 78 | AQ67: 76 | AR67: 86 | AS67: 74 | AT67: 81.5 | AU67: 62 | AV67: 65 | AW67: 72 | AX67: 75 | AY67: 73 | AZ67: 70.80000305 | BA67: =AVERAGE(AV67:AZ67)*(1+'2014 Farm Bill Calculator'!$B$22) -> 71.87160062 | BB67: =AVERAGE(AW67:BA67)*(1+'2014 Farm Bill Calculator'!$B$22) -> 73.25966394 | BC67: =AVERAGE(AX67:BB67)*(1+'2014 Farm Bill Calculator'!$B$22) -> 73.51411606 | BD67: =AVERAGE(AY67:BC67)*(1+'2014 Farm Bill Calculator'!$B$22) -> 73.2139675 | BE67: =AVERAGE(AP67:AY67) -> 74.25 | BF67: =AVERAGE(AQ67:AZ67) -> 73.53000031 | BG67: =AVERAGE(AR67:BA67) -> 73.11716037 | BH67: =AVERAGE(AS67:BB67) -> 71.84312676 | BI67: =AVERAGE(AT67:BC67) -> 71.79453837 | BK67: =IF(COUNT(G67:K67)=5,((SUM(G67:K67)-MIN(G67:K67)-MAX(G67:K67))/3),"Data Error") -> 117 | BL67: =IF(COUNT(H67:L67)=5,((SUM(H67:L67)-MIN(H67:L67)-MAX(H67:L67))/3),"Data Error") -> 122.7333333 | BM67: =IF(COUNT(I67:M67)=5,((SUM(I67:M67)-MIN(I67:M67)-MAX(I67:M67))/3),"Data Error") -> 122.1722667 | BN67: =IF(COUNT(J67:N67)=5,((SUM(J67:N67)-MIN(J67:N67)-MAX(J67:N67))/3),"Data Error") -> 122.0578091 | BO67: =IF(COUNT(K67:O67)=5,((SUM(K67:O67)-MIN(K67:O67)-MAX(K67:O67))/3),"Data Error") -> 124.9591445 | BQ67: =IF(COUNT(AA67:AE67)=5,((SUM(AA67:AE67)-MIN(AA67:AE67)-MAX(AA67:AE67))/3),"Data Error") -> 40.66666667 | BR67: =IF(COUNT(AB67:AF67)=5,((SUM(AB67:AF67)-MIN(AB67:AF67)-MAX(AB67:AF67))/3),"Data Error") -> 38.36666667 | BS67: =IF(COUNT(AC67:AG67)=5,((SUM(AC67:AG67)-MIN(AC67:AG67)-MAX(AC67:AG67))/3),"Data Error") -> 36.43606667 | BT67: =IF(COUNT(AD67:AH67)=5,((SUM(AD67:AH67)-MIN(AD67:AH67)-MAX(AD67:AH67))/3),"Data Error") -> 36.4488188 | BU67: =IF(COUNT(AE67:AI67)=5,((SUM(AE67:AI67)-MIN(AE67:AI67)-MAX(AE67:AI67))/3),"Data Error") -> 36.06141353 | BW67: 70 | BX67: 71.93333435 | BY67: 72.29053354 | BZ67: 72.71042152 | CA67: 72.71042152
A68: ONTONAGON | G68: 0.1 | H68: =G68 -> 0.1 | I68: =H68 -> 0.1 | J68: =I68 -> 0.1 | K68: =J68 -> 0.1 | L68: =AVERAGE(G68:K68)*(1+'2014 Farm Bill Calculator'!$B$20) -> 0.102 | M68: =AVERAGE(H68:L68)*(1+'2014 Farm Bill Calculator'!$B$20) -> 0.102408 | N68: =AVERAGE(I68:M68)*(1+'2014 Farm Bill Calculator'!$B$20) -> 0.102899232 | O68: =AVERAGE(J68:N68)*(1+'2014 Farm Bill Calculator'!$B$20) -> 0.1034906753 | P68: =AVERAGE(K68:O68)*(1+'2014 Farm Bill Calculator'!$B$20) -> 0.1042027731 | Q68: =AVERAGE(B68:K68) -> 0.1 | R68: =AVERAGE(C68:L68) -> 0.1003333333 | S68: =AVERAGE(D68:M68) -> 0.1006297143 | T68: =AVERAGE(E68:N68) -> 0.100913404 | U68: =AVERAGE(F68:O68) -> 0.1011997675 | AA68: 0.1 | AB68: =AA68 -> 0.1 | AC68: =AB68 -> 0.1 | AD68: =AC68 -> 0.1 | AE68: =AD68 -> 0.1 | AF68: =AVERAGE(AA68:AE68)*(1+'2014 Farm Bill Calculator'!$B$21) -> 0.101 | AG68: =AVERAGE(AB68:AF68)*(1+'2014 Farm Bill Calculator'!$B$21) -> 0.101202 | AH68: =AVERAGE(AC68:AG68)*(1+'2014 Farm Bill Calculator'!$B$21) -> 0.101444804 | AI68: =AVERAGE(AD68:AH68)*(1+'2014 Farm Bill Calculator'!$B$21) -> 0.1017366544 | AJ68: =AVERAGE(AE68:AI68)*(1+'2014 Farm Bill Calculator'!$B$21) -> 0.1020874586 | AK68: 0.1 | AL68: 0.1001666667 | AM68: 0.1003145714 | AN68: 0.1004558505 | AO68: =AVERAGE(Z68:AI68) -> 0.100598162 | AT68: 54.5 | AU68: 0.1 | AV68: =AU68 -> 0.1 | AW68: =AV68 -> 0.1 | AX68: =AW68 -> 0.1 | AY68: =AX68 -> 0.1 | AZ68: =AVERAGE(AU68:AY68)*(1+'2014 Farm Bill Calculator'!$B$22) -> 0.101 | BA68: =AVERAGE(AV68:AZ68)*(1+'2014 Farm Bill Calculator'!$B$22) -> 0.101202 | BB68: =AVERAGE(AW68:BA68)*(1+'2014 Farm Bill Calculator'!$B$22) -> 0.101444804 | BC68: =AVERAGE(AX68:BB68)*(1+'2014 Farm Bill Calculator'!$B$22) -> 0.1017366544 | BD68: =AVERAGE(AY68:BC68)*(1+'2014 Farm Bill Calculator'!$B$22) -> 0.1020874586 | BE68: 9.166666667 | BF68: 7.871571429 | BG68: 6.90027525 | BH68: 6.144849645 | BI68: 5.540538346 | BK68: 0.1 | BL68: 0.1 | BM68: 0.1006666667 | BN68: 0.1014693333 | BO68: 0.102435744 | BQ68: 0.1 | BR68: 0.1 | BS68: 0.1003333333 | BT68: 0.100734 | BU68: 0.1012156013 | BW68: =IF(COUNT(AU68:AY68)=5,((SUM(AU68:AY68)-MIN(AU68:AY68)-MAX(AU68:AY68))/3),"Data Error") -> 0.1 | BX68: =IF(COUNT(AV68:AZ68)=5,((SUM(AV68:AZ68)-MIN(AV68:AZ68)-MAX(AV68:AZ68))/3),"Data Error") -> 0.1 | BY68: =IF(COUNT(AW68:BA68)=5,((SUM(AW68:BA68)-MIN(AW68:BA68)-MAX(AW68:BA68))/3),"Data Error") -> 0.1003333333 | BZ68: =IF(COUNT(AX68:BB68)=5,((SUM(AX68:BB68)-MIN(AX68:BB68)-MAX(AX68:BB68))/3),"Data Error") -> 0.100734 | CA68: 0.1012156013
A69: OSCEOLA | B69: 106 | C69: 136 | D69: 132 | E69: 98 | F69: 109 | G69: 83 | H69: 145 | I69: 126 | J69: 133 | K69: 106 | L69: 130 | M69: =AVERAGE(H69:L69)*(1+'2014 Farm Bill Calculator'!$B$20) -> 130.56 | N69: =AVERAGE(I69:M69)*(1+'2014 Farm Bill Calculator'!$B$20) -> 127.61424 | O69: =AVERAGE(J69:N69)*(1+'2014 Farm Bill Calculator'!$B$20) -> 127.943545 | P69: =AVERAGE(K69:O69)*(1+'2014 Farm Bill Calculator'!$B$20) -> 126.9120281 | Q69: 117.4 | R69: 119.8 | S69: 119.256 | T69: 118.817424 | U69: 121.8117785 | Y69: 22 | AA69: 28 | AB69: 39 | AC69: 36 | AD69: 37 | AE69: 35 | AF69: 29.7 | AG69: =AVERAGE(AB69:AF69)*(1+'2014 Farm Bill Calculator'!$B$21) -> 35.6934 | AH69: =AVERAGE(AC69:AG69)*(1+'2014 Farm Bill Calculator'!$B$21) -> 35.0254668 | AI69: =AVERAGE(AD69:AH69)*(1+'2014 Farm Bill Calculator'!$B$21) -> 34.82861109 | AJ69: =AVERAGE(AE69:AI69)*(1+'2014 Farm Bill Calculator'!$B$21) -> 34.38999053 | AK69: 32.83333333 | AL69: 32.38571429 | AM69: 32.799175 | AN69: 33.04654076 | AO69: 34.47194199 | AQ69: 40 | AR69: 66 | AS69: 50 | AU69: 51 | AV69: 54 | AW69: 40 | AX69: 56 | AY69: 36 | AZ69: 67.90000153 | BA69: =AVERAGE(AV69:AZ69)*(1+'2014 Farm Bill Calculator'!$B$22) -> 51.28780031 | BB69: =AVERAGE(AW69:BA69)*(1+'2014 Farm Bill Calculator'!$B$22) -> 50.73993597 | BC69: =AVERAGE(AX69:BB69)*(1+'2014 Farm Bill Calculator'!$B$22) -> 52.90940304 | BD69: =AVERAGE(AY69:BC69)*(1+'2014 Farm Bill Calculator'!$B$22) -> 52.28510245 | BE69: 49.125 | BF69: 51.21111128 | BG69: 52.46531131 | BH69: 50.76974864 | BI69: 51.09301565 | BK69: 121.6666667 | BL69: 129.6666667 | BM69: 128.8533333 | BN69: 129.3914133 | BO69: 128.5192617 | BQ69: 36 | BR69: 36 | BS69: 35.56446667 | BT69: 35.23962227 | BU69: 34.9513593 | BW69: 48.33333333 | BX69: 50 | BY69: 49.09593344 | BZ69: 52.67591209 | CA69: 51.64571311
A70: OSCODA | G70: 0.1 | H70: =G70 -> 0.1 | I70: =H70 -> 0.1 | J70: =I70 -> 0.1 | K70: =J70 -> 0.1 | L70: =AVERAGE(G70:K70)*(1+'2014 Farm Bill Calculator'!$B$20) -> 0.102 | M70: =AVERAGE(H70:L70)*(1+'2014 Farm Bill Calculator'!$B$20) -> 0.102408 | N70: =AVERAGE(I70:M70)*(1+'2014 Farm Bill Calculator'!$B$20) -> 0.102899232 | O70: =AVERAGE(J70:N70)*(1+'2014 Farm Bill Calculator'!$B$20) -> 0.1034906753 | P70: =AVERAGE(K70:O70)*(1+'2014 Farm Bill Calculator'!$B$20) -> 0.1042027731 | Q70: 0.1 | R70: 0.1003333333 | S70: 0.1006297143 | T70: 0.100913404 | U70: 0.1011997675 | AA70: 0.1 | AB70: =AA70 -> 0.1 | AC70: 0.1 | AD70: 0.1 | AE70: 0.1 | AF70: =AVERAGE(AA70:AE70)*(1+'2014 Farm Bill Calculator'!$B$21) -> 0.101 | AG70: =AVERAGE(AB70:AF70)*(1+'2014 Farm Bill Calculator'!$B$21) -> 0.101202 | AH70: =AVERAGE(AC70:AG70)*(1+'2014 Farm Bill Calculator'!$B$21) -> 0.101444804 | AI70: =AVERAGE(AD70:AH70)*(1+'2014 Farm Bill Calculator'!$B$21) -> 0.1017366544 | AJ70: =AVERAGE(AE70:AI70)*(1+'2014 Farm Bill Calculator'!$B$21) -> 0.1020874586 | AK70: 0.1 | AL70: 0.1001666667 | AM70: 0.1003145714 | AN70: 0.1004558505 | AO70: 0.100598162 | AU70: 0.1 | AV70: =AU70 -> 0.1 | AW70: =AV70 -> 0.1 | AX70: =AW70 -> 0.1 | AY70: =AX70 -> 0.1 | AZ70: =AVERAGE(AU70:AY70)*(1+'2014 Farm Bill Calculator'!$B$22) -> 0.101 | BA70: =AVERAGE(AV70:AZ70)*(1+'2014 Farm Bill Calculator'!$B$22) -> 0.101202 | BB70: =AVERAGE(AW70:BA70)*(1+'2014 Farm Bill Calculator'!$B$22) -> 0.101444804 | BC70: =AVERAGE(AX70:BB70)*(1+'2014 Farm Bill Calculator'!$B$22) -> 0.1017366544 | BD70: =AVERAGE(AY70:BC70)*(1+'2014 Farm Bill Calculator'!$B$22) -> 0.1020874586 | BE70: 0.1 | BF70: 0.1001666667 | BG70: 0.1003145714 | BH70: 0.1004558505 | BI70: 0.100598162 | BK70: 0.1 | BL70: 0.1 | BM70: 0.1006666667 | BN70: 0.1014693333 | BO70: 0.102435744 | BQ70: 0.1 | BR70: 0.1 | BS70: 0.1003333333 | BT70: 0.100734 | BU70: 0.1012156013 | BW70: 0.1 | BX70: 0.1 | BY70: 0.1003333333 | BZ70: 0.100734 | CA70: 0.1012156013
A71: OTSEGO | B71: 92 | D71: 107 | E71: 56 | G71: 94 | H71: 89 | I71: 98 | J71: 85 | K71: 64 | L71: =AVERAGE(G71:K71)*(1+'2014 Farm Bill Calculator'!$B$20) -> 87.72 | M71: =AVERAGE(H71:L71)*(1+'2014 Farm Bill Calculator'!$B$20) -> 86.43888 | N71: =AVERAGE(I71:M71)*(1+'2014 Farm Bill Calculator'!$B$20) -> 85.91641152 | O71: =AVERAGE(J71:N71)*(1+'2014 Farm Bill Calculator'!$B$20) -> 83.45135947 | P71: =AVERAGE(K71:O71)*(1+'2014 Farm Bill Calculator'!$B$20) -> 83.1354368 | Q71: 85.625 | R71: 85.09 | S71: 85.23987556 | T71: 82.89725461 | U71: 85.94740567 | AA71: 0.1 | AB71: 0.1 | AC71: 0.1 | AD71: 0.1 | AE71: 0.1 | AF71: 24.8 | AG71: =AVERAGE(AB71:AF71)*(1+'2014 Farm Bill Calculator'!$B$21) -> 5.0904 | AH71: =AVERAGE(AC71:AG71)*(1+'2014 Farm Bill Calculator'!$B$21) -> 6.0984608 | AI71: =AVERAGE(AD71:AH71)*(1+'2014 Farm Bill Calculator'!$B$21) -> 7.310149882 | AJ71: =AVERAGE(AE71:AI71)*(1+'2014 Farm Bill Calculator'!$B$21) -> 8.766600158 | AK71: 0.1 | AL71: 4.216666667 | AM71: 4.341485714 | AN71: 4.5611076 | AO71: 4.866556742 | AS71: 50 | AT71: 51 | AU71: 56 | AV71: 52 | AW71: 55 | AX71: 56 | AY71: 52 | AZ71: =AVERAGE(AU71:AY71)*(1+'2014 Farm Bill Calculator'!$B$22) -> 54.742 | BA71: =AVERAGE(AV71:AZ71)*(1+'2014 Farm Bill Calculator'!$B$22) -> 54.487884 | BB71: =AVERAGE(AW71:BA71)*(1+'2014 Farm Bill Calculator'!$B$22) -> 54.99043657 | BC71: =AVERAGE(AX71:BB71)*(1+'2014 Farm Bill Calculator'!$B$22) -> 54.98850475 | BD71: =AVERAGE(AY71:BC71)*(1+'2014 Farm Bill Calculator'!$B$22) -> 54.78418272 | BE71: 53.14285714 | BF71: 53.34275 | BG71: 53.46998711 | BH71: 53.62203206 | BI71: 54.12088253 | BK71: 89.33333333 | BL71: 87.24 | BM71: 86.38629333 | BN71: 85.78509717 | BO71: 85.26888366 | BQ71: 0.1 | BR71: 0.1 | BS71: 1.763466667 | BT71: 3.7629536 | BU71: 6.166336894 | BW71: 54.33333333 | BX71: 53.914 | BY71: 54.74329467 | BZ71: 54.74010686 | CA71: 54.73946292
A72: OTTAWA | B72: 126 | C72: 113 | D72: 157 | E72: 118 | F72: 117 | G72: 155 | H72: 147 | I72: 148 | J72: 100 | K72: 139 | L72: 152.3 | M72: =AVERAGE(H72:L72)*(1+'2014 Farm Bill Calculator'!$B$20) -> 140.0052 | N72: =AVERAGE(I72:M72)*(1+'2014 Farm Bill Calculator'!$B$20) -> 138.5782608 | O72: =AVERAGE(J72:N72)*(1+'2014 Farm Bill Calculator'!$B$20) -> 136.656226 | P72: =AVERAGE(K72:O72)*(1+'2014 Farm Bill Calculator'!$B$20) -> 144.1340961 | Q72: 132 | R72: 134.63 | S72: 137.33052 | T72: 135.4883461 | U72: 137.3539687 | V72: 36 | W72: 30 | X72: 45 | Y72: 40 | Z72: 34.5 | AA72: 48 | AB72: 50 | AC72: 45 | AD72: 37 | AE72: 38 | AF72: 46 | AG72: =AVERAGE(AB72:AF72)*(1+'2014 Farm Bill Calculator'!$B$21) -> 43.632 | AH72: =AVERAGE(AC72:AG72)*(1+'2014 Farm Bill Calculator'!$B$21) -> 42.345664 | AI72: =AVERAGE(AD72:AH72)*(1+'2014 Farm Bill Calculator'!$B$21) -> 41.80948813 | AJ72: =AVERAGE(AE72:AI72)*(1+'2014 Farm Bill Calculator'!$B$21) -> 42.78100473 | AK72: 40.35 | AL72: 41.35 | AM72: 42.7132 | AN72: 42.4477664 | AO72: 42.62871521 | AP72: 52 | AQ72: 64 | AR72: 69 | AS72: 47 | AT72: 59.5 | AU72: 50 | AV72: 48 | AW72: 65 | AX72: 55 | AY72: 67 | AZ72: 67.30000305 | BA72: =AVERAGE(AV72:AZ72)*(1+'2014 Farm Bill Calculator'!$B$22) -> 61.06460062 | BB72: =AVERAGE(AW72:BA72)*(1+'2014 Farm Bill Calculator'!$B$22) -> 63.70364994 | BC72: =AVERAGE(AX72:BB72)*(1+'2014 Farm Bill Calculator'!$B$22) -> 63.44178723 | BD72: =AVERAGE(AY72:BC72)*(1+'2014 Farm Bill Calculator'!$B$22) -> 65.14702825 | BE72: 57.65 | BF72: 59.18000031 | BG72: 58.88646037 | BH72: 58.35682536 | BI72: 60.00100408 | BK72: 144.6666667 | BL72: 144.6666667 | BM72: 142.3350667 | BN72: 139.1944869 | BO72: 139.1944869 | BQ72: 43.66666667 | BR72: 43 | BS72: 42.21066667 | BT72: 41.325888 | BU72: 42.59571738 | BW72: 56.66666667 | BX72: 62.33333333 | BY72: 64.35486687 | BZ72: 63.92275019 | CA72: 64.71514572
A73: PRESQUE ISLE | B73: 92 | C73: 112 | D73: 117 | E73: 81 | F73: 104 | G73: 83 | H73: 127 | I73: 124 | J73: 138 | K73: 97 | L73: 140.8 | M73: =AVERAGE(H73:L73)*(1+'2014 Farm Bill Calculator'!$B$20) -> 127.8672 | N73: =AVERAGE(I73:M73)*(1+'2014 Farm Bill Calculator'!$B$20) -> 128.0441088 | O73: =AVERAGE(J73:N73)*(1+'2014 Farm Bill Calculator'!$B$20) -> 128.869107 | P73: =AVERAGE(K73:O73)*(1+'2014 Farm Bill Calculator'!$B$20) -> 127.0064048 | Q73: 107.5 | R73: 112.38 | S73: 113.96672 | T73: 115.0711309 | U73: 119.8580416 | V73: 29 | W73: 31 | X73: 31 | Y73: 22 | Z73: 27.5 | AA73: 24 | AB73: 34 | AC73: 30 | AD73: 33 | AE73: 22 | AF73: 37 | AG73: =AVERAGE(AB73:AF73)*(1+'2014 Farm Bill Calculator'!$B$21) -> 31.512 | AH73: =AVERAGE(AC73:AG73)*(1+'2014 Farm Bill Calculator'!$B$21) -> 31.009424 | AI73: =AVERAGE(AD73:AH73)*(1+'2014 Farm Bill Calculator'!$B$21) -> 31.21332765 | AJ73: =AVERAGE(AE73:AI73)*(1+'2014 Farm Bill Calculator'!$B$21) -> 30.85241983 | AK73: 28.35 | AL73: 29.15 | AM73: 29.2012 | AN73: 29.2021424 | AO73: 30.12347516 | AP73: 46 | AQ73: 44 | AR73: 49 | AS73: 52 | AT73: 49.5 | AU73: 51 | AV73: 41 | AW73: 46 | AX73: 66 | AY73: 50 | AZ73: 52 | BA73: =AVERAGE(AV73:AZ73)*(1+'2014 Farm Bill Calculator'!$B$22) -> 51.51 | BB73: =AVERAGE(AW73:BA73)*(1+'2014 Farm Bill Calculator'!$B$22) -> 53.63302 | BC73: =AVERAGE(AX73:BB73)*(1+'2014 Farm Bill Calculator'!$B$22) -> 55.17489004 | BD73: =AVERAGE(AY73:BC73)*(1+'2014 Farm Bill Calculator'!$B$22) -> 52.98821783 | BE73: 49.45 | BF73: 50.05 | BG73: 50.801 | BH73: 51.264302 | BI73: 51.581791 | BK73: 116 | BL73: 129.6666667 | BM73: 129.9557333 | BN73: 131.3037696 | BO73: 128.2601386 | BQ73: 29 | BR73: 32.33333333 | BS73: 31.504 | BT73: 31.84047467 | BU73: 31.24491722 | BW73: 49 | BX73: 49.33333333 | BY73: 51.17 | BZ73: 52.38100667 | CA73: 52.38100667
A74: ROSCOMMON | G74: 0.1 | H74: =G74 -> 0.1 | I74: =H74 -> 0.1 | J74: =I74 -> 0.1 | K74: =J74 -> 0.1 | L74: =AVERAGE(G74:K74)*(1+'2014 Farm Bill Calculator'!$B$20) -> 0.102 | M74: =AVERAGE(H74:L74)*(1+'2014 Farm Bill Calculator'!$B$20) -> 0.102408 | N74: =AVERAGE(I74:M74)*(1+'2014 Farm Bill Calculator'!$B$20) -> 0.102899232 | O74: =AVERAGE(J74:N74)*(1+'2014 Farm Bill Calculator'!$B$20) -> 0.1034906753 | P74: =AVERAGE(K74:O74)*(1+'2014 Farm Bill Calculator'!$B$20) -> 0.1042027731 | Q74: 0.1 | R74: 0.1003333333 | S74: 0.1006297143 | T74: 0.100913404 | U74: 0.1011997675 | AA74: 0.1 | AB74: =AA74 -> 0.1 | AC74: =AB74 -> 0.1 | AD74: =AC74 -> 0.1 | AE74: =AD74 -> 0.1 | AF74: =AVERAGE(AA74:AE74)*(1+'2014 Farm Bill Calculator'!$B$21) -> 0.101 | AG74: =AVERAGE(AB74:AF74)*(1+'2014 Farm Bill Calculator'!$B$21) -> 0.101202 | AH74: =AVERAGE(AC74:AG74)*(1+'2014 Farm Bill Calculator'!$B$21) -> 0.101444804 | AI74: =AVERAGE(AD74:AH74)*(1+'2014 Farm Bill Calculator'!$B$21) -> 0.1017366544 | AJ74: =AVERAGE(AE74:AI74)*(1+'2014 Farm Bill Calculator'!$B$21) -> 0.1020874586 | AK74: 0.1 | AL74: 0.1001666667 | AM74: 0.1003145714 | AN74: 0.1004558505 | AO74: 0.100598162 | AU74: 0.1 | AV74: =AU74 -> 0.1 | AW74: =AV74 -> 0.1 | AX74: =AW74 -> 0.1 | AY74: =AX74 -> 0.1 | AZ74: =AVERAGE(AU74:AY74)*(1+'2014 Farm Bill Calculator'!$B$22) -> 0.101 | BA74: =AVERAGE(AV74:AZ74)*(1+'2014 Farm Bill Calculator'!$B$22) -> 0.101202 | BB74: =AVERAGE(AW74:BA74)*(1+'2014 Farm Bill Calculator'!$B$22) -> 0.101444804 | BC74: =AVERAGE(AX74:BB74)*(1+'2014 Farm Bill Calculator'!$B$22) -> 0.1017366544 | BD74: =AVERAGE(AY74:BC74)*(1+'2014 Farm Bill Calculator'!$B$22) -> 0.1020874586 | BE74: 0.1 | BF74: 0.1001666667 | BG74: 0.1003145714 | BH74: 0.1004558505 | BI74: 0.100598162 | BK74: 0.1 | BL74: 0.1 | BM74: 0.1006666667 | BN74: 0.1014693333 | BO74: 0.102435744 | BQ74: 0.1 | BR74: 0.1 | BS74: 0.1003333333 | BT74: 0.100734 | BU74: 0.1012156013 | BW74: 0.1 | BX74: 0.1 | BY74: 0.1003333333 | BZ74: 0.100734 | CA74: 0.1012156013
A75: SAGINAW | B75: 131 | C75: 139 | D75: 143 | E75: 144 | F75: 161 | G75: 159 | H75: 143 | I75: 150 | J75: 157 | K75: 147 | L75: 171.6 | M75: =AVERAGE(H75:L75)*(1+'2014 Farm Bill Calculator'!$B$20) -> 156.7944 | N75: =AVERAGE(I75:M75)*(1+'2014 Farm Bill Calculator'!$B$20) -> 159.6084576 | O75: =AVERAGE(J75:N75)*(1+'2014 Farm Bill Calculator'!$B$20) -> 161.568583 | P75: =AVERAGE(K75:O75)*(1+'2014 Farm Bill Calculator'!$B$20) -> 162.5005739 | Q75: 147.4 | R75: 151.46 | S75: 153.23944 | T75: 154.9002858 | U75: 156.6571441 | V75: 34 | W75: 32 | X75: 44 | Y75: 44 | Z75: 42.5 | AA75: 43 | AB75: 41 | AC75: 42 | AD75: 51 | AE75: 43 | AF75: 43.7 | AG75: =AVERAGE(AB75:AF75)*(1+'2014 Farm Bill Calculator'!$B$21) -> 44.5814 | AH75: =AVERAGE(AC75:AG75)*(1+'2014 Farm Bill Calculator'!$B$21) -> 45.3048428 | AI75: =AVERAGE(AD75:AH75)*(1+'2014 Farm Bill Calculator'!$B$21) -> 45.97242105 | AJ75: =AVERAGE(AE75:AI75)*(1+'2014 Farm Bill Calculator'!$B$21) -> 44.9568501 | AK75: =AVERAGE(V75:AE75) -> 41.65 | AL75: 42.62 | AM75: 43.87814 | AN75: 44.00862428 | AO75: 44.20586638 | AP75: 71 | AQ75: 71 | AR75: 82 | AS75: 70 | AT75: 74.5 | AU75: 74 | AV75: 74 | AW75: 83 | AX75: 82 | AY75: 76 | AZ75: 74.40000153 | BA75: =AVERAGE(AV75:AZ75)*(1+'2014 Farm Bill Calculator'!$B$22) -> 78.65880031 | BB75: =AVERAGE(AW75:BA75)*(1+'2014 Farm Bill Calculator'!$B$22) -> 79.59987797 | BC75: =AVERAGE(AX75:BB75)*(1+'2014 Farm Bill Calculator'!$B$22) -> 78.91305332 | BD75: =AVERAGE(AY75:BC75)*(1+'2014 Farm Bill Calculator'!$B$22) -> 78.28949009 | BE75: 75.75 | BF75: 76.09000015 | BG75: 76.85588018 | BH75: 76.61586798 | BI75: 77.50717331 | BK75: 151.3333333 | BL75: 151.3333333 | BM75: 154.5981333 | BN75: 157.8009525 | BO75: 159.3238135 | BQ75: 42.66666667 | BR75: 42.9 | BS75: 43.76046667 | BT75: 44.5287476 | BU75: 44.5287476 | BW75: 77.33333333 | BX75: 77.46666718 | BY75: 78.88626677 | BZ75: 78.08622609 | CA75: 77.85728454
A76: SANILAC | B76: 139 | C76: 160 | D76: 168 | E76: 133 | F76: 171 | G76: 150 | H76: 154 | I76: 161 | J76: 157 | K76: 165 | L76: 171.3 | M76: =AVERAGE(H76:L76)*(1+'2014 Farm Bill Calculator'!$B$20) -> 164.8932 | N76: =AVERAGE(I76:M76)*(1+'2014 Farm Bill Calculator'!$B$20) -> 167.1154128 | O76: =AVERAGE(J76:N76)*(1+'2014 Farm Bill Calculator'!$B$20) -> 168.362957 | P76: =AVERAGE(K76:O76)*(1+'2014 Farm Bill Calculator'!$B$20) -> 170.6810002 | Q76: 155.8 | R76: 159.03 | S76: 159.51932 | T76: 159.4308613 | U76: 162.967157 | V76: 38 | W76: 45 | X76: 51 | Y76: 41 | Z76: 44.5 | AA76: 37 | AB76: 43 | AC76: 43 | AD76: 47 | AE76: 45 | AF76: 41.4 | AG76: =AVERAGE(AB76:AF76)*(1+'2014 Farm Bill Calculator'!$B$21) -> 44.3188 | AH76: =AVERAGE(AC76:AG76)*(1+'2014 Farm Bill Calculator'!$B$21) -> 44.5851976 | AI76: =AVERAGE(AD76:AH76)*(1+'2014 Farm Bill Calculator'!$B$21) -> 44.90540752 | AJ76: =AVERAGE(AE76:AI76)*(1+'2014 Farm Bill Calculator'!$B$21) -> 44.48229983 | AK76: 43.45 | AL76: 43.79 | AM76: 43.72188 | AN76: 43.08039976 | AO76: 43.47094051 | AP76: 70 | AQ76: 71 | AR76: 80 | AS76: 75 | AT76: 77.5 | AU76: 73 | AV76: 79 | AW76: 76 | AX76: 81 | AY76: 77 | AZ76: 71.80000305 | BA76: =AVERAGE(AV76:AZ76)*(1+'2014 Farm Bill Calculator'!$B$22) -> 77.72960062 | BB76: =AVERAGE(AW76:BA76)*(1+'2014 Farm Bill Calculator'!$B$22) -> 77.47297994 | BC76: =AVERAGE(AX76:BB76)*(1+'2014 Farm Bill Calculator'!$B$22) -> 77.77052189 | BD76: =AVERAGE(AY76:BC76)*(1+'2014 Farm Bill Calculator'!$B$22) -> 77.11816731 | BE76: 75.95 | BF76: 76.13000031 | BG76: 76.80296037 | BH76: 76.55025836 | BI76: 76.82731055 | BK76: 157.3333333 | BL76: 161 | BM76: 163.6310667 | BN76: 165.6695376 | BO76: 166.8261233 | BQ76: 43.66666667 | BR76: 43.66666667 | BS76: 44.10626667 | BT76: 44.63466587 | BU76: 44.60313504 | BW76: 77.33333333 | BX76: 77.33333333 | BY76: 76.90986687 | BZ76: 77.40086019 | CA76: 77.40086019
A77: SCHOOLCRAFT | G77: 141 | H77: 126 | I77: 141 | J77: 136 | K77: 147 | L77: =AVERAGE(G77:K77)*(1+'2014 Farm Bill Calculator'!$B$20) -> 140.964 | M77: =AVERAGE(H77:L77)*(1+'2014 Farm Bill Calculator'!$B$20) -> 140.956656 | N77: =AVERAGE(I77:M77)*(1+'2014 Farm Bill Calculator'!$B$20) -> 144.0078138 | O77: =AVERAGE(J77:N77)*(1+'2014 Farm Bill Calculator'!$B$20) -> 144.6214078 | P77: =AVERAGE(K77:O77)*(1+'2014 Farm Bill Calculator'!$B$20) -> 146.380175 | Q77: 138.2 | R77: 138.6606667 | S77: 138.9886651 | T77: 139.6160587 | U77: 140.1722086 | AA77: 0.1 | AB77: =AA77 -> 0.1 | AC77: =AB77 -> 0.1 | AD77: =AC77 -> 0.1 | AE77: =AD77 -> 0.1 | AF77: =AVERAGE(AA77:AE77)*(1+'2014 Farm Bill Calculator'!$B$21) -> 0.101 | AG77: =AVERAGE(AB77:AF77)*(1+'2014 Farm Bill Calculator'!$B$21) -> 0.101202 | AH77: =AVERAGE(AC77:AG77)*(1+'2014 Farm Bill Calculator'!$B$21) -> 0.101444804 | AI77: =AVERAGE(AD77:AH77)*(1+'2014 Farm Bill Calculator'!$B$21) -> 0.1017366544 | AJ77: =AVERAGE(AE77:AI77)*(1+'2014 Farm Bill Calculator'!$B$21) -> 0.1020874586 | AK77: 0.1 | AL77: 0.1001666667 | AM77: 0.1003145714 | AN77: 0.1004558505 | AO77: 0.100598162 | AU77: 0.1 | AV77: =AU77 -> 0.1 | AW77: =AV77 -> 0.1 | AX77: =AW77 -> 0.1 | AY77: =AX77 -> 0.1 | AZ77: =AVERAGE(AU77:AY77)*(1+'2014 Farm Bill Calculator'!$B$22) -> 0.101 | BA77: =AVERAGE(AV77:AZ77)*(1+'2014 Farm Bill Calculator'!$B$22) -> 0.101202 | BB77: =AVERAGE(AW77:BA77)*(1+'2014 Farm Bill Calculator'!$B$22) -> 0.101444804 | BC77: =AVERAGE(AX77:BB77)*(1+'2014 Farm Bill Calculator'!$B$22) -> 0.1017366544 | BD77: =AVERAGE(AY77:BC77)*(1+'2014 Farm Bill Calculator'!$B$22) -> 0.1020874586 | BE77: 0.1 | BF77: 0.1001666667 | BG77: 0.1003145714 | BH77: 0.1004558505 | BI77: 0.100598162 | BK77: 139.3333333 | BL77: 139.3213333 | BM77: 140.973552 | BN77: 141.9761566 | BO77: 143.1977406 | BQ77: 0.1 | BR77: 0.1 | BS77: 0.1003333333 | BT77: 0.100734 | BU77: 0.1012156013 | BW77: 0.1 | BX77: 0.1 | BY77: 0.1003333333 | BZ77: 0.100734 | CA77: 0.1012156013
A78: SHIAWASSEE | B78: 132 | C78: 147 | D78: 141 | E78: 130 | F78: 147 | G78: 128 | H78: 142 | I78: 146 | J78: 156 | K78: 151 | L78: 156.4 | M78: =AVERAGE(H78:L78)*(1+'2014 Farm Bill Calculator'!$B$20) -> 153.2856 | N78: =AVERAGE(I78:M78)*(1+'2014 Farm Bill Calculator'!$B$20) -> 155.5878624 | O78: =AVERAGE(J78:N78)*(1+'2014 Farm Bill Calculator'!$B$20) -> 157.5437863 | P78: =AVERAGE(K78:O78)*(1+'2014 Farm Bill Calculator'!$B$20) -> 157.8587187 | Q78: 142 | R78: 144.44 | S78: 145.06856 | T78: 146.5273462 | U78: 149.2817249 | V78: 35 | W78: 34 | X78: 41 | Y78: 40 | Z78: 37.5 | AA78: 38 | AB78: 36 | AC78: 41 | AD78: 45 | AE78: 42 | AF78: 45.6 | AG78: =AVERAGE(AB78:AF78)*(1+'2014 Farm Bill Calculator'!$B$21) -> 42.3392 | AH78: =AVERAGE(AC78:AG78)*(1+'2014 Farm Bill Calculator'!$B$21) -> 43.6197184 | AI78: =AVERAGE(AD78:AH78)*(1+'2014 Farm Bill Calculator'!$B$21) -> 44.14890152 | AJ78: =AVERAGE(AE78:AI78)*(1+'2014 Farm Bill Calculator'!$B$21) -> 43.97697962 | AK78: 38.95 | AL78: 40.01 | AM78: 40.84392 | AN78: 41.10589184 | AO78: 41.52078199 | AP78: 59 | AQ78: 62 | AR78: 67 | AS78: 62 | AT78: 64 | AU78: 58 | AV78: 61 | AW78: 72 | AX78: 72 | AY78: 70 | AZ78: 61 | BA78: =AVERAGE(AV78:AZ78)*(1+'2014 Farm Bill Calculator'!$B$22) -> 67.872 | BB78: =AVERAGE(AW78:BA78)*(1+'2014 Farm Bill Calculator'!$B$22) -> 69.260144 | BC78: =AVERAGE(AX78:BB78)*(1+'2014 Farm Bill Calculator'!$B$22) -> 68.70669309 | BD78: =AVERAGE(AY78:BC78)*(1+'2014 Farm Bill Calculator'!$B$22) -> 68.04144509 | BE78: 64.7 | BF78: 64.9 | BG78: 65.4872 | BH78: 65.7132144 | BI78: 66.38388371 | BK78: 146.3333333 | BL78: 151 | BM78: 153.4285333 | BN78: 154.9578208 | BO78: 155.0911541 | BQ78: 40.33333333 | BR78: 42.66666667 | BS78: 43.11306667 | BT78: 43.6529728 | BU78: 43.36927331 | BW78: 67.66666667 | BX78: 67.66666667 | BY78: 69.95733333 | BZ78: 69.044048 | CA78: 68.6129457
A79: ST CLAIR | B79: 113 | C79: 138 | D79: 148 | E79: 111 | F79: 159 | G79: 154 | H79: 147 | I79: 163 | J79: 140 | K79: 158 | L79: 151.4 | M79: =AVERAGE(H79:L79)*(1+'2014 Farm Bill Calculator'!$B$20) -> 154.9176 | N79: =AVERAGE(I79:M79)*(1+'2014 Farm Bill Calculator'!$B$20) -> 156.5327904 | O79: =AVERAGE(J79:N79)*(1+'2014 Farm Bill Calculator'!$B$20) -> 155.2134796 | P79: =AVERAGE(K79:O79)*(1+'2014 Farm Bill Calculator'!$B$20) -> 158.3170295 | Q79: 143.1 | R79: 146.94 | S79: 148.63176 | T79: 149.485039 | U79: 153.906387 | V79: 34 | W79: 39 | X79: 48 | Y79: 35 | Z79: 44.5 | AA79: 36 | AB79: 37 | AC79: 41 | AD79: 44 | AE79: 40 | AF79: 39.6 | AG79: =AVERAGE(AB79:AF79)*(1+'2014 Farm Bill Calculator'!$B$21) -> 40.7232 | AH79: =AVERAGE(AC79:AG79)*(1+'2014 Farm Bill Calculator'!$B$21) -> 41.4752864 | AI79: =AVERAGE(AD79:AH79)*(1+'2014 Farm Bill Calculator'!$B$21) -> 41.57129425 | AJ79: =AVERAGE(AE79:AI79)*(1+'2014 Farm Bill Calculator'!$B$21) -> 41.08069569 | AK79: 39.85 | AL79: 40.41 | AM79: 40.58232 | AN79: 39.92984864 | AO79: 40.58697807 | AP79: 58 | AQ79: 65 | AR79: 74 | AS79: 66 | AT79: 72.5 | AU79: 57 | AV79: 73 | AW79: 66 | AX79: 65 | AY79: 74 | AZ79: 71.30000305 | BA79: =AVERAGE(AV79:AZ79)*(1+'2014 Farm Bill Calculator'!$B$22) -> 70.55860062 | BB79: =AVERAGE(AW79:BA79)*(1+'2014 Farm Bill Calculator'!$B$22) -> 70.06543794 | BC79: =AVERAGE(AX79:BB79)*(1+'2014 Farm Bill Calculator'!$B$22) -> 70.88665641 | BD79: =AVERAGE(AY79:BC79)*(1+'2014 Farm Bill Calculator'!$B$22) -> 72.075761 | BE79: 67.05 | BF79: 68.38000031 | BG79: 68.93586037 | BH79: 68.54240416 | BI79: 69.0310698 | BK79: 153 | BL79: 152.1333333 | BM79: 154.7725333 | BN79: 154.2834635 | BO79: 155.5546233 | BQ79: 39.33333333 | BR79: 40.2 | BS79: 40.5744 | BT79: 40.7328288 | BU79: 40.7328288 | BW79: 68 | BX79: 70.10000102 | BY79: 69.28620122 | BZ79: 70.6413472 | CA79: 70.91508669
A80: ST JOSEPH | B80: 130 | C80: 146 | D80: 161 | E80: 138 | F80: 114 | G80: 155 | H80: 147.2 | I80: 163.1 | J80: 140.6 | K80: 158.1 | L80: 152.7 | M80: =AVERAGE(H80:L80)*(1+'2014 Farm Bill Calculator'!$B$20) -> 155.3868 | N80: =AVERAGE(I80:M80)*(1+'2014 Farm Bill Calculator'!$B$20) -> 157.0569072 | O80: =AVERAGE(J80:N80)*(1+'2014 Farm Bill Calculator'!$B$20) -> 155.8241163 | P80: =AVERAGE(K80:O80)*(1+'2014 Farm Bill Calculator'!$B$20) -> 158.929836 | Q80: 145.3 | R80: 147.57 | S80: 148.50868 | T80: 148.1143707 | U80: 149.8967823 | V80: 44 | W80: 42 | X80: 52 | Y80: 44 | Z80: 41.5 | AA80: 42 | AB80: 49.6 | AC80: 48.4 | AD80: 45.2 | AE80: 45.3 | AF80: 45.9 | AG80: =AVERAGE(AB80:AF80)*(1+'2014 Farm Bill Calculator'!$B$21) -> 47.3488 | AH80: =AVERAGE(AC80:AG80)*(1+'2014 Farm Bill Calculator'!$B$21) -> 46.8940576 | AI80: =AVERAGE(AD80:AH80)*(1+'2014 Farm Bill Calculator'!$B$21) -> 46.58985724 | AJ80: =AVERAGE(AE80:AI80)*(1+'2014 Farm Bill Calculator'!$B$21) -> 46.8706084 | AK80: 45.4 | AL80: 45.59 | AM80: 46.12488 | AN80: 45.61428576 | AO80: 45.87327148 | AP80: 47 | AQ80: 49 | AR80: 58 | AS80: 54 | AT80: 57 | AU80: 65.5 | AV80: 60 | AW80: =AVERAGE(AU80,AV80,AY80) -> 63.16666667 | AX80: =AW80 -> 63.16666667 | AY80: 64 | AZ80: 67.30000305 | BA80: =AVERAGE(AV80:AZ80)*(1+'2014 Farm Bill Calculator'!$B$22) -> 64.16193395 | BB80: =AVERAGE(AW80:BA80)*(1+'2014 Farm Bill Calculator'!$B$22) -> 65.00264461 | BC80: =AVERAGE(AX80:BB80)*(1+'2014 Farm Bill Calculator'!$B$22) -> 65.37351215 | BD80: =AVERAGE(AY80:BC80)*(1+'2014 Farm Bill Calculator'!$B$22) -> 65.81929494 | BE80: 58.08333333 | BF80: 60.11333364 | BG80: 61.62952703 | BH80: 62.32979149 | BI80: 63.46714271 | BK80: 153.4333333 | BL80: 152.6666667 | BM80: 155.3956 | BN80: 155.0479024 | BO80: 156.0892745 | BQ80: 46.3 | BR80: 46.53333333 | BS80: 46.18293333 | BT80: 46.03135253 | BU80: 46.46130495 | BW80: 63.44444444 | BX80: 63.44444444 | BY80: 63.77620021 | BZ80: 64.38819285 | CA80: 64.84603024
A81: TUSCOLA | B81: 145 | C81: 148 | D81: 154 | E81: 134 | F81: 174 | G81: 164 | H81: 148 | I81: 155 | J81: 160 | K81: 155 | L81: 178.5 | M81: =AVERAGE(H81:L81)*(1+'2014 Farm Bill Calculator'!$B$20) -> 162.486 | N81: =AVERAGE(I81:M81)*(1+'2014 Farm Bill Calculator'!$B$20) -> 165.441144 | O81: =AVERAGE(J81:N81)*(1+'2014 Farm Bill Calculator'!$B$20) -> 167.5711374 | P81: =AVERAGE(K81:O81)*(1+'2014 Farm Bill Calculator'!$B$20) -> 169.1156494 | Q81: 153.7 | R81: 157.05 | S81: 158.4986 | T81: 159.6427144 | U81: 162.9998281 | V81: 38 | W81: 38 | X81: 46 | Y81: 40 | Z81: 48 | AA81: 42 | AB81: 41 | AC81: 43 | AD81: 51 | AE81: 43 | AF81: 42.5 | AG81: =AVERAGE(AB81:AF81)*(1+'2014 Farm Bill Calculator'!$B$21) -> 44.541 | AH81: =AVERAGE(AC81:AG81)*(1+'2014 Farm Bill Calculator'!$B$21) -> 45.256282 | AI81: =AVERAGE(AD81:AH81)*(1+'2014 Farm Bill Calculator'!$B$21) -> 45.71205096 | AJ81: =AVERAGE(AE81:AI81)*(1+'2014 Farm Bill Calculator'!$B$21) -> 44.64388526 | AK81: 43 | AL81: 43.45 | AM81: 44.1041 | AN81: 44.0297282 | AO81: 44.6009333 | AP81: 78 | AQ81: 70 | AR81: 77 | AS81: 69 | AT81: 75.5 | AU81: 63 | AV81: 78 | AW81: 82 | AX81: 83 | AY81: 82 | AZ81: 79.30000305 | BA81: =AVERAGE(AV81:AZ81)*(1+'2014 Farm Bill Calculator'!$B$22) -> 81.66860062 | BB81: =AVERAGE(AW81:BA81)*(1+'2014 Farm Bill Calculator'!$B$22) -> 82.40965794 | BC81: =AVERAGE(AX81:BB81)*(1+'2014 Farm Bill Calculator'!$B$22) -> 82.49240885 | BD81: =AVERAGE(AY81:BC81)*(1+'2014 Farm Bill Calculator'!$B$22) -> 82.38987543 | BE81: 75.75 | BF81: 75.88000031 | BG81: 77.04686037 | BH81: 77.58782616 | BI81: 78.93706705 | BK81: 156.6666667 | BL81: 156.6666667 | BM81: 159.162 | BN81: 162.6423813 | BO81: 165.1660938 | BQ81: 42.66666667 | BR81: 42.83333333 | BS81: 43.51366667 | BT81: 44.26576067 | BU81: 44.26576067 | BW81: 80.66666667 | BX81: 81.10000102 | BY81: 81.88953354 | BZ81: 82.02608619 | CA81: 82.02608619
A82: VAN BUREN | B82: 133 | C82: 134 | D82: 138 | E82: 113 | F82: 142 | G82: 153 | H82: 165.3 | I82: 179.6 | J82: 134.6 | K82: 156.5 | L82: =AVERAGE(G82:K82)*(1+'2014 Farm Bill Calculator'!$B$20) -> 160.956 | M82: =AVERAGE(H82:L82)*(1+'2014 Farm Bill Calculator'!$B$20) -> 162.579024 | N82: =AVERAGE(I82:M82)*(1+'2014 Farm Bill Calculator'!$B$20) -> 162.0239449 | O82: =AVERAGE(J82:N82)*(1+'2014 Farm Bill Calculator'!$B$20) -> 158.4384297 | P82: =AVERAGE(K82:O82)*(1+'2014 Farm Bill Calculator'!$B$20) -> 163.3014693 | Q82: 144.9 | R82: 147.6956 | S82: 150.5535024 | T82: 152.9558969 | U82: 157.4997399 | V82: 41 | W82: 33 | X82: 39 | Y82: 38 | Z82: 32.5 | AA82: 38 | AB82: 45 | AC82: 42 | AD82: 39 | AE82: 41 | AF82: 41.1 | AG82: =AVERAGE(AB82:AF82)*(1+'2014 Farm Bill Calculator'!$B$21) -> 42.0362 | AH82: =AVERAGE(AC82:AG82)*(1+'2014 Farm Bill Calculator'!$B$21) -> 41.4375124 | AI82: =AVERAGE(AD82:AH82)*(1+'2014 Farm Bill Calculator'!$B$21) -> 41.3238899 | AJ82: =AVERAGE(AE82:AI82)*(1+'2014 Farm Bill Calculator'!$B$21) -> 41.79331567 | AK82: 38.85 | AL82: 38.86 | AM82: 39.76362 | AN82: 40.00737124 | AO82: 40.33976023 | AP82: 37 | AQ82: 44 | AR82: 53 | AS82: 45 | AT82: 45.5 | AU82: 53 | AV82: 41 | AW82: 49 | AX82: 47 | AY82: 56 | AZ82: =AVERAGE(AU82:AY82)*(1+'2014 Farm Bill Calculator'!$B$22) -> 49.692 | BA82: =AVERAGE(AV82:AZ82)*(1+'2014 Farm Bill Calculator'!$B$22) -> 49.023784 | BB82: =AVERAGE(AW82:BA82)*(1+'2014 Farm Bill Calculator'!$B$22) -> 50.64458837 | BC82: =AVERAGE(AX82:BB82)*(1+'2014 Farm Bill Calculator'!$B$22) -> 50.97679522 | BD82: =AVERAGE(AY82:BC82)*(1+'2014 Farm Bill Calculator'!$B$22) -> 51.78010785 | BE82: 47.05 | BF82: 48.3192 | BG82: 48.8215784 | BH82: 48.58603724 | BI82: 49.18371676 | BK82: 158.2666667 | BL82: 160.9186667 | BM82: 160.0116747 | BN82: 159.8266483 | BO82: 160.4727915 | BQ82: 40.66666667 | BR82: 41.36666667 | BS82: 41.36666667 | BT82: 41.1791708 | BU82: 41.2871341 | BW82: 49.66666667 | BX82: 48.564 | BY82: 49.23859467 | BZ82: 49.78679079 | CA82: 50.43779453
A83: WASHTENAW | B83: 132 | C83: 150 | D83: 141 | E83: 128 | F83: 110 | G83: 133 | H83: 143 | I83: 144 | J83: 88 | K83: 155 | L83: 172.2 | M83: =AVERAGE(H83:L83)*(1+'2014 Farm Bill Calculator'!$B$20) -> 143.2488 | N83: =AVERAGE(I83:M83)*(1+'2014 Farm Bill Calculator'!$B$20) -> 143.2995552 | O83: =AVERAGE(J83:N83)*(1+'2014 Farm Bill Calculator'!$B$20) -> 143.1566645 | P83: =AVERAGE(K83:O83)*(1+'2014 Farm Bill Calculator'!$B$20) -> 154.408624 | Q83: 132.4 | R83: 136.42 | S83: 135.74488 | T83: 135.9748355 | U83: 137.490502 | V83: 36 | W83: 39 | X83: 43 | Y83: 41 | Z83: 30 | AA83: 39 | AB83: 40 | AC83: 43 | AD83: 25 | AE83: 47 | AF83: 44.8 | AG83: =AVERAGE(AB83:AF83)*(1+'2014 Farm Bill Calculator'!$B$21) -> 40.3596 | AH83: =AVERAGE(AC83:AG83)*(1+'2014 Farm Bill Calculator'!$B$21) -> 40.4322392 | AI83: =AVERAGE(AD83:AH83)*(1+'2014 Farm Bill Calculator'!$B$21) -> 39.91355152 | AJ83: =AVERAGE(AE83:AI83)*(1+'2014 Farm Bill Calculator'!$B$21) -> 42.92608893 | AK83: 38.3 | AL83: =AVERAGE(W83:AF83) -> 39.18 | AM83: =AVERAGE(X83:AG83) -> 39.31596 | AN83: =AVERAGE(Y83:AH83) -> 39.05918392 | AO83: 38.95053907 | AP83: 54 | AQ83: 61 | AR83: 64 | AS83: 59 | AT83: 61 | AU83: 68 | AV83: 68 | AW83: 69 | AX83: 67 | AY83: 64 | AZ83: 78.5 | BA83: =AVERAGE(AV83:AZ83)*(1+'2014 Farm Bill Calculator'!$B$22) -> 69.993 | BB83: =AVERAGE(AW83:BA83)*(1+'2014 Farm Bill Calculator'!$B$22) -> 70.395586 | BC83: =AVERAGE(AX83:BB83)*(1+'2014 Farm Bill Calculator'!$B$22) -> 70.67749437 | BD83: =AVERAGE(AY83:BC83)*(1+'2014 Farm Bill Calculator'!$B$22) -> 71.42034824 | BE83: 63.5 | BF83: 65.95 | BG83: 66.8493 | BH83: 67.4888586 | BI83: 68.65660804 | BK83: 140 | BL83: 147.3333333 | BM83: 147.4162667 | BN83: 147.1827851 | BO83: 147.1827851 | BQ83: 40.66666667 | BR83: 42.6 | BS83: 42.71986667 | BT83: 41.8639464 | BU83: 41.8639464 | BW83: 67.66666667 | BX83: 68 | BY83: 68.66433333 | BZ83: 69.12952867 | CA83: 70.35536012
A84: WAYNE | G84: 144 | H84: 135 | I84: 138 | J84: 88 | K84: 125 | L84: 150 | M84: =AVERAGE(H84:L84)*(1+'2014 Farm Bill Calculator'!$B$20) -> 129.744 | N84: =AVERAGE(I84:M84)*(1+'2014 Farm Bill Calculator'!$B$20) -> 128.671776 | O84: =AVERAGE(J84:N84)*(1+'2014 Farm Bill Calculator'!$B$20) -> 126.7688183 | P84: =AVERAGE(K84:O84)*(1+'2014 Farm Bill Calculator'!$B$20) -> 134.6776572 | Q84: 126 | R84: 130 | S84: 129.9634286 | T84: 129.801972 | U84: 129.4649549 | V84: 30 | W84: 31 | X84: 33 | Y84: 33 | Z84: 26.5 | AA84: 37 | AB84: 42 | AC84: 40 | AD84: 23 | AE84: 39 | AF84: 36.9 | AG84: =AVERAGE(AB84:AF84)*(1+'2014 Farm Bill Calculator'!$B$21) -> 36.5418 | AH84: =AVERAGE(AC84:AG84)*(1+'2014 Farm Bill Calculator'!$B$21) -> 35.4392436 | AI84: =AVERAGE(AD84:AH84)*(1+'2014 Farm Bill Calculator'!$B$21) -> 34.51797081 | AJ84: =AVERAGE(AE84:AI84)*(1+'2014 Farm Bill Calculator'!$B$21) -> 36.84460091 | AK84: 33.45 | AL84: 34.14 | AM84: 34.69418 | AN84: 34.93810436 | AO84: 35.08990144 | AP84: 36 | AQ84: 53 | AR84: 48 | AT84: 42 | AU84: 68 | AV84: 69 | AW84: 41 | AX84: 70 | AY84: 48 | AZ84: =AVERAGE(AU84:AY84)*(1+'2014 Farm Bill Calculator'!$B$22) -> 59.792 | BA84: =AVERAGE(AV84:AZ84)*(1+'2014 Farm Bill Calculator'!$B$22) -> 58.133984 | BB84: =AVERAGE(AW84:BA84)*(1+'2014 Farm Bill Calculator'!$B$22) -> 55.93904877 | BC84: =AVERAGE(AX84:BB84)*(1+'2014 Farm Bill Calculator'!$B$22) -> 58.95673662 | BD84: =AVERAGE(AY84:BC84)*(1+'2014 Farm Bill Calculator'!$B$22) -> 56.72599742 | BE84: 52.77777778 | BF84: 55.42133333 | BG84: 55.991776 | BH84: 56.87389253 | BI84: 57.08217694 | BK84: 132.6666667 | BL84: 132.6666667 | BM84: 130.9146667 | BN84: 127.8052587 | BO84: 128.3948648 | BQ84: 38.66666667 | BR84: 38.63333333 | BS84: 37.4806 | BT84: 36.2936812 | BU84: 36.2936812 | BW84: 61.66666667 | BX84: 58.93066667 | BY84: 55.30866133 | BZ84: 57.95501092 | CA84: 57.6765898
A85: WEXFORD | B85: 99 | C85: 112 | D85: 97 | F85: 83 | G85: 72 | H85: 124 | I85: 113 | J85: 61 | K85: 61 | L85: 105.7 | M85: =AVERAGE(H85:L85)*(1+'2014 Farm Bill Calculator'!$B$20) -> 94.7988 | N85: =AVERAGE(I85:M85)*(1+'2014 Farm Bill Calculator'!$B$20) -> 88.8417552 | O85: =AVERAGE(J85:N85)*(1+'2014 Farm Bill Calculator'!$B$20) -> 83.91347326 | P85: =AVERAGE(K85:O85)*(1+'2014 Farm Bill Calculator'!$B$20) -> 88.58782181 | Q85: 91.33333333 | R85: 92.07777778 | S85: 90.16653333 | T85: 89.26006169 | U85: 88.72540285 | AA85: 0.1 | AB85: =AA85 -> 0.1 | AC85: =AB85 -> 0.1 | AD85: =AC85 -> 0.1 | AE85: =AD85 -> 0.1 | AF85: =AVERAGE(AA85:AE85)*(1+'2014 Farm Bill Calculator'!$B$21) -> 0.101 | AG85: =AVERAGE(AB85:AF85)*(1+'2014 Farm Bill Calculator'!$B$21) -> 0.101202 | AH85: =AVERAGE(AC85:AG85)*(1+'2014 Farm Bill Calculator'!$B$21) -> 0.101444804 | AI85: =AVERAGE(AD85:AH85)*(1+'2014 Farm Bill Calculator'!$B$21) -> 0.1017366544 | AJ85: =AVERAGE(AE85:AI85)*(1+'2014 Farm Bill Calculator'!$B$21) -> 0.1020874586 | AK85: 0.1 | AL85: 0.1001666667 | AM85: 0.1003145714 | AN85: 0.1004558505 | AO85: 0.100598162 | AU85: 53 | AV85: 40 | AW85: 59 | AX85: 32 | AY85: 32 | AZ85: =AVERAGE(AU85:AY85)*(1+'2014 Farm Bill Calculator'!$B$22) -> 43.632 | BA85: =AVERAGE(AV85:AZ85)*(1+'2014 Farm Bill Calculator'!$B$22) -> 41.739664 | BB85: =AVERAGE(AW85:BA85)*(1+'2014 Farm Bill Calculator'!$B$22) -> 42.09107613 | BC85: =AVERAGE(AX85:BB85)*(1+'2014 Farm Bill Calculator'!$B$22) -> 38.67547351 | BD85: =AVERAGE(AY85:BC85)*(1+'2014 Farm Bill Calculator'!$B$22) -> 40.02391915 | BE85: 43.2 | BF85: 43.272 | BG85: 43.05309486 | BH85: 42.93284252 | BI85: 42.45980151 | BK85: 82 | BL85: 93.23333333 | BM85: 87.16626667 | BN85: 81.54685173 | BO85: 89.18467615 | BQ85: 0.1 | BR85: 0.1 | BS85: 0.1003333333 | BT85: 0.100734 | BU85: 0.1012156013 | BW85: 41.66666667 | BX85: 38.544 | BY85: 39.123888 | BZ85: 38.61024671 | CA85: 40.83540454

Sheet MYA Prices (hidden)
A1: 1 | B1: 2 | C1: 3 | D1: 4 | E1: 5 | F1: 6 | G1: 7 | H1: 8 | I1: 9 | J1: 10 | K1: 11 | L1: 12 | M1: 13 | N1: 14 | O1: 15 | P1: 16 | Q1: 17 | R1: 18 | S1: 19 | T1: 20
C3: Corn | D3: soys | E3: Wheat
B30: 1 | C30: 2 | D30: 3 | E30: 4 | F30: 5 | G30: 6 | H30: 7 | I30: 8 | J30: 9 | K30: 10 | L30: 11 | M30: 12 | N30: 13 | O30: 14 | P30: 15 | Q30: 16
C31: Corn 14 | D31: Corn 15 | E31: Corn 16 | F31: Corn 17 | G31: Corn 18 | H31: SOY 14 | I31: SOY 15 | J31: SOY 16 | K31: SOY 17 | L31: SOY 18 | M31: Wheat 14 | N31: Wheat 15 | O31: Wheat 16 | P31: Wheat 17 | Q31: Wheat 18
B32: FAPRI (2/17/15) | C32: =E41 -> 3.612011591 | D32: =F41 -> 3.874688075 | E32: =G41 -> 3.911669297 | F32: =H41 -> 3.958937939 | G32: =I41 -> 4.092909556 | H32: =E49 -> 10.03205785 | I32: =F49 -> 9.26709799 | J32: =G49 -> 9.555025928 | K32: =H49 -> 9.93113486 | L32: =I49 -> 10.30285881 | M32: =E57 -> 6.009673128 | N32: =F57 -> 5.169930441 | O32: =G57 -> 5.259968169 | P32: 5.382245948 | Q32: 5.629447698
B33: USDA (2/20/15) | C33: =E42 -> 3.65 | D33: 3.5 | E33: 3.5 | F33: 3.5 | G33: 3.5 | H33: =E50 -> 10.2 | I33: 9 | J33: 8.55 | K33: 8.8 | L33: 9.1 | M33: =E58 -> 6 | N33: 5.1 | O33: 4.65 | P33: 4.75 | Q33: 4.8
B34: Futures (2/24/15) | C34: 3.6 | D34: 3.85 | E34: 4 | F34: 4 | G34: 3.95 | H34: 10 | I34: 9.5 | J34: 9.5 | K34: 9.4 | L34: 9.1 | M34: 6.05 | N34: 5.055 | O34: 5.435 | P34: 5.37 | Q34: 5.4
B35: Hilker (2/24/15) | C35: 3.58 | D35: 3.65 | E35: 3.8 | F35: 4 | G35: 4.1 | H35: 9.95 | I35: 9.125 | J35: 9.5 | K35: 10 | L35: 10.25 | M35: 6.05 | N35: 5.3 | O35: 5.25 | P35: 5.35 | Q35: 5.45
B36: Composite | C36: 3.610502898 | D36: 3.718672019 | E36: 3.802917324 | F36: 3.864734485 | G36: 3.910727389 | H36: 10.04551446 | I36: 9.223024498 | J36: 9.276256482 | K36: 9.532783715 | L36: 9.688214703 | M36: 6.027418282 | N36: 5.15623261 | O36: 5.148742042 | P36: =AVERAGE(P32:P35) -> 5.213061487 | Q36: 5.319861925
D37: Five Year Price Forecasts for the 2014 Farm Bill
F39: Corn
E40: 2014/15 | F40: 2015/16 | G40: 2016/17 | H40: 2017/18 | I40: 2018/19
D41: FAPRI (2/17/15) | E41: 3.612011591 | F41: 3.874688075 | G41: 3.911669297 | H41: 3.958937939 | I41: 4.092909556
D42: USDA (2/20/15) | E42: =(3.35+3.95)/2 -> 3.65 | F42: 3.5 | G42: 3.5 | H42: 3.5 | I42: 3.5
D43: Futures (2/24/15) | E43: 3.6 | F43: 3.85 | G43: 4 | H43: 4 | I43: 3.95
D44: Hilker (2/24/15) | E44: 3.58 | F44: 3.65 | G44: 3.8 | H44: 4 | I44: 4.1
D45: Composite | E45: =AVERAGE(E41:E44) -> 3.610502898 | F45: =AVERAGE(F41:F44) -> 3.718672019 | G45: 3.802917324 | H45: 3.864734485 | I45: 3.910727389
F47: Soybeans
E48: 2014/15 | F48: 2015/16 | G48: 2016/17 | H48: 2017/18 | I48: 2018/19
D49: FAPRI (2/17/15) | E49: 10.03205785 | F49: 9.26709799 | G49: 9.555025928 | H49: 9.93113486 | I49: 10.30285881
D50: USDA (2/20/15) | E50: =(9.45+10.95)/2 -> 10.2 | F50: 9 | G50: 8.55 | H50: 8.8 | I50: 9.1
D51: Futures (2/24/15) | E51: 10 | F51: 9.5 | G51: 9.5 | H51: 9.4 | I51: 9.1
D52: Hilker (2/24/15) | E52: 9.95 | F52: =F44*2.5 -> 9.125 | G52: =G44*2.5 -> 9.5 | H52: =H44*2.5 -> 10 | I52: =I44*2.5 -> 10.25
D53: Composite | E53: =AVERAGE(E49:E52) -> 10.04551446 | F53: =AVERAGE(F49:F52) -> 9.223024498 | G53: 9.276256482 | H53: 9.532783715 | I53: 9.688214703
F55: Wheat
E56: 2014/15 | F56: 2015/16 | G56: 2016/17 | H56: 2017/18 | I56: 2018/19
D57: FAPRI (2/17/15) | E57: 6.009673128 | F57: 5.169930441 | G57: 5.259968169 | H57: 5.441007187 | I57: 5.698864244
D58: USDA (2/20/15) | E58: 6 | F58: 5.1 | G58: 4.65 | H58: 4.75 | I58: 4.8
D59: Futures (2/24/15) | E59: 6.05 | F59: =((F71*0.25)+(F72*0.5)+(F73*0.25))-0.6 -> 5.055 | G59: =((G71*0.25)+(G72*0.5)+(G73*0.25))-0.6 -> 5.435 | H59: =((H71*0.25)+(H72*0.5)+(H73*0.25))-0.6 -> 5.35 | I59: =((I71*0.25)+(I72*0.5)+(I73*0.25))-0.6 -> 5.375
D60: Hilker (2/24/15) | E60: 6.05 | F60: 5.3 | G60: 5.25 | H60: 5.35 | I60: 5.45
D61: Composite | E61: =AVERAGE(E57:E60) -> 6.027418282 | F61: =AVERAGE(F57:F60) -> 5.15623261 | G61: 5.148742042 | H61: 5.222751797 | I61: 5.330966061
D63: FAPRI - Food and Agricultural Policy Research Institute (http://www.fapri.missouri.edu/)
D64: USDA's Agricultural Projections to 2024
E65: http://www.usda.gov/oce/commodity/projections/index.htm
D66: Futures - Hilker's Interpretation of what the Futures Markets are suggesting
D67: Hilker - MSU Extension Economist
D68: Composite - Average of the FAPRI, USDA, Futures, & Hilker Forecasts
D71: Chicago | F71: 5.29 | G71: 5.6 | H71: 5.62 | I71: 5.6
D72: Kansas City | F72: 5.71 | G72: 6.02 | H72: 5.84 | I72: 5.9
D73: Minneapolis | F73: 5.91 | G73: 6.5 | H73: 6.5 | I73: 6.5

Sheet Graphic Results by year (hidden)

Sheet Sheet1 (hidden)

Sheet Sheet2 (hidden)

Sheet Sheet3 (hidden)
